{"text_format":"1","workbook":"xlsx","n_sheets":6,"sheets":["Start","Wörterliste","Nomen BASIS","Verben BASIS","Adjektive BASIS","Sonstige BASIS"],"not_rendered":{"charts":0,"images":0,"macros":1,"external_links":0,"defined_names":0,"comments":0,"pivot_tables":0},"unopened":[],"bounds":{"document_bytes":16777216,"sheet_cells":100000,"rows_first":2000,"rows_last":500,"rows_between":2000,"halvings":0,"cell_chars":16384,"cell_head_chars":4096},"cells_cut":0,"cells_raw":0,"read":"whole","date_system":"1900"}

{"sheet":"Start","index":0,"n_rows":18,"n_cols":9,"rows_kept":18,"cut":false,"hidden":false,"merged":[[8,1,8,9],[7,1,7,7],[8,10,8,11],[7,8,7,10]]}
[]
[null,"Willkommen zum Franzwörtli lernen. Was möchtest du tun?"]
[]
[]
[]
[]
[]
[null,"Falls du eine Frage zum Programm hast, schreibe mir hier: ",null,null,null,null,null,null,"info@stephan-kaelin"]
[]
[]
[]
[]
[null,"Zusätzliche Wörter können auf den jeweiligen Seiten erfasst werden. Sie müssen aber genau gleich aufgebaut sein, wie das in der ersten Zelle ersichtlich ist."]
[null,"Es darf zwischen dem letzten und dem neuen Wort keine Leerzelle sein."]
[]
[null,"Dieses Programm darf gratis weiterverteilt werden. Das Copyright liegt bei stephan-kaelin.ch. Jeder Versuch, mit diesem Programm Geld zu verdienen, wird rechtlich verfolgt."]
[]
[null,"Für die Richtigkeit wird keine Garantie übernommen. Die Wörter stammen von der Seite: https://www.sicheres-englisch.de. Sollten Fehler gefunden werden, können die auf den jewiligen Seiten korrigiert werden. "]

{"sheet":"Wörterliste","index":1,"n_rows":984,"n_cols":5,"rows_kept":984,"cut":false,"hidden":true,"merged":[]}
[null,"Deutsch","Franz mit Artikel","Artikel","Wort ohne Artikel"]
["Abend=le soir",{"$f":"LEFT(A2,FIND(\"=\",A2)-1)","v":"Abend"},{"$f":"MID(A2,FIND(\"=\",A2)+1,LEN(A2))","v":"le soir"},{"$f":"IF(ISERROR(FIND(\"(f)\",C2)),(IF(ISERROR(FIND(\"(m)\",C2)),\"\",\"m\")),\"f\")","v":""},{"$f":"IF(D2=\"\",C2,LEFT(C2,SEARCH(\"(\",C2)-1))","v":"le soir"}]
["Abendessen=le diner",{"$f":"LEFT(A3,FIND(\"=\",A3)-1)","v":"Abendessen"},{"$f":"MID(A3,FIND(\"=\",A3)+1,LEN(A3))","v":"le diner"},{"$f":"IF(ISERROR(FIND(\"(f)\",C3)),(IF(ISERROR(FIND(\"(m)\",C3)),\"\",\"m\")),\"f\")","v":""},{"$f":"IF(D3=\"\",C3,LEFT(C3,SEARCH(\"(\",C3)-1))","v":"le diner"}]
["Absicht, Wille=intention(f)","Absicht, Wille","intention(f)","f","intention"]
["Adresse=adresse(f)","Adresse","adresse(f)","f","adresse"]
["Alter=âge(m)","Alter","âge(m)","m","âge"]
["Angebot=offre(f)","Angebot","offre(f)","f","offre"]
["Angelegenheit, Sache, Geschäft=affaire","Angelegenheit, Sache, Geschäft","affaire","","affaire"]
["Angestellter=employé(m)","Angestellter","employé(m)","m","employé"]
["Angestellte=employée(f)",{"$f":"LEFT(A10,FIND(\"=\",A10)-1)","v":"Angestellte"},{"$f":"MID(A10,FIND(\"=\",A10)+1,LEN(A10))","v":"employée(f)"},{"$f":"IF(ISERROR(FIND(\"(f)\",C10)),(IF(ISERROR(FIND(\"(m)\",C10)),\"\",\"m\")),\"f\")","v":"f"},{"$f":"IF(D10=\"\",C10,LEFT(C10,SEARCH(\"(\",C10)-1))","v":"employée"}]
["Angst, Furcht=la peur","Angst, Furcht","la peur","","la peur"]
["Anstrengung, Mühe=effort(m)","Anstrengung, Mühe","effort(m)","m","effort"]
["Antwort=la réponse","Antwort","la réponse","","la réponse"]
["Apfel=la pomme","Apfel","la pomme","","la pomme"]
["Apotheke=la pharmacie","Apotheke","la pharmacie","","la pharmacie"]
["Arbeit=le travail","Arbeit","le travail","","le travail"]
["Arbeiterin=la travailleuse","Arbeiterin","la travailleuse","","la travailleuse"]
["Arbeiter=le travailleur",{"$f":"LEFT(A18,FIND(\"=\",A18)-1)","v":"Arbeiter"},{"$f":"MID(A18,FIND(\"=\",A18)+1,LEN(A18))","v":"le travailleur"},{"$f":"IF(ISERROR(FIND(\"(f)\",C18)),(IF(ISERROR(FIND(\"(m)\",C18)),\"\",\"m\")),\"f\")","v":""},{"$f":"IF(D18=\"\",C18,LEFT(C18,SEARCH(\"(\",C18)-1))","v":"le travailleur"}]
["Arm=le bras","Arm","le bras","","le bras"]
["Art und Weise=la façon","Art und Weise","la façon","","la façon"]
["Artikel, Ware, Gegenstand=article(m)","Artikel, Ware, Gegenstand","article(m)","m","article"]
["Aufgabe, Auftrag=la mission","Aufgabe, Auftrag","la mission","","la mission"]
["Aufgabe, Übung=exercice(m)","Aufgabe, Übung","exercice(m)","m","exercice"]
["Aufmerksamkeit, Achtung=attention(f)","Aufmerksamkeit, Achtung","attention(f)","f","attention"]
["Auftrag, Bestellung, Befehl=la commande","Auftrag, Bestellung, Befehl","la commande","","la commande"]
["Aufzug, Fahrstuhl=ascenseur(m)","Aufzug, Fahrstuhl","ascenseur(m)","m","ascenseur"]
["Auge=œil(m)","Auge","œil(m)","m","œil"]
["Aussicht=la vue","Aussicht","la vue","","la vue"]
["Auto=la voiture","Auto","la voiture","","la voiture"]
["Bach=le ruisseau","Bach","le ruisseau","","le ruisseau"]
["Bäckerei=la boulangerie","Bäckerei","la boulangerie","","la boulangerie"]
["Bad=salle de bains","Bad","salle de bains","","salle de bains"]
["Bahnhof=la gare","Bahnhof","la gare","","la gare"]
["Balkon=le balcon","Balkon","le balcon","","le balcon"]
["Banane=la banane","Banane","la banane","","la banane"]
["Bass=la basse","Bass","la basse","","la basse"]
["Baum=arbre(m)","Baum","arbre(m)","m","arbre"]
["Bedingung, Zustand=la condition","Bedingung, Zustand","la condition","","la condition"]
["Bedrohung, Gefährung=la menace","Bedrohung, Gefährung","la menace","","la menace"]
["Begleitung, Gesellschaft=la compagnie","Begleitung, Gesellschaft","la compagnie","","la compagnie"]
["Begriff, Fachausdruck=le terme","Begriff, Fachausdruck","le terme","","le terme"]
["Behandlung, Verarztung, Verarbeitung=le traitement","Behandlung, Verarztung, Verarbeitung","le traitement","","le traitement"]
["Bein=la jambe","Bein","la jambe","","la jambe"]
["Beispiel=exemple","Beispiel","exemple","","exemple"]
["Benehmen, Verhalten=le comportement","Benehmen, Verhalten","le comportement","","le comportement"]
["Berg=le mont","Berg","le mont","","le mont"]
["Bericht, Sachbericht=le rapport","Bericht, Sachbericht","le rapport","","le rapport"]
["Beruf, Gewerbe, Handwerk=le métier","Beruf, Gewerbe, Handwerk","le métier","","le métier"]
["Beschäftigung=occupation(f)","Beschäftigung","occupation(f)","f","occupation"]
["Besitz=la possession","Besitz","la possession","","la possession"]
["Besuch=la visite","Besuch","la visite","","la visite"]
["Bett=le lit","Bett","le lit","","le lit"]
["Beutel, Tüte, Tasche=le sac","Beutel, Tüte, Tasche","le sac","","le sac"]
["Bevölkerung=la population","Bevölkerung","la population","","la population"]
["Bewegung, Schwung=le mouvement","Bewegung, Schwung","le mouvement","","le mouvement"]
["Beweis, Nachweis=la preuve","Beweis, Nachweis","la preuve","","la preuve"]
["Bewilligung, Genehmigung=le consentement","Bewilligung, Genehmigung","le consentement","","le consentement"]
["Bier=la bière","Bier","la bière","","la bière"]
["Bild, Abbildung=image(f)","Bild, Abbildung","image(f)","f","image"]
["Bildung, Ausbildung, Erziehung=éducation(f)","Bildung, Ausbildung, Erziehung","éducation(f)","f","éducation"]
["Birne=la poire","Birne","la poire","","la poire"]
["Blume=la fleur","Blume","la fleur","","la fleur"]
["Blut=le sang","Blut","le sang","","le sang"]
["Boden, Erde, Land=le sol","Boden, Erde, Land","le sol","","le sol"]
["Boot, Schiff=le bateau","Boot, Schiff","le bateau","","le bateau"]
["Brief; Buchstabe=la lettre","Brief; Buchstabe","la lettre","","la lettre"]
["Brot=le pain","Brot","le pain","","le pain"]
["Bruder=le frère","Bruder","le frère","","le frère"]
["Buch=le livre",{"$f":"LEFT(A69,FIND(\"=\",A69)-1)","v":"Buch"},{"$f":"MID(A69,FIND(\"=\",A69)+1,LEN(A69))","v":"le livre"},{"$f":"IF(ISERROR(FIND(\"(f)\",C69)),(IF(ISERROR(FIND(\"(m)\",C69)),\"\",\"m\")),\"f\")","v":""},{"$f":"IF(D69=\"\",C69,LEFT(C69,SEARCH(\"(\",C69)-1))","v":"le livre"}]
["Bürger=le citoyen","Bürger","le citoyen","","le citoyen"]
["Bürgerin=la citoyenne",{"$f":"LEFT(A71,FIND(\"=\",A71)-1)","v":"Bürgerin"},{"$f":"MID(A71,FIND(\"=\",A71)+1,LEN(A71))","v":"la citoyenne"},{"$f":"IF(ISERROR(FIND(\"(f)\",C71)),(IF(ISERROR(FIND(\"(m)\",C71)),\"\",\"m\")),\"f\")","v":""},{"$f":"IF(D71=\"\",C71,LEFT(C71,SEARCH(\"(\",C71)-1))","v":"la citoyenne"}]
["Büro, Arbeitszimmer=le bureau","Büro, Arbeitszimmer","le bureau","","le bureau"]
["Bus=le bus","Bus","le bus","","le bus"]
["Butter=le beurre","Butter","le beurre","","le beurre"]
["Dach=le toit","Dach","le toit","","le toit"]
["die Nachrichten=les informations","die Nachrichten","les informations","","les informations"]
["Dienst, Service, Bedienung=le service","Dienst, Service, Bedienung","le service","","le service"]
["Dienstag=le mardi","Dienstag","le mardi","","le mardi"]
["Diskussion, Streitgespräch, Durchsprache=la discussion","Diskussion, Streitgespräch, Durchsprache","la discussion","","la discussion"]
["Doktor:in, Arzt, Ärztin=le docteur, la docteur","Doktor:in, Arzt, Ärztin","le docteur, la docteur","","le docteur, la docteur"]
["Donnerstag=le jeudi","Donnerstag","le jeudi","","le jeudi"]
["Dorf=le village","Dorf","le village","","le village"]
["Droge=la drogue","Droge","la drogue","","la drogue"]
["Druck=la pression","Druck","la pression","","la pression"]
["Dusche=la douche","Dusche","la douche","","la douche"]
["Ehe=le mariage","Ehe","le mariage","","le mariage"]
["Ehemann=le marie","Ehemann","le marie","","le marie"]
["Ei=œuf(m)","Ei","œuf(m)","m","œuf"]
["Eigentümerin=la propriétaire","Eigentümerin","la propriétaire","","la propriétaire"]
["Eigentümer=le propriétaire",{"$f":"LEFT(A90,FIND(\"=\",A90)-1)","v":"Eigentümer"},{"$f":"MID(A90,FIND(\"=\",A90)+1,LEN(A90))","v":"le propriétaire"},{"$f":"IF(ISERROR(FIND(\"(f)\",C90)),(IF(ISERROR(FIND(\"(m)\",C90)),\"\",\"m\")),\"f\")","v":""},{"$f":"IF(D90=\"\",C90,LEFT(C90,SEARCH(\"(\",C90)-1))","v":"le propriétaire"}]
["Eltern=les parents","Eltern","les parents","","les parents"]
["Energie, Tatkraft=énergie","Energie, Tatkraft","énergie","","énergie"]
["Enkel(sohn)=le petit-fils","Enkel(sohn)","le petit-fils","","le petit-fils"]
["Enkelin=la petite-fille","Enkelin","la petite-fille","","la petite-fille"]
["Entscheidung=la décision","Entscheidung","la décision","","la décision"]
["Entwicklung=le développement","Entwicklung","le développement","","le développement"]
["Ereignis, Geschehen=évènement(m)","Ereignis, Geschehen","évènement(m)","m","évènement"]
["Erfahrung=expérience(f)","Erfahrung","expérience(f)","f","expérience"]
["Erfolg=le succès","Erfolg","le succès","","le succès"]
["Ergebnis=le résultat","Ergebnis","le résultat","","le résultat"]
["Erinnerung (Sache und Mental)=le souvenir","Erinnerung (Sache und Mental)","le souvenir","","le souvenir"]
["Erklärung, Aussage=la déclaration","Erklärung, Aussage","la déclaration","","la déclaration"]
["Erwachsener=adulte(m)","Erwachsener","adulte(m)","m","adulte"]
["Erzählung, Bericht=le récit","Erzählung, Bericht","le récit","","le récit"]
["Essen, Speise=le repas","Essen, Speise","le repas","","le repas"]
["Fähigkeit, Können=la capacité","Fähigkeit, Können","la capacité","","la capacité"]
["Fahrkarte=le ticket","Fahrkarte","le ticket","","le ticket"]
["Fahrrad=le vélo","Fahrrad","le vélo","","le vélo"]
["Familie=la famille","Familie","la famille","","la famille"]
["Farbe=la couleur","Farbe","la couleur","","la couleur"]
["Feind=ennemi, ennemie","Feind","ennemi, ennemie","","ennemi, ennemie"]
["Fels, Felsbrocken=la roche","Fels, Felsbrocken","la roche","","la roche"]
["Fenster=la fenêtre","Fenster","la fenêtre","","la fenêtre"]
["Feuer=le feu","Feuer","le feu","","le feu"]
["Film=le film","Film","le film","","le film"]
["Finger=le doigt","Finger","le doigt","","le doigt"]
["Fisch=le poisson","Fisch","le poisson","","le poisson"]
["Fleisch=la viande","Fleisch","la viande","","la viande"]
["Flöte=la flûte","Flöte","la flûte","","la flûte"]
["Flughafen=aéroport(m)","Flughafen","aéroport(m)","m","aéroport"]
["Flugzeug=avion(m)","Flugzeug","avion(m)","m","avion"]
["Fluss=la rivière","Fluss","la rivière","","la rivière"]
["Foto, Bild=la photo","Foto, Bild","la photo","","la photo"]
["Frage=la question","Frage","la question","","la question"]
["Frau, Ehefrau=la femme","Frau, Ehefrau","la femme","","la femme"]
["Freitag=le vendredi","Freitag","le vendredi","","le vendredi"]
["Freund:in=ami, amie","Freund:in","ami, amie","","ami, amie"]
["Friede=la paix","Friede","la paix","","la paix"]
["Frühling=le printemps","Frühling","le printemps","","le printemps"]
["Frühstück=le petit-déjeuner","Frühstück","le petit-déjeuner","","le petit-déjeuner"]
["Fuß=le pied","Fuß","le pied","","le pied"]
["Gabel=la fourchette","Gabel","la fourchette","","la fourchette"]
["Garten=le jardin","Garten","le jardin","","le jardin"]
["Gebäude=le bâtiment","Gebäude","le bâtiment","","le bâtiment"]
["Gebirge=la montagne",{"$f":"LEFT(A135,FIND(\"=\",A135)-1)","v":"Gebirge"},{"$f":"MID(A135,FIND(\"=\",A135)+1,LEN(A135))","v":"la montagne"},{"$f":"IF(ISERROR(FIND(\"(f)\",C135)),(IF(ISERROR(FIND(\"(m)\",C135)),\"\",\"m\")),\"f\")","v":""},{"$f":"IF(D135=\"\",C135,LEFT(C135,SEARCH(\"(\",C135)-1))","v":"la montagne"}]
["Gedanke, Denken=la pensée","Gedanke, Denken","la pensée","","la pensée"]
["Geduld=la patience","Geduld","la patience","","la patience"]
["Gefühl, Empfinden=le sentiment","Gefühl, Empfinden","le sentiment","","le sentiment"]
["Gegend, Gebiet=la région","Gegend, Gebiet","la région","","la région"]
["Gegenstand, Objekt=objet(m)","Gegenstand, Objekt","objet(m)","m","objet"]
["Geige=le violon","Geige","le violon","","le violon"]
["Gelände, Grundstück=le terrain","Gelände, Grundstück","le terrain","","le terrain"]
["Geld=argent(m)","Geld","argent(m)","m","argent"]
["Gelegenheit=opportunité(f)","Gelegenheit","opportunité(f)","f","opportunité"]
["Gemälde, Bild; Tafel=le tableau","Gemälde, Bild; Tafel","le tableau","","le tableau"]
["Gemeinschaft, Gemeinwesen=la communauté","Gemeinschaft, Gemeinwesen","la communauté","","la communauté"]
["Gemüse=les légumes(m)","Gemüse","les légumes(m)","m","les légumes"]
["Geräusch, Lärm, Krach=le bruit","Geräusch, Lärm, Krach","le bruit","","le bruit"]
["Geschäft, Laden=le magasin","Geschäft, Laden","le magasin","","le magasin"]
["Geschichte, Erzählung=histoire(f)","Geschichte, Erzählung","histoire(f)","f","histoire"]
["Geschmack, Geschmackssinn, Vorliebe=le goût","Geschmack, Geschmackssinn, Vorliebe","le goût","","le goût"]
["Gesetz=la loi","Gesetz","la loi","","la loi"]
["Gesicht=le visage","Gesicht","le visage","","le visage"]
["Gestalt, Person, Mensch=la personne","Gestalt, Person, Mensch","la personne","","la personne"]
["Gewalt=la violence","Gewalt","la violence","","la violence"]
["Gewicht, Köpergewicht, Last=le poids","Gewicht, Köpergewicht, Last","le poids","","le poids"]
["Gewinn=le profit","Gewinn","le profit","","le profit"]
["Gitarre=la guitare","Gitarre","la guitare","","la guitare"]
["Glas=le verre","Glas","le verre","","le verre"]
["Größe, Schuhgröße=la pointure","Größe, Schuhgröße","la pointure","","la pointure"]
["Großeltern=les grands-parents","Großeltern","les grands-parents","","les grands-parents"]
["Grund, Ursache=la cause","Grund, Ursache","la cause","","la cause"]
["Gruppe=le groupe","Gruppe","le groupe","","le groupe"]
["Gürtel=la ceinture","Gürtel","la ceinture","","la ceinture"]
["Haare=le cheveu","Haare","le cheveu","","le cheveu"]
["Hafen=le port","Hafen","le port","","le port"]
["Halbbruder=le demi-frère","Halbbruder","le demi-frère","","le demi-frère"]
["Halbschwester=la demi-sœur","Halbschwester","la demi-sœur","","la demi-sœur"]
["Hand=la main","Hand","la main","","la main"]
["Handlung, Tat, Aktion=action(f)","Handlung, Tat, Aktion","action(f)","f","action"]
["Handy=le portable","Handy","le portable","","le portable"]
["Hauptstadt=la capitale","Hauptstadt","la capitale","","la capitale"]
["Haus, Heim, Zuhause=la maison","Haus, Heim, Zuhause","la maison","","la maison"]
["Haut=la peau","Haut","la peau","","la peau"]
["Heimat, Heimatland, Herkunftsland=pays d'origine","Heimat, Heimatland, Herkunftsland","pays d'origine","","pays d'origine"]
["Heizung=le chauffage","Heizung","le chauffage","","le chauffage"]
["Hemd=la chemise","Hemd","la chemise","","la chemise"]
["Herausforderung=le défi","Herausforderung","le défi","","le défi"]
["Herbst=automne(m)","Herbst","automne(m)","m","automne"]
["Herz=le cœur","Herz","le cœur","","le cœur"]
["Hitze, Wärme=la chaleur","Hitze, Wärme","la chaleur","","la chaleur"]
["Holz=le bois","Holz","le bois","","le bois"]
["Honig=le miel","Honig","le miel","","le miel"]
["Hose=le pantalon","Hose","le pantalon","","le pantalon"]
["Hotel=hôtel(m)","Hotel","hôtel(m)","m","hôtel"]
["Hund=le chien","Hund","le chien","","le chien"]
["Idee=idée(f)","Idee","idée(f)","f","idée"]
["Insel=ile(f)","Insel","ile(f)","f","ile"]
["Interesse; Zins=intérêt(m)","Interesse; Zins","intérêt(m)","m","intérêt"]
["Jacke=la veste","Jacke","la veste","","la veste"]
["Jahr=an(m)","Jahr","an(m)","m","an"]
["Jahreszeit=la saison","Jahreszeit","la saison","","la saison"]
["Jahrhundert=le siècle","Jahrhundert","le siècle","","le siècle"]
["Jahrzehnt=la décennie","Jahrzehnt","la décennie","","la décennie"]
["Junge, Sohn=le fils","Junge, Sohn","le fils","","le fils"]
["Kaffee=le café","Kaffee","le café","","le café"]
["Kante, Ufer, Rand=le bord","Kante, Ufer, Rand","le bord","","le bord"]
["Karotte=la carotte","Karotte","la carotte","","la carotte"]
["Karriere, beruflicher Werdegang=la carrière",{"$f":"LEFT(A199,FIND(\"=\",A199)-1)","v":"Karriere, beruflicher Werdegang"},{"$f":"MID(A199,FIND(\"=\",A199)+1,LEN(A199))","v":"la carrière"},{"$f":"IF(ISERROR(FIND(\"(f)\",C199)),(IF(ISERROR(FIND(\"(m)\",C199)),\"\",\"m\")),\"f\")","v":""},{"$f":"IF(D199=\"\",C199,LEFT(C199,SEARCH(\"(\",C199)-1))","v":"la carrière"}]
["Karte, Landkarte, Speisekarte=la carte","Karte, Landkarte, Speisekarte","la carte","","la carte"]
["Käse=le fromage","Käse","le fromage","","le fromage"]
["Kater, Katze=la chatte(f)","Kater, Katze","la chatte(f)","f","la chatte"]
["Kater, Kater=le chat(m)",{"$f":"LEFT(A203,FIND(\"=\",A203)-1)","v":"Kater, Kater"},{"$f":"MID(A203,FIND(\"=\",A203)+1,LEN(A203))","v":"le chat(m)"},{"$f":"IF(ISERROR(FIND(\"(f)\",C203)),(IF(ISERROR(FIND(\"(m)\",C203)),\"\",\"m\")),\"f\")","v":"m"},{"$f":"IF(D203=\"\",C203,LEFT(C203,SEARCH(\"(\",C203)-1))","v":"le chat"}]
["Kilo=le kilo","Kilo","le kilo","","le kilo"]
["Kind=enfant(m)","Kind","enfant(m)","m","enfant"]
["Kindergarten, Kindertagesstätte=la maternelle","Kindergarten, Kindertagesstätte","la maternelle","","la maternelle"]
["Kino=le ciné(ma)","Kino","le ciné(ma)","","le ciné(ma)"]
["Kirche=église(f)","Kirche","église(f)","f","église"]
["Kiste, Schachtel, Dose=la boite","Kiste, Schachtel, Dose","la boite","","la boite"]
["Klavier=le piano","Klavier","le piano","","le piano"]
["Kleid=la robe","Kleid","la robe","","la robe"]
["Kleingeld, Münze; Wechselgeld=la monnaie","Kleingeld, Münze; Wechselgeld","la monnaie","","la monnaie"]
["Konsequenz, Nachspiel, Folge=la conséquence","Konsequenz, Nachspiel, Folge","la conséquence","","la conséquence"]
["Kopf=la tête","Kopf","la tête","","la tête"]
["Körper=le corps","Körper","le corps","","le corps"]
["Körperpflege, Waschen=la toilette","Körperpflege, Waschen","la toilette","","la toilette"]
["Kosten=le cout","Kosten","le cout","","le cout"]
["Krankenhaus=hôpital(m)","Krankenhaus","hôpital(m)","m","hôpital"]
["Krankheit=la maladie","Krankheit","la maladie","","la maladie"]
["Krieg=la guerre","Krieg","la guerre","","la guerre"]
["Küche=la cuisine","Küche","la cuisine","","la cuisine"]
["Kunst=art(m)","Kunst","art(m)","m","art"]
["Kurs, Verlauf, Lehrgang, Ablauf=le cours","Kurs, Verlauf, Lehrgang, Ablauf","le cours","","le cours"]
["Lächeln, Schmunzeln=le sourire","Lächeln, Schmunzeln","le sourire","","le sourire"]
["Lampe=la lampe","Lampe","la lampe","","la lampe"]
["Land, Gebiet=le pays","Land, Gebiet","le pays","","le pays"]
["Lautstärke, Menge, Masse=le volume","Lautstärke, Menge, Masse","le volume","","le volume"]
["Leben=la vie","Leben","la vie","","la vie"]
["Lebensmittelladen=épicerie(f)","Lebensmittelladen","épicerie(f)","f","épicerie"]
["Lehre, Theorie=la théorie","Lehre, Theorie","la théorie","","la théorie"]
["Lehrerin=enseignante(f)","Lehrerin","enseignante(f)","f","enseignante"]
["Lehrer=enseignant(m)",{"$f":"LEFT(A232,FIND(\"=\",A232)-1)","v":"Lehrer"},{"$f":"MID(A232,FIND(\"=\",A232)+1,LEN(A232))","v":"enseignant(m)"},{"$f":"IF(ISERROR(FIND(\"(f)\",C232)),(IF(ISERROR(FIND(\"(m)\",C232)),\"\",\"m\")),\"f\")","v":"m"},{"$f":"IF(D232=\"\",C232,LEFT(C232,SEARCH(\"(\",C232)-1))","v":"enseignant"}]
["Leistung=la performance","Leistung","la performance","","la performance"]
["Leute, Menschen=les gens(m)","Leute, Menschen","les gens(m)","m","les gens"]
["Lied=la chanson","Lied","la chanson","","la chanson"]
["Linsen=les lentilles(f)","Linsen","les lentilles(f)","f","les lentilles"]
["Liste=la liste","Liste","la liste","","la liste"]
["Liter=le litre","Liter","le litre","","le litre"]
["Löffel=la cuillère","Löffel","la cuillère","","la cuillère"]
["Luft=air(m)","Luft","air(m)","m","air"]
["Macht, Stärke, Gewalt=la puissance","Macht, Stärke, Gewalt","la puissance","","la puissance"]
["Mädchen=la (jeune) fille","Mädchen","la (jeune) fille","","la (jeune) fille"]
["Mann=homme(m)","Mann","homme(m)","m","homme"]
["Markt=le marché","Markt","le marché","","le marché"]
["Marmelade=la confiture","Marmelade","la confiture","","la confiture"]
["Maß, Ausmaß, Dimension=la dimension","Maß, Ausmaß, Dimension","la dimension","","la dimension"]
["Medikament=le médicament","Medikament","le médicament","","le médicament"]
["Meer=la mer","Meer","la mer","","la mer"]
["Mehl=la farine","Mehl","la farine","","la farine"]
["Mehrheit=la plupart","Mehrheit","la plupart","","la plupart"]
["Menge=la quantité","Menge","la quantité","","la quantité"]
["Messer=le couteau","Messer","le couteau","","le couteau"]
["Methode, Verfahren=la méthode","Methode, Verfahren","la méthode","","la méthode"]
["Milch=le lait","Milch","le lait","","le lait"]
["Minute=la minute","Minute","la minute","","la minute"]
["Mittag, Mittagszeit=le midi","Mittag, Mittagszeit","le midi","","le midi"]
["Mittagessen=le déjeuner","Mittagessen","le déjeuner","","le déjeuner"]
["Mittwoch=le mercredi","Mittwoch","le mercredi","","le mercredi"]
["Möbel=le meuble","Möbel","le meuble","","le meuble"]
["Möglichkeit=la possibilité","Möglichkeit","la possibilité","","la possibilité"]
["Moment, Augenblick=le moment","Moment, Augenblick","le moment","","le moment"]
["Monat=le mois","Monat","le mois","","le mois"]
["Montag=le lundi","Montag","le lundi","","le lundi"]
["Motiv; Muster; Anlass=le motif","Motiv; Muster; Anlass","le motif","","le motif"]
["Mund=la bouche",{"$f":"LEFT(A265,FIND(\"=\",A265)-1)","v":"Mund"},{"$f":"MID(A265,FIND(\"=\",A265)+1,LEN(A265))","v":"la bouche"},{"$f":"IF(ISERROR(FIND(\"(f)\",C265)),(IF(ISERROR(FIND(\"(m)\",C265)),\"\",\"m\")),\"f\")","v":""},{"$f":"IF(D265=\"\",C265,LEFT(C265,SEARCH(\"(\",C265)-1))","v":"la bouche"}]
["Musik=la musique","Musik","la musique","","la musique"]
["Mutter=la mère","Mutter","la mère","","la mère"]
["Nachbarin=la voisine","Nachbarin","la voisine","","la voisine"]
["Nachbar=le voisin",{"$f":"LEFT(A269,FIND(\"=\",A269)-1)","v":"Nachbar"},{"$f":"MID(A269,FIND(\"=\",A269)+1,LEN(A269))","v":"le voisin"},{"$f":"IF(ISERROR(FIND(\"(f)\",C269)),(IF(ISERROR(FIND(\"(m)\",C269)),\"\",\"m\")),\"f\")","v":""},{"$f":"IF(D269=\"\",C269,LEFT(C269,SEARCH(\"(\",C269)-1))","v":"le voisin"}]
["Nachmittag=après-midi","Nachmittag","après-midi","","après-midi"]
["Nachricht, Botschaft, Mitteilung=le message","Nachricht, Botschaft, Mitteilung","le message","","le message"]
["Nacht=la nuit","Nacht","la nuit","","la nuit"]
["Name=le nom","Name","le nom","","le nom"]
["Nase=le nez","Nase","le nez","","le nez"]
["Natur=la nature","Natur","la nature","","la nature"]
["Nebel=le brouillard","Nebel","le brouillard","","le brouillard"]
["Neffe=le neveu","Neffe","le neveu","","le neveu"]
["Nichte=la nièce","Nichte","la nièce","","la nièce"]
["Norden=le nord","Norden","le nord","","le nord"]
["Nudeln=les pâtes","Nudeln","les pâtes","","les pâtes"]
["Nutzen, Vorteil=avantage(m)","Nutzen, Vorteil","avantage(m)","m","avantage"]
["Oberfläche=la surface","Oberfläche","la surface","","la surface"]
["Obst=les fruits(m)","Obst","les fruits(m)","m","les fruits"]
["Ohr=oreille(f)","Ohr","oreille(f)","f","oreille"]
["Öl=huile(f)","Öl","huile(f)","f","huile"]
["Onkel=oncle(m)","Onkel","oncle(m)","m","oncle"]
["Opfer=la victime","Opfer","la victime","","la victime"]
["Osten=est(m)","Osten","est(m)","m","est"]
["Papier=le papier","Papier","le papier","","le papier"]
["Paprika=le poivron","Paprika","le poivron","","le poivron"]
["Parkplatz=le parking","Parkplatz","le parking","","le parking"]
["Party, Feier=la fête","Party, Feier","la fête","","la fête"]
["Personal, Belegschaft=le personnel","Personal, Belegschaft","le personnel","","le personnel"]
["Pfad, Weg=le sentier","Pfad, Weg","le sentier","","le sentier"]
["Pfeffer=le poivre","Pfeffer","le poivre","","le poivre"]
["Pflanze, Gewächs=la plante","Pflanze, Gewächs","la plante","","la plante"]
["Pflicht, Auflage=obligation(f)","Pflicht, Auflage","obligation(f)","f","obligation"]
["Platz, Ort, Stelle=le lieu","Platz, Ort, Stelle","le lieu","","le lieu"]
["Platz, Raum, Lücke=espace(m)","Platz, Raum, Lücke","espace(m)","m","espace"]
["Polizei=la police","Polizei","la police","","la police"]
["Präsidentin=la présidente","Präsidentin","la présidente","","la présidente"]
["Präsident=le président",{"$f":"LEFT(A302,FIND(\"=\",A302)-1)","v":"Präsident"},{"$f":"MID(A302,FIND(\"=\",A302)+1,LEN(A302))","v":"le président"},{"$f":"IF(ISERROR(FIND(\"(f)\",C302)),(IF(ISERROR(FIND(\"(m)\",C302)),\"\",\"m\")),\"f\")","v":""},{"$f":"IF(D302=\"\",C302,LEFT(C302,SEARCH(\"(\",C302)-1))","v":"le président"}]
["Preis, Wert=le prix","Preis, Wert","le prix","","le prix"]
["Problem=le problème","Problem","le problème","","le problème"]
["Produkt=le produit","Produkt","le produit","","le produit"]
["Produktion, Herstellung=la production","Produktion, Herstellung","la production","","la production"]
["Projekt, Vorhaben=le projet","Projekt, Vorhaben","le projet","","le projet"]
["Qualität, Beschaffenheit=la qualité","Qualität, Beschaffenheit","la qualité","","la qualité"]
["Quelle, Ursprung=la source","Quelle, Ursprung","la source","","la source"]
["Radio, Rundfunk=la radio","Radio, Rundfunk","la radio","","la radio"]
["Rechnung=addition(f)","Rechnung","addition(f)","f","addition"]
["Recht, Gerechtigkeit=la justice","Recht, Gerechtigkeit","la justice","","la justice"]
["Rede=le discours","Rede","le discours","","le discours"]
["Regal=étagère(f)","Regal","étagère(f)","f","étagère"]
["Regen=la pluie","Regen","la pluie","","la pluie"]
["Regierung=le gouvernement","Regierung","le gouvernement","","le gouvernement"]
["Reis=le riz","Reis","le riz","","le riz"]
["Reise=le voyage","Reise","le voyage","","le voyage"]
["Restaurant=le restaurant","Restaurant","le restaurant","","le restaurant"]
["Richtung=la direction","Richtung","la direction","","la direction"]
["Risiko, Wagnis=le risque","Risiko, Wagnis","le risque","","le risque"]
["Rock=la jupe","Rock","la jupe","","la jupe"]
["Rücken, Rückseite=le dos","Rücken, Rückseite","le dos","","le dos"]
["Sache, Ding=la chose","Sache, Ding","la chose","","la chose"]
["Saft=le jus","Saft","le jus","","le jus"]
["Salz=le sel","Salz","le sel","","le sel"]
["Sammlung, Kollektion=la collection","Sammlung, Kollektion","la collection","","la collection"]
["Samstag=le samedi","Samstag","le samedi","","le samedi"]
["Sand=le sable","Sand","le sable","","le sable"]
["Schinken=le jambon","Schinken","le jambon","","le jambon"]
["Schlafzimmer=chambre à coucher(f)",{"$f":"LEFT(A331,FIND(\"=\",A331)-1)","v":"Schlafzimmer"},{"$f":"MID(A331,FIND(\"=\",A331)+1,LEN(A331))","v":"chambre à coucher(f)"},{"$f":"IF(ISERROR(FIND(\"(f)\",C331)),(IF(ISERROR(FIND(\"(m)\",C331)),\"\",\"m\")),\"f\")","v":"f"},{"$f":"IF(D331=\"\",C331,LEFT(C331,SEARCH(\"(\",C331)-1))","v":"chambre à coucher"}]
["Schlag, Hieb=le coup","Schlag, Hieb","le coup","","le coup"]
["Schlüssel=la clé","Schlüssel","la clé","","la clé"]
["Schmerz=la douleur","Schmerz","la douleur","","la douleur"]
["Schnee=la neige","Schnee","la neige","","la neige"]
["Schrank, Kleiderschrank=armoire(f)","Schrank, Kleiderschrank","armoire(f)","f","armoire"]
["Schuh=la chaussure","Schuh","la chaussure","","la chaussure"]
["Schule=école(f)","Schule","école(f)","f","école"]
["Schulter=épaule(f)","Schulter","épaule(f)","f","épaule"]
["Schuss, Schießen, Schießerei=le tir","Schuss, Schießen, Schießerei","le tir","","le tir"]
["Schwager=le beau-frère","Schwager","le beau-frère","","le beau-frère"]
["Schwägerin=la belle-sœur","Schwägerin","la belle-sœur","","la belle-sœur"]
["Schwester=la sœur","Schwester","la sœur","","la sœur"]
["Schwierigkeit=la difficulté","Schwierigkeit","la difficulté","","la difficulté"]
["See=le lac","See","le lac","","le lac"]
["Sehenswürdigkeit=site touristique","Sehenswürdigkeit","site touristique","","site touristique"]
["Seife=le savon","Seife","le savon","","le savon"]
["Seite, Blatt=la page","Seite, Blatt","la page","","la page"]
["Seite, Seitenlänge, Richtung=le côté","Seite, Seitenlänge, Richtung","le côté","","le côté"]
["Sekunde=la seconde","Sekunde","la seconde","","la seconde"]
["Sessel=le fauteuil","Sessel","le fauteuil","","le fauteuil"]
["Sicherheit, Geborgenheit=la sécurité","Sicherheit, Geborgenheit","la sécurité","","la sécurité"]
["Situation, Lage, Sachlage=la situation","Situation, Lage, Sachlage","la situation","","la situation"]
["Sitz, Sitzgelegenheit, Sitzplatz=le siége","Sitz, Sitzgelegenheit, Sitzplatz","le siége","","le siége"]
["Sitzbank=le banc","Sitzbank","le banc","","le banc"]
["Soldat:in=le soldat, la soldate","Soldat:in","le soldat, la soldate","","le soldat, la soldate"]
["Sommer=été(m)","Sommer","été(m)","m","été"]
["Sonne=le soleil","Sonne","le soleil","","le soleil"]
["Sonntag=le dimanche","Sonntag","le dimanche","","le dimanche"]
["Spiel=le jeu","Spiel","le jeu","","le jeu"]
["Spieler:in=le joueur, la joueuse","Spieler:in","le joueur, la joueuse","","le joueur, la joueuse"]
["Sport=le sport","Sport","le sport","","le sport"]
["Sprache; Zunge=la langue","Sprache; Zunge","la langue","","la langue"]
["Stadium, Phase=la phase","Stadium, Phase","la phase","","la phase"]
["Stadt=la cité","Stadt","la cité","","la cité"]
["Standard=le standard","Standard","le standard","","le standard"]
["Stelle, Lage=la position","Stelle, Lage","la position","","la position"]
["Stern=étoile(f)","Stern","étoile(f)","f","étoile"]
["Steuer=la taxe","Steuer","la taxe","","la taxe"]
["Stift=le stylo","Stift","le stylo","","le stylo"]
["Stimme=la voix","Stimme","la voix","","la voix"]
["Stockwerk=étage(m)","Stockwerk","étage(m)","m","étage"]
["Stoß, Schock, Aufprall=le choc","Stoß, Schock, Aufprall","le choc","","le choc"]
["Strand=la plage","Strand","la plage","","la plage"]
["Straße=la rue","Straße","la rue","","la rue"]
["Straße, Weg, Fahrspur=la voie","Straße, Weg, Fahrspur","la voie","","la voie"]
["Straßenbahn=le tram","Straßenbahn","le tram","","le tram"]
["Streit, Zank=la dispute","Streit, Zank","la dispute","","la dispute"]
["Strom=électricité(f)","Strom","électricité(f)","f","électricité"]
["Stück=la pièce","Stück","la pièce","","la pièce"]
["Student=étudiant(m)","Student","étudiant(m)","m","étudiant"]
["Studentin=étudiante(f)",{"$f":"LEFT(A382,FIND(\"=\",A382)-1)","v":"Studentin"},{"$f":"MID(A382,FIND(\"=\",A382)+1,LEN(A382))","v":"étudiante(f)"},{"$f":"IF(ISERROR(FIND(\"(f)\",C382)),(IF(ISERROR(FIND(\"(m)\",C382)),\"\",\"m\")),\"f\")","v":"f"},{"$f":"IF(D382=\"\",C382,LEFT(C382,SEARCH(\"(\",C382)-1))","v":"étudiante"}]
["Stuhl=la chaise","Stuhl","la chaise","","la chaise"]
["Stunde=heure(f)","Stunde","heure(f)","f","heure"]
["Sturm, Unwetter=la tempête","Sturm, Unwetter","la tempête","","la tempête"]
["Süden=le sud","Süden","le sud","","le sud"]
["Suppe=la soupe","Suppe","la soupe","","la soupe"]
["Tag=le jour","Tag","le jour","","le jour"]
["Tankstelle=la station-essence","Tankstelle","la station-essence","","la station-essence"]
["Tante=la tante","Tante","la tante","","la tante"]
["Tasche, Serviette, Handtuch=la serviette","Tasche, Serviette, Handtuch","la serviette","","la serviette"]
["Tasse=la tasse","Tasse","la tasse","","la tasse"]
["Tatsache, Fakt=le fait","Tatsache, Fakt","le fait","","le fait"]
["Tee=le thé","Tee","le thé","","le thé"]
["Teil, Anteil=la part","Teil, Anteil","la part","","la part"]
["Teilnehmerin=la participante",{"$f":"LEFT(A396,FIND(\"=\",A396)-1)","v":"Teilnehmerin"},{"$f":"MID(A396,FIND(\"=\",A396)+1,LEN(A396))","v":"la participante"},{"$f":"IF(ISERROR(FIND(\"(f)\",C396)),(IF(ISERROR(FIND(\"(m)\",C396)),\"\",\"m\")),\"f\")","v":""},{"$f":"IF(D396=\"\",C396,LEFT(C396,SEARCH(\"(\",C396)-1))","v":"la participante"}]
["Teilnehmer=le participant",{"$f":"LEFT(A397,FIND(\"=\",A397)-1)","v":"Teilnehmer"},{"$f":"MID(A397,FIND(\"=\",A397)+1,LEN(A397))","v":"le participant"},{"$f":"IF(ISERROR(FIND(\"(f)\",C397)),(IF(ISERROR(FIND(\"(m)\",C397)),\"\",\"m\")),\"f\")","v":""},{"$f":"IF(D397=\"\",C397,LEFT(C397,SEARCH(\"(\",C397)-1))","v":"le participant"}]
["Teller=assiette(f)","Teller","assiette(f)","f","assiette"]
["Teppich=le tapis","Teppich","le tapis","","le tapis"]
["Theater, Schauplatz=le théâtre","Theater, Schauplatz","le théâtre","","le théâtre"]
["Tier=animal(m)","Tier","animal(m)","m","animal"]
["Tisch=la table","Tisch","la table","","la table"]
["Tochter=la fille","Tochter","la fille","","la fille"]
["Tod=la mort","Tod","la mort","","la mort"]
["Toilette=les toilettes(f)","Toilette","les toilettes(f)","f","les toilettes"]
["Tomate=la tomate","Tomate","la tomate","","la tomate"]
["Traum=le rêve","Traum","le rêve","","le rêve"]
["Treppe=escalier(m)","Treppe","escalier(m)","m","escalier"]
["Tür=la porte","Tür","la porte","","la porte"]
["Turm, Tour, Rundfahrt=le tour","Turm, Tour, Rundfahrt","le tour","","le tour"]
["U-Bahn=le métro","U-Bahn","le métro","","le métro"]
["Umwelt, Umfeld, Umgebung=environnement(m)","Umwelt, Umfeld, Umgebung","environnement(m)","m","environnement"]
["Unannehmlichkeit, Ärger=ennui(m)","Unannehmlichkeit, Ärger","ennui(m)","m","ennui"]
["Unterschied=la différance","Unterschied","la différance","","la différance"]
["Vater=le père","Vater","le père","","le père"]
["Verantwortung=la responsabilité","Verantwortung","la responsabilité","","la responsabilité"]
["Verbrechen=le crime","Verbrechen","le crime","","le crime"]
["Verfahren, Prozedur=la procédure","Verfahren, Prozedur","la procédure","","la procédure"]
["Verhältnis, Beziehung=la liaison","Verhältnis, Beziehung","la liaison","","la liaison"]
["Verlust=la perte","Verlust","la perte","","la perte"]
["Vernunft, Verstand=la raison","Vernunft, Verstand","la raison","","la raison"]
["Verteidigung, Abwehr; Verbot=la défense","Verteidigung, Abwehr; Verbot","la défense","","la défense"]
["Vogel=oiseau(m)","Vogel","oiseau(m)","m","oiseau"]
["Vorderseite, Vorderteil, Vordergrund=le devant","Vorderseite, Vorderteil, Vordergrund","le devant","","le devant"]
["Vorhang=le rideau","Vorhang","le rideau","","le rideau"]
["Vormittag, Morgen=le matin","Vormittag, Morgen","le matin","","le matin"]
["Vorrat, Lager=la réserve","Vorrat, Lager","la réserve","","la réserve"]
["Vorschrift, Ordnung=le règlement","Vorschrift, Ordnung","le règlement","","le règlement"]
["Waffe=arme(f)","Waffe","arme(f)","f","arme"]
["Wahl (pol.)=élection(f)","Wahl (pol.)","élection(f)","f","élection"]
["Wahl, Auswahl, Wahlmöglichkeit=le choix","Wahl, Auswahl, Wahlmöglichkeit","le choix","","le choix"]
["Wahrheit, Wirklichkeit=la vérité","Wahrheit, Wirklichkeit","la vérité","","la vérité"]
["Wand, Mauer=le mur","Wand, Mauer","le mur","","le mur"]
["Waschbecken=le lavabo","Waschbecken","le lavabo","","le lavabo"]
["Wasser=eau(f)","Wasser","eau(f)","f","eau"]
["Weg=le chemin","Weg","le chemin","","le chemin"]
["Wein=le vin","Wein","le vin","","le vin"]
["Welt, Erde, Leute=le monde","Welt, Erde, Leute","le monde","","le monde"]
["Werk, Fabrik, Industrieanlage=usine(f)","Werk, Fabrik, Industrieanlage","usine(f)","f","usine"]
["Wert, Bedeutung=la valeur","Wert, Bedeutung","la valeur","","la valeur"]
["Westen=ouest(m)","Westen","ouest(m)","m","ouest"]
["Wind=le vent","Wind","le vent","","le vent"]
["Winter=hiver(m)","Winter","hiver(m)","m","hiver"]
["Wirklichkeit=la réalité","Wirklichkeit","la réalité","","la réalité"]
["Wissen=le savoir","Wissen","le savoir","","le savoir"]
["Woche=la semaine","Woche","la semaine","","la semaine"]
["Wochenende=le week-end","Wochenende","le week-end","","le week-end"]
["Wohnzimmer=salle de séjour","Wohnzimmer","salle de séjour","","salle de séjour"]
["Wolke=le nuage","Wolke","le nuage","","le nuage"]
["Wort=le mot","Wort","le mot","","le mot"]
["Wurst=la saucisse","Wurst","la saucisse","","la saucisse"]
["Zahl=le chiffre","Zahl","le chiffre","","le chiffre"]
["Zeichen, Anzeichen, Vorbote=le signe","Zeichen, Anzeichen, Vorbote","le signe","","le signe"]
["Zeile, Linie=la ligne","Zeile, Linie","la ligne","","la ligne"]
["Zeit, Wetter=le temps","Zeit, Wetter","le temps","","le temps"]
["Zeitung=le journal","Zeitung","le journal","","le journal"]
["Zentrum=le centre","Zentrum","le centre","","le centre"]
["Ziel, Bestimmungsort=la destination","Ziel, Bestimmungsort","la destination","","la destination"]
["Zimmer=la chambre","Zimmer","la chambre","","la chambre"]
["Zucker=le sucre","Zucker","le sucre","","le sucre"]
["Zufall=le hasard",{"$f":"LEFT(A461,FIND(\"=\",A461)-1)","v":"Zufall"},{"$f":"MID(A461,FIND(\"=\",A461)+1,LEN(A461))","v":"le hasard"},{"$f":"IF(ISERROR(FIND(\"(f)\",C461)),(IF(ISERROR(FIND(\"(m)\",C461)),\"\",\"m\")),\"f\")","v":""},{"$f":"IF(D461=\"\",C461,LEFT(C461,SEARCH(\"(\",C461)-1))","v":"le hasard"}]
["Zug=le train","Zug","le train","","le train"]
["Zukunft=avenir(m)","Zukunft","avenir(m)","m","avenir"]
["Zuschauer=le spectateur","Zuschauer","le spectateur","","le spectateur"]
["Zuschauerin=la spectatrice",{"$f":"LEFT(A465,FIND(\"=\",A465)-1)","v":"Zuschauerin"},{"$f":"MID(A465,FIND(\"=\",A465)+1,LEN(A465))","v":"la spectatrice"},{"$f":"IF(ISERROR(FIND(\"(f)\",C465)),(IF(ISERROR(FIND(\"(m)\",C465)),\"\",\"m\")),\"f\")","v":""},{"$f":"IF(D465=\"\",C465,LEFT(C465,SEARCH(\"(\",C465)-1))","v":"la spectatrice"}]
["Zustand, Verfassung, Befindlichkeit=état(m)","Zustand, Verfassung, Befindlichkeit","état(m)","m","état"]
["Zwiebel=ognon(m)","Zwiebel","ognon(m)","m","ognon"]
["(aus-)rufen, herausschreien=crier","(aus-)rufen, herausschreien","crier","","crier"]
["(jemandem etwas) geben=donner (qc à qn)","(jemandem etwas) geben","donner (qc à qn)","","donner (qc à qn)"]
["(jemandem) antworten=répondre (à qn)","(jemandem) antworten","répondre (à qn)","","répondre (à qn)"]
["(jemanden) anlügen, belügen=mentir (à qn)","(jemanden) anlügen, belügen","mentir (à qn)","","mentir (à qn)"]
["abschicken, versenden=envoyer","abschicken, versenden","envoyer","","envoyer"]
["abwägen, erwägen=considérer","abwägen, erwägen","considérer","","considérer"]
["ändern=changer","ändern","changer","","changer"]
["anfassen, berühren=toucher","anfassen, berühren","toucher","","toucher"]
["ankommen=arriver","ankommen","arriver","","arriver"]
["ankommen (an), eintreffen=arriver (à)","ankommen (an), eintreffen","arriver (à)","","arriver (à)"]
["ansteigen, wachsen=augmenter","ansteigen, wachsen","augmenter","","augmenter"]
["arbeiten=travailler","arbeiten","travailler","","travailler"]
["atmen=respirer","atmen","respirer","","respirer"]
["aufladen, beladen=charger","aufladen, beladen","charger","","charger"]
["aufmachen, öffnen=ouvrir","aufmachen, öffnen","ouvrir","","ouvrir"]
["aufstehen=se lever (de)","aufstehen","se lever (de)","","se lever (de)"]
["aufsteigen, ansteigen=monter","aufsteigen, ansteigen","monter","","monter"]
["aufwachen=se réveiller","aufwachen","se réveiller","","se réveiller"]
["aufzeigen, darstellen, beweisen=montrer","aufzeigen, darstellen, beweisen","montrer","","montrer"]
["ausgeben, austragen, verteilen=distribuer","ausgeben, austragen, verteilen","distribuer","","distribuer"]
["bedauern (dass)=regretter (que)","bedauern (dass)","regretter (que)","","regretter (que)"]
["bedecken, zudecken=couvrir","bedecken, zudecken","couvrir","","couvrir"]
["bedeuten, besagen=signifier","bedeuten, besagen","signifier","","signifier"]
["beenden, abschließen=finir","beenden, abschließen","finir","","finir"]
["begreifen, verstehen=comprendre","begreifen, verstehen","comprendre","","comprendre"]
["behalten, aufbewahren, aufpassen=garder","behalten, aufbewahren, aufpassen","garder","","garder"]
["behandeln=traiter","behandeln","traiter","","traiter"]
["belegen, beweisen=prouver","belegen, beweisen","prouver","","prouver"]
["bemerken, wahrnehmen=remarquer","bemerken, wahrnehmen","remarquer","","remarquer"]
["berichten (über)=faire un rapport (sur)","berichten (über)","faire un rapport (sur)","","faire un rapport (sur)"]
["beschließen, entscheiden=décider","beschließen, entscheiden","décider","","décider"]
["beschreiben, schildern=décrire","beschreiben, schildern","décrire","","décrire"]
["beschützen, schützen=protéger","beschützen, schützen","protéger","","protéger"]
["bestimmen, ermitteln=déterminer","bestimmen, ermitteln","déterminer","","déterminer"]
["besuchen, besichtigen=visiter","besuchen, besichtigen","visiter","","visiter"]
["bezahlen=payer","bezahlen","payer","","payer"]
["bilden, formen=former","bilden, formen","former","","former"]
["bleiben, übrigbleiben=rester","bleiben, übrigbleiben","rester","","rester"]
["denken, meinen=penser","denken, meinen","penser","","penser"]
["eintreten, hereinkommen=entrer","eintreten, hereinkommen","entrer","","entrer"]
["entdecken, herausfinden=découvrir","entdecken, herausfinden","découvrir","","découvrir"]
["enthalten, beinhalten=contenir","enthalten, beinhalten","contenir","","contenir"]
["entkommen, entfliehen=s'evader","entkommen, entfliehen","s'evader","","s'evader"]
["entwickeln=développer","entwickeln","développer","","développer"]
["erbeuten, fangen, fassen=capturer","erbeuten, fangen, fassen","capturer","","capturer"]
["erhalten, bekommen=recevoir","erhalten, bekommen","recevoir","","recevoir"]
["erhalten, bewahren=préserver","erhalten, bewahren","préserver","","préserver"]
["erkennen, wiedererkennen=reconnaitre","erkennen, wiedererkennen","reconnaitre","","reconnaitre"]
["erklären=expliquer","erklären","expliquer","","expliquer"]
["erschaffen=créer","erschaffen","créer","","créer"]
["erscheinen, auftauchen=apparaitre","erscheinen, auftauchen","apparaitre","","apparaitre"]
["erwarten, warten=attendre","erwarten, warten","attendre","","attendre"]
["erzählen=raconter","erzählen","raconter","","raconter"]
["essen=manger","essen","manger","","manger"]
["etwas aufdecken, preisgeben=révéler qc","etwas aufdecken, preisgeben","révéler qc","","révéler qc"]
["etwas aushalten, ertragen=endurer qc","etwas aushalten, ertragen","endurer qc","","endurer qc"]
["etwas bauen, erbauen=bâtir qc","etwas bauen, erbauen","bâtir qc","","bâtir qc"]
["etwas beginnen=commencer qc","etwas beginnen","commencer qc","","commencer qc"]
["etwas besitzen, über etwas verfügen=détenir qc",{"$f":"LEFT(A526,FIND(\"=\",A526)-1)","v":"etwas besitzen, über etwas verfügen"},{"$f":"MID(A526,FIND(\"=\",A526)+1,LEN(A526))","v":"détenir qc"},{"$f":"IF(ISERROR(FIND(\"(f)\",C526)),(IF(ISERROR(FIND(\"(m)\",C526)),\"\",\"m\")),\"f\")","v":""},{"$f":"IF(D526=\"\",C526,LEFT(C526,SEARCH(\"(\",C526)-1))","v":"détenir qc"}]
["etwas bestellen=commander qc","etwas bestellen","commander qc","","commander qc"]
["etwas bewegen, befördern=transporter qc","etwas bewegen, befördern","transporter qc","","transporter qc"]
["etwas bezeichnen, hinweisen auf=indiquer qc","etwas bezeichnen, hinweisen auf","indiquer qc","","indiquer qc"]
["etwas brauchen=avoir besoin de qc","etwas brauchen","avoir besoin de qc","","avoir besoin de qc"]
["etwas bringen=apporter qc","etwas bringen","apporter qc","","apporter qc"]
["etwas dazugeben, dazufügen=ajouter qc","etwas dazugeben, dazufügen","ajouter qc","","ajouter qc"]
["etwas dürfen=avoir le droit de","etwas dürfen","avoir le droit de","","avoir le droit de"]
["etwas erhalten, bekommen=obtenir qc","etwas erhalten, bekommen","obtenir qc","","obtenir qc"]
["etwas erreichen, schaffen=parvenir à qc","etwas erreichen, schaffen","parvenir à qc","","parvenir à qc"]
["etwas fallen lassen=laisser tomber qn","etwas fallen lassen","laisser tomber qn","","laisser tomber qn"]
["etwas holen=aller chercher qc","etwas holen","aller chercher qc","","aller chercher qc"]
["etwas meiden, vermeiden=éviter qc","etwas meiden, vermeiden","éviter qc","","éviter qc"]
["etwas stellen, aufstellen=mettre qc","etwas stellen, aufstellen","mettre qc","","mettre qc"]
["etwas verarbeiten=travailler qc","etwas verarbeiten","travailler qc","","travailler qc"]
["etwas vermuten, annehmen=présumer qc","etwas vermuten, annehmen","présumer qc","","présumer qc"]
["etwas versäumen, verpassen=manquer qc","etwas versäumen, verpassen","manquer qc","","manquer qc"]
["etwas verwenden, gebrauchen=employer qc","etwas verwenden, gebrauchen","employer qc","","employer qc"]
["etwas zulassen=permettre qc","etwas zulassen","permettre qc","","permettre qc"]
["fahren (am Steuer)=conduire","fahren (am Steuer)","conduire","","conduire"]
["fallen, stürzen=tomber","fallen, stürzen","tomber","","tomber"]
["finden, herausbekommen=trouver","finden, herausbekommen","trouver","","trouver"]
["fliegen=voler","fliegen","voler","","voler"]
["folgen=suivre","folgen","suivre","","suivre"]
["fortsetzen, weitermachen=continuer","fortsetzen, weitermachen","continuer","","continuer"]
["frieren=avoir froid","frieren","avoir froid","","avoir froid"]
["fühlen=sentir","fühlen","sentir","","sentir"]
["gehen, fahren=aller","gehen, fahren","aller","","aller"]
["geschehen, passieren=se passer","geschehen, passieren","se passer","","se passer"]
["glauben=croire","glauben","croire","","croire"]
["haben=avoir","haben","avoir","","avoir"]
["halten, festhalten=tenir","halten, festhalten","tenir","","tenir"]
["handeln, verfahren=agir","handeln, verfahren","agir","","agir"]
["heiraten=se marier","heiraten","se marier","","se marier"]
["heißen=s'appeler","heißen","s'appeler","","s'appeler"]
["helfen=aider","helfen","aider","","aider"]
["herausbringen, veröffentlichen=publier","herausbringen, veröffentlichen","publier","","publier"]
["herstellen, erstellen, ansiedeln=établir","herstellen, erstellen, ansiedeln","établir","","établir"]
["hoffen=espérer","hoffen","espérer","","espérer"]
["hören=écouter","hören","écouter","","écouter"]
["in etwas einwilligen, einverstanden sein=consentir à","in etwas einwilligen, einverstanden sein","consentir à","","consentir à"]
["jemandem etwas anbieten=offrir qc à qn","jemandem etwas anbieten","offrir qc à qn","","offrir qc à qn"]
["jemanden / etwas kennen=connaitre","jemanden / etwas kennen","connaitre","","connaitre"]
["jemanden besuchen=aller voir qn","jemanden besuchen","aller voir qn","","aller voir qn"]
["jemanden etwas fragen=demander qc à qn","jemanden etwas fragen","demander qc à qn","","demander qc à qn"]
["jemanden etwas lehren=apprendre qc à qn","jemanden etwas lehren","apprendre qc à qn","","apprendre qc à qn"]
["jemanden kennenlernen=faire la connaissance de qn","jemanden kennenlernen","faire la connaissance de qn","","faire la connaissance de qn"]
["kaufen=acheter","kaufen","acheter","","acheter"]
["kommen=venir","kommen","venir","","venir"]
["können=pouvoir","können","pouvoir","","pouvoir"]
["lächeln, schmunzeln=sourire","lächeln, schmunzeln","sourire","","sourire"]
["lassen, hinterlassen, belassen=laisser","lassen, hinterlassen, belassen","laisser","","laisser"]
["laufen, funktionieren=fonctionner","laufen, funktionieren","fonctionner","","fonctionner"]
["läuten, klingeln=sonner","läuten, klingeln","sonner","","sonner"]
["leben=vivre","leben","vivre","","vivre"]
["legen, setzen, stellen=poser","legen, setzen, stellen","poser","","poser"]
["leiten, führen=mener","leiten, führen","mener","","mener"]
["lernen=apprendre","lernen","apprendre","","apprendre"]
["lesen=lire","lesen","lire","","lire"]
["lieben, verehren=adorer","lieben, verehren","adorer","","adorer"]
["losgehen, weggehen=partir","losgehen, weggehen","partir","","partir"]
["meinen, glauben, erachten=juger","meinen, glauben, erachten","juger","","juger"]
["messen, ausmessen=mesurer","messen, ausmessen","mesurer","","mesurer"]
["mögen, lieben=aimer","mögen, lieben","aimer","","aimer"]
["müssen, sollen=devoir",{"$f":"LEFT(A590,FIND(\"=\",A590)-1)","v":"müssen, sollen"},{"$f":"MID(A590,FIND(\"=\",A590)+1,LEN(A590))","v":"devoir"},{"$f":"IF(ISERROR(FIND(\"(f)\",C590)),(IF(ISERROR(FIND(\"(m)\",C590)),\"\",\"m\")),\"f\")","v":""},{"$f":"IF(D590=\"\",C590,LEFT(C590,SEARCH(\"(\",C590)-1))","v":"devoir"}]
["nachdenken (über)=réfléchir (à)","nachdenken (über)","réfléchir (à)","","réfléchir (à)"]
["nehmen, einnehmen=prendre","nehmen, einnehmen","prendre","","prendre"]
["organisieren, einteilen=organiser","organisieren, einteilen","organiser","","organiser"]
["probieren, anprobieren, testen=essayer","probieren, anprobieren, testen","essayer","","essayer"]
["produzieren, erzeugen=produire","produzieren, erzeugen","produire","","produire"]
["raten, erraten=deviner","raten, erraten","deviner","","deviner"]
["reisen=voyager","reisen","voyager","","voyager"]
["rennen, laufen=courir","rennen, laufen","courir","","courir"]
["retten, in Sicherheit bringen=sauver","retten, in Sicherheit bringen","sauver","","sauver"]
["rufen, ausrufen=s'exclamer","rufen, ausrufen","s'exclamer","","s'exclamer"]
["rufen, ausrufen, anrufen=appeler","rufen, ausrufen, anrufen","appeler","","appeler"]
["sagen=dire","sagen","dire","","dire"]
["schieben, drängen=pousser","schieben, drängen","pousser","","pousser"]
["schießen, abschießen, töten=abattre","schießen, abschießen, töten","abattre","","abattre"]
["schlafen=dormir","schlafen","dormir","","dormir"]
["schlagen, kämpfen=battre ","schlagen, kämpfen","battre ","","battre "]
["schlagen, schütteln=frapper","schlagen, schütteln","frapper","","frapper"]
["schließen=fermer","schließen","fermer","","fermer"]
["schneiden=couper","schneiden","couper","","couper"]
["schreiben=écrire","schreiben","écrire","","écrire"]
["schreien, weinen=pleurer","schreien, weinen","pleurer","","pleurer"]
["schütteln, hin und her bewegen=agiter","schütteln, hin und her bewegen","agiter","","agiter"]
["schwimmen=nager","schwimmen","nager","","nager"]
["sehen, blicken, anschauen=regarder","sehen, blicken, anschauen","regarder","","regarder"]
["sehen, ein-, durchsehen=voir","sehen, ein-, durchsehen","voir","","voir"]
["sein=être","sein","être","","être"]
["sich ausruhen=se reposer","sich ausruhen","se reposer","","se reposer"]
["sich befinden=se trouver","sich befinden","se trouver","","se trouver"]
["sich bei jemandem für etwas bedanken=remercier qn de qc","sich bei jemandem für etwas bedanken","remercier qn de qc","","remercier qn de qc"]
["sich erinnern=se rappeler","sich erinnern","se rappeler","","se rappeler"]
["sich etwas / jemandem nähern=s'approcher de qc / qn","sich etwas / jemandem nähern","s'approcher de qc / qn","","s'approcher de qc / qn"]
["sich etwas gestatten, gönnen=se permettre qc","sich etwas gestatten, gönnen","se permettre qc","","se permettre qc"]
["sich mit jemandem streiten=se disputer avec qn","sich mit jemandem streiten","se disputer avec qn","","se disputer avec qn"]
["sich niederlassen, sich setzen=s'installer","sich niederlassen, sich setzen","s'installer","","s'installer"]
["sich sorgen=s'inquiéter","sich sorgen","s'inquiéter","","s'inquiéter"]
["sich treffen=se rencontrer","sich treffen","se rencontrer","","se rencontrer"]
["sich um jemanden / etwas kümmern=prendre soin de qc / qn","sich um jemanden / etwas kümmern","prendre soin de qc / qn","","prendre soin de qc / qn"]
["sich verstehen=s'entendre","sich verstehen","s'entendre","","s'entendre"]
["singen=chanter","singen","chanter","","chanter"]
["sinken, abnehmen=diminuer","sinken, abnehmen","diminuer","","diminuer"]
["sitzen=être assis/e","sitzen","être assis/e","","être assis/e"]
["spazieren gehen=se promener","spazieren gehen","se promener","","se promener"]
["spielen=jouer","spielen","jouer","","jouer"]
["sprechen=parler","sprechen","parler","","parler"]
["stoppen, aufhören, anhalten=arrêter","stoppen, aufhören, anhalten","arrêter","","arrêter"]
["studieren, lernen=étudier","studieren, lernen","étudier","","étudier"]
["suchen=chercher","suchen","chercher","","chercher"]
["teilen, gemeinsam nutzen=partager","teilen, gemeinsam nutzen","partager","","partager"]
["tragen=porter","tragen","porter","","porter"]
["träumen=rêver","träumen","rêver","","rêver"]
["trinken=boire","trinken","boire","","boire"]
["tun, machen=faire","tun, machen","faire","","faire"]
["überprüfen, prüfen=contrôler","überprüfen, prüfen","contrôler","","contrôler"]
["umdrehen, zurückkehren=retourner","umdrehen, zurückkehren","retourner","","retourner"]
["umkommen, absterben, eingehen=mourir","umkommen, absterben, eingehen","mourir","","mourir"]
["verbessern, nachbessern=améliorer","verbessern, nachbessern","améliorer","","améliorer"]
["verdienen, gewinnen=gagner","verdienen, gewinnen","gagner","","gagner"]
["vergessen, versäumen=oublier","vergessen, versäumen","oublier","","oublier"]
["vergleichen=comparer","vergleichen","comparer","","comparer"]
["verkaufen=vendre","verkaufen","vendre","","vendre"]
["verlieren (jdn / etwas)=perdre (qn / qc)","verlieren (jdn / etwas)","perdre (qn / qc)","","perdre (qn / qc)"]
["versuchen, schmecken, probieren=goûter","versuchen, schmecken, probieren","goûter","","goûter"]
["verursachen=causer","verursachen","causer","","causer"]
["vorbeigehen, vorübergehen; ablegen (Prüfung)=passer",{"$f":"LEFT(A654,FIND(\"=\",A654)-1)","v":"vorbeigehen, vorübergehen; ablegen (Prüfung)"},{"$f":"MID(A654,FIND(\"=\",A654)+1,LEN(A654))","v":"passer"},{"$f":"IF(ISERROR(FIND(\"(f)\",C654)),(IF(ISERROR(FIND(\"(m)\",C654)),\"\",\"m\")),\"f\")","v":""},{"$f":"IF(D654=\"\",C654,LEFT(C654,SEARCH(\"(\",C654)-1))","v":"passer"}]
["vorbereiten, zubereiten=préparer","vorbereiten, zubereiten","préparer","","préparer"]
["vorhanden sein, existieren=exister","vorhanden sein, existieren","exister","","exister"]
["vorschlagen=proposer","vorschlagen","proposer","","proposer"]
["vorstellen, ausdenken=imaginer","vorstellen, ausdenken","imaginer","","imaginer"]
["wagen, riskieren=risquer","wagen, riskieren","risquer","","risquer"]
["wählen, abstimmen=voter","wählen, abstimmen","voter","","voter"]
["wählen, aussuchen=choisir","wählen, aussuchen","choisir","","choisir"]
["warnen, verhindern=prévenir","warnen, verhindern","prévenir","","prévenir"]
["wenden, abbiegen=tourner","wenden, abbiegen","tourner","","tourner"]
["werden=devenir","werden","devenir","","devenir"]
["werfen=jeter","werfen","jeter","","jeter"]
["wissen=savoir","wissen","savoir","","savoir"]
["wohnen, bewohnen=habiter","wohnen, bewohnen","habiter","","habiter"]
["wollen=vouloir","wollen","vouloir","","vouloir"]
["wünschen, begehren=désirer","wünschen, begehren","désirer","","désirer"]
["zeichnen, gestalten=dessiner","zeichnen, gestalten","dessiner","","dessiner"]
["ziehen=tirer","ziehen","tirer","","tirer"]
["zu Fuß gehen=aller à pied","zu Fuß gehen","aller à pied","","aller à pied"]
["ähnlich, gleichartig=similaire","ähnlich, gleichartig","similaire","","similaire"]
["allein=seul, -e","allein","seul, -e","","seul, -e"]
["alt=vieux, vieille","alt","vieux, vieille","","vieux, vieille"]
["angenehm, behaglich=agréable","angenehm, behaglich","agréable","","agréable"]
["arm=pauvre","arm","pauvre","","pauvre"]
["bedeckt, bewölkt=couvert, -e","bedeckt, bewölkt","couvert, -e","","couvert, -e"]
["bedeutsam=signifiant, -e","bedeutsam","signifiant, -e","","signifiant, -e"]
["beliebt, bevorzugt=favori, -te","beliebt, bevorzugt","favori, -te","","favori, -te"]
["beruflich, Berufs...=professionnel, -le","beruflich, Berufs...","professionnel, -le","","professionnel, -le"]
["billig=à bas prix","billig","à bas prix","","à bas prix"]
["blau=bleu, -e","blau","bleu, -e","","bleu, -e"]
["böse, bösartig=méchant, -e","böse, bösartig","méchant, -e","","méchant, -e"]
["braun=brun, -e","braun","brun, -e","","brun, -e"]
["breit, groß=fort, -e","breit, groß","fort, -e","","fort, -e"]
["dankbar=reconnaissant, -e","dankbar","reconnaissant, -e","","reconnaissant, -e"]
["dick, fett, groß=gros, -se","dick, fett, groß","gros, -se","","gros, -se"]
["dreckig, verschmutzt=crasseux, -euse","dreckig, verschmutzt","crasseux, -euse","","crasseux, -euse"]
["dumm, töricht=idiot, -e","dumm, töricht","idiot, -e","","idiot, -e"]
["dunkel, düster=sombre","dunkel, düster","sombre","","sombre"]
["dünn, zart, zierlich=fin, -e","dünn, zart, zierlich","fin, -e","","fin, -e"]
["eben, flach=plat, -e","eben, flach","plat, -e","","plat, -e"]
["ehrbar, ehrenvoll=honorable","ehrbar, ehrenvoll","honorable","","honorable"]
["ehrgeizig, strebsam=ambitieux, -euse","ehrgeizig, strebsam","ambitieux, -euse","","ambitieux, -euse"]
["ehrlich, aufrichtig=sincère","ehrlich, aufrichtig","sincère","","sincère"]
["eifrig, emsig, engagiert=diligent, -e","eifrig, emsig, engagiert","diligent, -e","","diligent, -e"]
["einfach, schlicht=simple","einfach, schlicht","simple","","simple"]
["empfindlich, zerbrechlich=fragile","empfindlich, zerbrechlich","fragile","","fragile"]
["endgültig, definitiv=définitiv, -e","endgültig, definitiv","définitiv, -e","","définitiv, -e"]
["energisch, tatkräftig=énergique","energisch, tatkräftig","énergique","","énergique"]
["entschlossen, bestimmt=déterminé, -e","entschlossen, bestimmt","déterminé, -e","","déterminé, -e"]
["ernst, ernsthaft=sérieux, -euse","ernst, ernsthaft","sérieux, -euse","","sérieux, -euse"]
["erregt, aufgeregt=excité, -e","erregt, aufgeregt","excité, -e","","excité, -e"]
["falsch=faux, -sse","falsch","faux, -sse","","faux, -sse"]
["fertig, bereit=prêt, -e","fertig, bereit","prêt, -e","","prêt, -e"]
["fest, hart=dur, -e","fest, hart","dur, -e","","dur, -e"]
["feucht=humide","feucht","humide","","humide"]
["frei, unbehindert=libre","frei, unbehindert","libre","","libre"]
["fremd, ausländisch=étranger, -ère","fremd, ausländisch","étranger, -ère","","étranger, -ère"]
["freundlich, nett, lieg=gentil, -le","freundlich, nett, lieg","gentil, -le","","gentil, -le"]
["frisch=frais, fraiche","frisch","frais, fraiche","","frais, fraiche"]
["froh, glücklich=heureux, -euse","froh, glücklich","heureux, -euse","","heureux, -euse"]
["früher, ehemalig, antik=ancien, -ne","früher, ehemalig, antik","ancien, -ne","","ancien, -ne"]
["furchtbar=terrible","furchtbar","terrible","","terrible"]
["gebildet=cultivé, -e","gebildet","cultivé, -e","","cultivé, -e"]
["geduldig=patient, -e","geduldig","patient, -e","","patient, -e"]
["gefährlich=dangereux, -euse",{"$f":"LEFT(A718,FIND(\"=\",A718)-1)","v":"gefährlich"},{"$f":"MID(A718,FIND(\"=\",A718)+1,LEN(A718))","v":"dangereux, -euse"},{"$f":"IF(ISERROR(FIND(\"(f)\",C718)),(IF(ISERROR(FIND(\"(m)\",C718)),\"\",\"m\")),\"f\")","v":""},{"$f":"IF(D718=\"\",C718,LEFT(C718,SEARCH(\"(\",C718)-1))","v":"dangereux, -euse"}]
["gefällig, amüsant, angenehm=plaisant, -e","gefällig, amüsant, angenehm","plaisant, -e","","plaisant, -e"]
["gegenwärtig, aktuell=actuel, -le","gegenwärtig, aktuell","actuel, -le","","actuel, -le"]
["gelb=jaune","gelb","jaune","","jaune"]
["genug, genügend=suffisant, -e","genug, genügend","suffisant, -e","","suffisant, -e"]
["gerade, rechte/r/s=droit, -e","gerade, rechte/r/s","droit, -e","","droit, -e"]
["gerecht=juste","gerecht","juste","","juste"]
["geringwertig, unterlegen, gering=inférieur, -e","geringwertig, unterlegen, gering","inférieur, -e","","inférieur, -e"]
["gesamt, völlig=total, -e","gesamt, völlig","total, -e","","total, -e"]
["gesund=sain, -e","gesund","sain, -e","","sain, -e"]
["gewaltig, riesig, mächtig=énorme","gewaltig, riesig, mächtig","énorme","","énorme"]
["giftig=toxique","giftig","toxique","","toxique"]
["gleichgültig, teilnahmslos=indifférent, -e","gleichgültig, teilnahmslos","indifférent, -e","","indifférent, -e"]
["glücklich=bienheureux, -euse","glücklich","bienheureux, -euse","","bienheureux, -euse"]
["groß=grand, -e","groß","grand, -e","","grand, -e"]
["großartig, grandios=grandiose","großartig, grandios","grandiose","","grandiose"]
["grün=vert, -e","grün","vert, -e","","vert, -e"]
["gut=bon, -ne","gut","bon, -ne","","bon, -ne"]
["gutaussehend=beau, belle","gutaussehend","beau, belle","","beau, belle"]
["halb=demi, -e","halb","demi, -e","","demi, -e"]
["hässlich=laid, -e","hässlich","laid, -e","","laid, -e"]
["haupt...=principal, -e","haupt...","principal, -e","","principal, -e"]
["herzlich, liebevoll=affectueux, -euse","herzlich, liebevoll","affectueux, -euse","","affectueux, -euse"]
["hoch=haut, -e","hoch","haut, -e","","haut, -e"]
["hübsch=joli, -e","hübsch","joli, -e","","joli, -e"]
["intelligent, klug=intelligent, -e","intelligent, klug","intelligent, -e","","intelligent, -e"]
["interessant=intéressant, -e","interessant","intéressant, -e","","intéressant, -e"]
["international=interantional, -e","international","interantional, -e","","interantional, -e"]
["jung=jeune","jung","jeune","","jeune"]
["kalt=froid, -e","kalt","froid, -e","","froid, -e"]
["kaputt, zerbrochen=cassé, -e","kaputt, zerbrochen","cassé, -e","","cassé, -e"]
["klar, deutlich, hell=clair, -e","klar, deutlich, hell","clair, -e","","clair, -e"]
["klar, rein, pur=pur, -e","klar, rein, pur","pur, -e","","pur, -e"]
["klein=petit, -e","klein","petit, -e","","petit, -e"]
["klug, umsichtig, bedächtig=prudent, -e","klug, umsichtig, bedächtig","prudent, -e","","prudent, -e"]
["köstlich, lecker=délicieux, -euse","köstlich, lecker","délicieux, -euse","","délicieux, -euse"]
["kurz, knapp=court, -e","kurz, knapp","court, -e","","court, -e"]
["lächerlich=ridicule","lächerlich","ridicule","","ridicule"]
["lang, ausgedehnt=long, -ue","lang, ausgedehnt","long, -ue","","long, -ue"]
["langsam, allmählich=lent, -e","langsam, allmählich","lent, -e","","lent, -e"]
["langweilig, ärgerlich=ennuyeux, -euse","langweilig, ärgerlich","ennuyeux, -euse","","ennuyeux, -euse"]
["laut=à grand bruit","laut","à grand bruit","","à grand bruit"]
["leer=vide","leer","vide","","vide"]
["leicht, dünn, mild=léger, légère","leicht, dünn, mild","léger, légère","","léger, légère"]
["leicht, einfach=facile","leicht, einfach","facile","","facile"]
["lustig, witzig=drôle","lustig, witzig","drôle","","drôle"]
["medizinisch=médical, -e","medizinisch","médical, -e","","médical, -e"]
["menschlich, menschenwürdig=humain, -e","menschlich, menschenwürdig","humain, -e","","humain, -e"]
["modern=moderne","modern","moderne","","moderne"]
["möglich=possible","möglich","possible","","possible"]
["müde=fatigué, -e","müde","fatigué, -e","","fatigué, -e"]
["nächste/r/s=prochain, -e","nächste/r/s","prochain, -e","","prochain, -e"]
["nah=proche","nah","proche","","proche"]
["nass=mouillé, -e","nass","mouillé, -e","","mouillé, -e"]
["natürlich=naturel, -le","natürlich","naturel, -le","","naturel, -le"]
["neu=nouveau, -lle","neu","nouveau, -lle","","nouveau, -lle"]
["neugierig=curieux, -euse","neugierig","curieux, -euse","","curieux, -euse"]
["nötig, notwendig=nécessaire","nötig, notwendig","nécessaire","","nécessaire"]
["oberflächlich=superficiel, -le","oberflächlich","superficiel, -le","","superficiel, -le"]
["offen=ouvert, -e","offen","ouvert, -e","","ouvert, -e"]
["öffentlich, staatlich=public, -que","öffentlich, staatlich","public, -que","","public, -que"]
["offiziell, amtlich=officiel, -le","offiziell, amtlich","officiel, -le","","officiel, -le"]
["örtlich, orts...=local, -e","örtlich, orts...","local, -e","","local, -e"]
["packend, spannend=captivant, -e","packend, spannend","captivant, -e","","captivant, -e"]
["persönlich=personnel, -le",{"$f":"LEFT(A782,FIND(\"=\",A782)-1)","v":"persönlich"},{"$f":"MID(A782,FIND(\"=\",A782)+1,LEN(A782))","v":"personnel, -le"},{"$f":"IF(ISERROR(FIND(\"(f)\",C782)),(IF(ISERROR(FIND(\"(m)\",C782)),\"\",\"m\")),\"f\")","v":""},{"$f":"IF(D782=\"\",C782,LEFT(C782,SEARCH(\"(\",C782)-1))","v":"personnel, -le"}]
["politisch=politique","politisch","politique","","politique"]
["positiv=positif, -ve","positiv","positif, -ve","","positif, -ve"]
["privat=privé, -e","privat","privé, -e","","privé, -e"]
["pünktlich=ponctuel, -le","pünktlich","ponctuel, -le","","ponctuel, -le"]
["rauh, barsch, unsanft=rude","rauh, barsch, unsanft","rude","","rude"]
["regnerisch=pluvieux, -euse","regnerisch","pluvieux, -euse","","pluvieux, -euse"]
["reich=riche","reich","riche","","riche"]
["religiös=religieux, -euse","religiös","religieux, -euse","","religieux, -euse"]
["richtig, echt, wahr=vrai, -e","richtig, echt, wahr","vrai, -e","","vrai, -e"]
["roh, unbearbeitet, brutal=brut, -e","roh, unbearbeitet, brutal","brut, -e","","brut, -e"]
["rot=rouge","rot","rouge","","rouge"]
["ruhig, still=tranquille","ruhig, still","tranquille","","tranquille"]
["rund=circulaire","rund","circulaire","","circulaire"]
["rund, kreisrund=rond, -e","rund, kreisrund","rond, -e","","rond, -e"]
["sauber=propre","sauber","propre","","propre"]
["sauer, säuerlich=aigre","sauer, säuerlich","aigre","","aigre"]
["schief, schräg=oblique","schief, schräg","oblique","","oblique"]
["schlau, geistreich=ingénieux, -euse","schlau, geistreich","ingénieux, -euse","","ingénieux, -euse"]
["schlecht, ungut=mauvais, -e","schlecht, ungut","mauvais, -e","","mauvais, -e"]
["schnell=rapide","schnell","rapide","","rapide"]
["schreckhaft, ängstlich=peureux, -euse","schreckhaft, ängstlich","peureux, -euse","","peureux, -euse"]
["schwach, gering=faible","schwach, gering","faible","","faible"]
["schwarz=noir, -e","schwarz","noir, -e","","noir, -e"]
["schwer, beschwerlich=pénible","schwer, beschwerlich","pénible","","pénible"]
["schwierig=difficile","schwierig","difficile","","difficile"]
["sicher, gewiss, bestimmt=certain, -e","sicher, gewiss, bestimmt","certain, -e","","certain, -e"]
["sicher, zuverlässig=sûr, -e","sicher, zuverlässig","sûr, -e","","sûr, -e"]
["Sozial..., gesellschaftlich=social, -e","Sozial..., gesellschaftlich","social, -e","","social, -e"]
["speziell=spécial, -e","speziell","spécial, -e","","spécial, -e"]
["spitz, spitzig=pointu, -e","spitz, spitzig","pointu, -e","","pointu, -e"]
["still, schweigsam, geräuscharm=silencieux, -euse","still, schweigsam, geräuscharm","silencieux, -euse","","silencieux, -euse"]
["süß, zuckerhaltig=sucré, -e","süß, zuckerhaltig","sucré, -e","","sucré, -e"]
["tief, niedrig=bas, -se","tief, niedrig","bas, -se","","bas, -se"]
["toll, großartig=formidable","toll, großartig","formidable","","formidable"]
["tot=mort, -e","tot","mort, -e","","mort, -e"]
["treu, zuverlässig=fidèle","treu, zuverlässig","fidèle","","fidèle"]
["trocken=sec, sèche","trocken","sec, sèche","","sec, sèche"]
["unaufrichtig, unehrlich=insincère","unaufrichtig, unehrlich","insincère","","insincère"]
["unbeholfen, ungeschickt=maladroite, -e","unbeholfen, ungeschickt","maladroite, -e","","maladroite, -e"]
["ungerecht=injuste","ungerecht","injuste","","injuste"]
["ungesund=malsain, -e","ungesund","malsain, -e","","malsain, -e"]
["ungleich=inégalitaire","ungleich","inégalitaire","","inégalitaire"]
["unhöflich, grob=impoli, -e","unhöflich, grob","impoli, -e","","impoli, -e"]
["unsicher, ungewiss=incertain, -e","unsicher, ungewiss","incertain, -e","","incertain, -e"]
["verfügbar, vorhanden=disponible","verfügbar, vorhanden","disponible","","disponible"]
["verschieden(-artig), unterschiedlich=différent, -e","verschieden(-artig), unterschiedlich","différent, -e","","différent, -e"]
["vertrauensvoll, zuversichtlich=confiant, -e","vertrauensvoll, zuversichtlich","confiant, -e","","confiant, -e"]
["voll, gefüllt=plein, -e","voll, gefüllt","plein, -e","","plein, -e"]
["völlig, gesamt=entier, -ière","völlig, gesamt","entier, -ière","","entier, -ière"]
["völlig, umfassend, komplett=complet, -ète","völlig, umfassend, komplett","complet, -ète","","complet, -ète"]
["vorsichtig, achtsam=attentif, -ive","vorsichtig, achtsam","attentif, -ive","","attentif, -ive"]
["wahrscheinlich=probable","wahrscheinlich","probable","","probable"]
["warm=chaud, -e","warm","chaud, -e","","chaud, -e"]
["weich, leise, sanft=doux, douce","weich, leise, sanft","doux, douce","","doux, douce"]
["weiß=blanc, blanche","weiß","blanc, blanche","","blanc, blanche"]
["wertvoll=précieux, -euse","wertvoll","précieux, -euse","","précieux, -euse"]
["wichtig=important, -e","wichtig","important, -e","","important, -e"]
["winzig=minuscule","winzig","minuscule","","minuscule"]
["wirklich, tatsächlich=réel, -le","wirklich, tatsächlich","réel, -le","","réel, -le"]
["wunderbar, herrlich=magnifique","wunderbar, herrlich","magnifique","","magnifique"]
["wunderbar, wundervoll=merveilleux, -euse","wunderbar, wundervoll","merveilleux, -euse","","merveilleux, -euse"]
["zentral=central, -e","zentral","central, -e","","central, -e"]
["zufrieden, froh, wunschlos=content, -e","zufrieden, froh, wunschlos","content, -e","","content, -e"]
["aber=mais",{"$f":"LEFT(A846,FIND(\"=\",A846)-1)","v":"aber"},{"$f":"MID(A846,FIND(\"=\",A846)+1,LEN(A846))","v":"mais"},{"$f":"IF(ISERROR(FIND(\"(f)\",C846)),(IF(ISERROR(FIND(\"(m)\",C846)),\"\",\"m\")),\"f\")","v":""},{"$f":"IF(D846=\"\",C846,LEFT(C846,SEARCH(\"(\",C846)-1))","v":"mais"}]
["alle=tous, toutes","alle","tous, toutes","","tous, toutes"]
["allerdings, dennoch=toutefois","allerdings, dennoch","toutefois","","toutefois"]
["allgemein=généralement","allgemein","généralement","","généralement"]
["an, in, zu, nach=à","an, in, zu, nach","à","","à"]
["andere/r/s=autre","andere/r/s","autre","","autre"]
["anstatt=en lieu de","anstatt","en lieu de","","en lieu de"]
["auch=aussi","auch","aussi","","aussi"]
["auf, über=sur","auf, über","sur","","sur"]
["bald=bientôt","bald","bientôt","","bientôt"]
["beide=les deux","beide","les deux","","les deux"]
["besonders=particulièrement","besonders","particulièrement","","particulièrement"]
["besonders, vor allem=surtout","besonders, vor allem","surtout","","surtout"]
["besser=meilleur, -e","besser","meilleur, -e","","meilleur, -e"]
["bis=jusque","bis","jusque","","jusque"]
["bitte=s'il vous plaît","bitte","s'il vous plaît","","s'il vous plaît"]
["dahinter=derrière","dahinter","derrière","","derrière"]
["danach, dann=après","danach, dann","après","","après"]
["danke=merci","danke","merci","","merci"]
["dann, danach=ensuite","dann, danach","ensuite","","ensuite"]
["darunter=en dessous","darunter","en dessous","","en dessous"]
["dass=que","dass","que","","que"]
["demnach=d'après cela","demnach","d'après cela","","d'après cela"]
["dennoch, trotzdem=pour autant","dennoch, trotzdem","pour autant","","pour autant"]
["der, die, das gleiche=le même, la même","der, die, das gleiche","le même, la même","","le même, la même"]
["die ganze Nacht=toute la nuit","die ganze Nacht","toute la nuit","","toute la nuit"]
["die ganze Zeit=tout le temps","die ganze Zeit","tout le temps","","tout le temps"]
["diese/r/s=celui-ci, celle-ci","diese/r/s","celui-ci, celle-ci","","celui-ci, celle-ci"]
["diese/r/s=celui-là, celle-là","diese/r/s","celui-là, celle-là","","celui-là, celle-là"]
["diese/r/s=ce, cette","diese/r/s","ce, cette","","ce, cette"]
["dort=là-bas","dort","là-bas","","là-bas"]
["draußen, nach draußen=au dehors","draußen, nach draußen","au dehors","","au dehors"]
["drinnen, hinein=dedans","drinnen, hinein","dedans","","dedans"]
["durch, je=par","durch, je","par","","par"]
["eigentlich, tatsächlich=en fait","eigentlich, tatsächlich","en fait","","en fait"]
["ein wenig=un peu","ein wenig","un peu","","un peu"]
["einige, gewisse (Leute)=certains","einige, gewisse (Leute)","certains","","certains"]
["einmal=une fois","einmal","une fois","","une fois"]
["endlich, letztlich=finalement","endlich, letztlich","finalement","","finalement"]
["Entschuldigung!=Pardon!","Entschuldigung!","Pardon!","","Pardon!"]
["es gibt=il y a","es gibt","il y a","","il y a"]
["etwa, circa=quelque","etwa, circa","quelque","","quelque"]
["etwas=quelque chose","etwas","quelque chose","","quelque chose"]
["fast, beinahe=presque","fast, beinahe","presque","","presque"]
["für immer=à jamais","für immer","à jamais","","à jamais"]
["gegen=contre","gegen","contre","","contre"]
["gemäß, laut=d'après","gemäß, laut","d'après","","d'après"]
["genau, pünktlich=exactement","genau, pünktlich","exactement","","exactement"]
["genauso ... wie=aussi ... que","genauso ... wie","aussi ... que","","aussi ... que"]
["gestern=hier","gestern","hier","","hier"]
["gleich, sogar=même","gleich, sogar","même","","même"]
["heute=aujourd'hui","heute","aujourd'hui","","aujourd'hui"]
["heute Abend=ce soir","heute Abend","ce soir","","ce soir"]
["hier=ici","hier","ici","","ici"]
["immer=toujours","immer","toujours","","toujours"]
["in der Nähe=près","in der Nähe","près","","près"]
["in der Tat, faktisch=de fait","in der Tat, faktisch","de fait","","de fait"]
["in, im=dans","in, im","dans","","dans"]
["in, im, ins=en","in, im, ins","en","","en"]
["insgesamt=en tout","insgesamt","en tout","","en tout"]
["irgendjemand, eine/r/s=quelqu'un","irgendjemand, eine/r/s","quelqu'un","","quelqu'un"]
["ja=oui","ja","oui","","oui"]
["jede/r/s=chaque","jede/r/s","chaque","","chaque"]
["jetzt=maintenant","jetzt","maintenant","","maintenant"]
["keine/r/s=ne ... aucun/e",{"$f":"LEFT(A910,FIND(\"=\",A910)-1)","v":"keine/r/s"},{"$f":"MID(A910,FIND(\"=\",A910)+1,LEN(A910))","v":"ne ... aucun/e"},{"$f":"IF(ISERROR(FIND(\"(f)\",C910)),(IF(ISERROR(FIND(\"(m)\",C910)),\"\",\"m\")),\"f\")","v":""},{"$f":"IF(D910=\"\",C910,LEFT(C910,SEARCH(\"(\",C910)-1))","v":"ne ... aucun/e"}]
["kürzlich=récemment","kürzlich","récemment","","récemment"]
["lieber, eher=plutôt","lieber, eher","plutôt","","plutôt"]
["links=à gauche","links","à gauche","","à gauche"]
["manche, ein paar, einige=quelques","manche, ein paar, einige","quelques","","quelques"]
["manchmal=quelquefois","manchmal","quelquefois","","quelquefois"]
["manchmal, mitunter=parfois","manchmal, mitunter","parfois","","parfois"]
["mehr=plus","mehr","plus","","plus"]
["mit=avec","mit","avec","","avec"]
["morgen=demain","morgen","demain","","demain"]
["nach oben, hinauf=vers le haut","nach oben, hinauf","vers le haut","","vers le haut"]
["neben=à côté de","neben","à côté de","","à côté de"]
["nein=non","nein","non","","non"]
["nicht=ne ... pas","nicht","ne ... pas","","ne ... pas"]
["nichts=rien","nichts","rien","","rien"]
["nie=jamais","nie","jamais","","jamais"]
["noch einmal=encore","noch einmal","encore","","encore"]
["normalerweise=normalement","normalerweise","normalement","","normalement"]
["nur=seulement","nur","seulement","","seulement"]
["ob, wenn, falls=si","ob, wenn, falls","si","","si"]
["oberhalb, über=au-dessus de","oberhalb, über","au-dessus de","","au-dessus de"]
["obwohl, wohingegen=alors que","obwohl, wohingegen","alors que","","alors que"]
["oder=ou","oder","ou","","ou"]
["offensichtlich, anscheinend=apparemment","offensichtlich, anscheinend","apparemment","","apparemment"]
["oft=souvent","oft","souvent","","souvent"]
["ohne=sans","ohne","sans","","sans"]
["plötzlich=tout à coup","plötzlich","tout à coup","","tout à coup"]
["recht, genug=assez","recht, genug","assez","","assez"]
["rechts=à droite","rechts","à droite","","à droite"]
["schließlich, kurzum=enfin","schließlich, kurzum","enfin","","enfin"]
["schnell, zügig=rapidement","schnell, zügig","rapidement","","rapidement"]
["schon=déjà","schon","déjà","","déjà"]
["sehr=très","sehr","très","","très"]
["seit=depuis","seit","depuis","","depuis"]
["seitens=de la part de","seitens","de la part de","","de la part de"]
["sicherlich, gewiss=certainement","sicherlich, gewiss","certainement","","certainement"]
["so, also=ainsi","so, also","ainsi","","ainsi"]
["sowohl ... als auch=autant ... que","sowohl ... als auch","autant ... que","","autant ... que"]
["später=plus tard","später","plus tard","","plus tard"]
["under=unter=et","under","unter=et","","unter=et"]
["ungefähr=environ","ungefähr","environ","","environ"]
["unten, hinunter=en bas","unten, hinunter","en bas","","en bas"]
["unter=sous","unter","sous","","sous"]
["unter anderem=entre autres","unter anderem","entre autres","","entre autres"]
["viel=beaucoup","viel","beaucoup","","beaucoup"]
["vielleicht=peut-être","vielleicht","peut-être","","peut-être"]
["von, aus=de","von, aus","de","","de"]
["vor (+ Zeitangabe)=il y a","vor (+ Zeitangabe)","il y a","","il y a"]
["vorher=avant","vorher","avant","","avant"]
["vorwärts, voran=en avant","vorwärts, voran","en avant","","en avant"]
["während, derweil=pendant","während, derweil","pendant","","pendant"]
["wahrscheinlich=probablement","wahrscheinlich","probablement","","probablement"]
["wann=quand","wann","quand","","quand"]
["warum=pourquoi","warum","pourquoi","","pourquoi"]
["was=que","was","que","","que"]
["weil=parce que","weil","parce que","","parce que"]
["weit, entfernt=loin","weit, entfernt","loin","","loin"]
["weiter=plus avant","weiter","plus avant","","plus avant"]
["welche/r/s=quel, -le","welche/r/s","quel, -le","","quel, -le"]
["wer=qui","wer","qui","","qui"]
["wie=comment","wie","comment","","comment"]
["wie, als=comme","wie, als","comme","","comme"]
["wirklich=vraiment","wirklich","vraiment","","vraiment"]
["wo=où","wo","où","","où"]
["woher=d'où",{"$f":"LEFT(A974,FIND(\"=\",A974)-1)","v":"woher"},{"$f":"MID(A974,FIND(\"=\",A974)+1,LEN(A974))","v":"d'où"},{"$f":"IF(ISERROR(FIND(\"(f)\",C974)),(IF(ISERROR(FIND(\"(m)\",C974)),\"\",\"m\")),\"f\")","v":""},{"$f":"IF(D974=\"\",C974,LEFT(C974,SEARCH(\"(\",C974)-1))","v":"d'où"}]
["zu (teuer)=trop","zu (teuer)","trop","","trop"]
["zuerst, zunächst=d'abord","zuerst, zunächst","d'abord","","d'abord"]
["zwischen=entre","zwischen","entre","","entre"]
["Ich weiß nicht.=Je ne sais pas.","Ich weiß nicht.","Je ne sais pas.","","Je ne sais pas."]
["Ich verstehe nicht.=Je ne comprends pas.","Ich verstehe nicht.","Je ne comprends pas.","","Je ne comprends pas."]
["Wo ist ...?=Où est ...?","Wo ist ...?","Où est ...?","","Où est ...?"]
["Wo sind Sie?=Vous êtes où?","Wo sind Sie?","Vous êtes où?","","Vous êtes où?"]
["Ich suche ...=Je cherche ...","Ich suche ...","Je cherche ...","","Je cherche ..."]
["Ich brauche ...=Il me faut ...","Ich brauche ...","Il me faut ...","","Il me faut ..."]
["Ich auch.=Moi aussi.","Ich auch.","Moi aussi.","","Moi aussi."]

{"sheet":"Nomen BASIS","index":2,"n_rows":587,"n_cols":6,"rows_kept":587,"cut":false,"hidden":false,"merged":[]}
["STRING","Deutsch","Franz mit Artikel","Artikel","Franz mit Artikel","Franz mit Artikel"]
["Abend=le soir",{"$f":"LEFT(A2,FIND(\"=\",A2)-1)","v":"Abend"},{"$f":"MID(A2,FIND(\"=\",A2)+1,LEN(A2))","v":"le soir"},{"$f":"IF(ISERROR(FIND(\"(f)\",C2)),(IF(ISERROR(FIND(\"(m)\",C2)),\"\",\"m\")),\"f\")","v":""},{"$f":"IF(D2=\"\",C2,LEFT(C2,SEARCH(\"(\",C2)-1))","v":"le soir"},"le soir"]
["Abendessen=le diner",{"$f":"LEFT(A3,FIND(\"=\",A3)-1)","v":"Abendessen"},{"$f":"MID(A3,FIND(\"=\",A3)+1,LEN(A3))","v":"le diner"},{"$f":"IF(ISERROR(FIND(\"(f)\",C3)),(IF(ISERROR(FIND(\"(m)\",C3)),\"\",\"m\")),\"f\")","v":""},{"$f":"IF(D3=\"\",C3,LEFT(C3,SEARCH(\"(\",C3)-1))","v":"le diner"},"le diner"]
["Absicht, Wille=l'intention(f)","Absicht, Wille","l'intention(f)","f","l'intention","l'intention (f)"]
["Adresse=l'adresse(f)","Adresse","l'adresse(f)","f","l'adresse","l'adresse (f)"]
["Alter=l'âge(m)","Alter","l'âge(m)","m","l'âge","l'âge (m)"]
["Angebot=l'offre(f)","Angebot","l'offre(f)","f","l'offre","l'offre (f)"]
["Angelegenheit, Sache, Geschäft=l'affaire(f)","Angelegenheit, Sache, Geschäft","l'affaire(f)","f","l'affaire","l'affaire (f)"]
["Angestellter=l'employé(m)","Angestellter","l'employé(m)","m",{"$f":"IF(D9=\"\",C9,LEFT(C9,SEARCH(\"(\",C9)-1))","v":"l'employé"},"l'employé (m)"]
["Angestellte=l'employée(f)","Angestellte","l'employée(f)","f","l'employée","l'employée (f)"]
["Angst, Furcht=la peur","Angst, Furcht","la peur","","la peur","la peur"]
["Anstrengung, Mühe=l'effort(m)","Anstrengung, Mühe","l'effort(m)","m","l'effort","l'effort (m)"]
["Antwort=la réponse","Antwort","la réponse","","la réponse","la réponse"]
["Apfel=la pomme","Apfel","la pomme","","la pomme","la pomme"]
["Apotheke=la pharmacie","Apotheke","la pharmacie","","la pharmacie","la pharmacie"]
["Arbeit=le travail","Arbeit","le travail","","le travail","le travail"]
["Arbeiterin=la travailleuse","Arbeiterin","la travailleuse","","la travailleuse","la travailleuse"]
["Arbeiter=le travailleur","Arbeiter","le travailleur","","le travailleur","le travailleur"]
["Arm=le bras","Arm","le bras","","le bras","le bras"]
["Art und Weise=la façon","Art und Weise","la façon","","la façon","la façon"]
["Artikel, Ware, Gegenstand=l'article(m)","Artikel, Ware, Gegenstand","l'article(m)","m","l'article","l'article (m)"]
["Aufgabe, Auftrag=la mission","Aufgabe, Auftrag","la mission","","la mission","la mission"]
["Aufgabe, Übung=l'exercice(m)","Aufgabe, Übung","l'exercice(m)","m","l'exercice","l'exercice (m)"]
["Aufmerksamkeit, Achtung=l'attention(f)","Aufmerksamkeit, Achtung","l'attention(f)","f","l'attention","l'attention (f)"]
["Auftrag, Bestellung, Befehl=la commande","Auftrag, Bestellung, Befehl","la commande","","la commande","la commande"]
["Aufzug, Fahrstuhl=l'ascenseur(m)","Aufzug, Fahrstuhl","l'ascenseur(m)","m","l'ascenseur","l'ascenseur (m)"]
["Auge=l'œil(m)","Auge","l'œil(m)","m","l'œil","l'œil (m)"]
["Aussicht=la vue","Aussicht","la vue","","la vue","la vue"]
["Auto=la voiture","Auto","la voiture","","la voiture","la voiture"]
["Bach=le ruisseau","Bach","le ruisseau","","le ruisseau","le ruisseau"]
["Bäckerei=la boulangerie","Bäckerei","la boulangerie","","la boulangerie","la boulangerie"]
["Bad=la salle de bains","Bad","la salle de bains","","la salle de bains","la salle de bains"]
["Bahnhof=la gare","Bahnhof","la gare","","la gare","la gare"]
["Balkon=le balcon","Balkon","le balcon","","le balcon","le balcon"]
["Banane=la banane","Banane","la banane","","la banane","la banane"]
["Bass=la basse","Bass","la basse","","la basse","la basse"]
["Baum=l'arbre(m)","Baum","l'arbre(m)","m","l'arbre","l'arbre (m)"]
["Bedingung, Zustand=la condition","Bedingung, Zustand","la condition","","la condition","la condition"]
["Bedrohung, Gefährung=la menace","Bedrohung, Gefährung","la menace","","la menace","la menace"]
["Begleitung, Gesellschaft=la compagnie","Begleitung, Gesellschaft","la compagnie","","la compagnie","la compagnie"]
["Begriff, Fachausdruck=le terme","Begriff, Fachausdruck","le terme","","le terme","le terme"]
["Behandlung, Verarztung, Verarbeitung=le traitement","Behandlung, Verarztung, Verarbeitung","le traitement","","le traitement","le traitement"]
["Bein=la jambe","Bein","la jambe","","la jambe","la jambe"]
["Beispiel=l'exemple(m)","Beispiel","l'exemple(m)","m","l'exemple","l'exemple (m)"]
["Benehmen, Verhalten=le comportement","Benehmen, Verhalten","le comportement","","le comportement","le comportement"]
["Berg=le mont","Berg","le mont","","le mont","le mont"]
["Bericht, Sachbericht=le rapport","Bericht, Sachbericht","le rapport","","le rapport","le rapport"]
["Beruf, Gewerbe, Handwerk=le métier","Beruf, Gewerbe, Handwerk","le métier","","le métier","le métier"]
["Beschäftigung=l'occupation(f)","Beschäftigung","l'occupation(f)","f","l'occupation","l'occupation (f)"]
["Besitz=la possession","Besitz","la possession","","la possession","la possession"]
["Besuch=la visite","Besuch","la visite","","la visite","la visite"]
["Bett=le lit","Bett","le lit","","le lit","le lit"]
["Beutel, Tüte, Tasche=le sac","Beutel, Tüte, Tasche","le sac","","le sac","le sac"]
["Bevölkerung=la population","Bevölkerung","la population","","la population","la population"]
["Bewegung, Schwung=le mouvement","Bewegung, Schwung","le mouvement","","le mouvement","le mouvement"]
["Beweis, Nachweis=la preuve","Beweis, Nachweis","la preuve","","la preuve","la preuve"]
["Bewilligung, Genehmigung=le consentement","Bewilligung, Genehmigung","le consentement","","le consentement","le consentement"]
["Bier=la bière","Bier","la bière","","la bière","la bière"]
["Bild, Abbildung=l'image(f)","Bild, Abbildung","l'image(f)","f","l'image","l'image (f)"]
["Bildung, Ausbildung, Erziehung=l'éducation(f)","Bildung, Ausbildung, Erziehung","l'éducation(f)","f","l'éducation","l'éducation (f)"]
["Birne=la poire","Birne","la poire","","la poire","la poire"]
["Blume=la fleur","Blume","la fleur","","la fleur","la fleur"]
["Blut=le sang","Blut","le sang","","le sang","le sang"]
["Boden, Erde, Land=le sol","Boden, Erde, Land","le sol","","le sol","le sol"]
["Boot, Schiff=le bateau","Boot, Schiff","le bateau","","le bateau","le bateau"]
["Brief; Buchstabe=la lettre","Brief; Buchstabe","la lettre","","la lettre","la lettre"]
["Brot=le pain","Brot",{"$f":"MID(A67,FIND(\"=\",A67)+1,LEN(A67))","v":"le pain"},"","le pain","le pain"]
["Bruder=le frère","Bruder","le frère","","le frère","le frère"]
["Buch=le livre",{"$f":"LEFT(A69,FIND(\"=\",A69)-1)","v":"Buch"},"le livre",{"$f":"IF(ISERROR(FIND(\"(f)\",C69)),(IF(ISERROR(FIND(\"(m)\",C69)),\"\",\"m\")),\"f\")","v":""},{"$f":"IF(D69=\"\",C69,LEFT(C69,SEARCH(\"(\",C69)-1))","v":"le livre"},"le livre"]
["Bürger=le citoyen","Bürger","le citoyen","","le citoyen","le citoyen"]
["Bürgerin=la citoyenne","Bürgerin","la citoyenne","","la citoyenne","la citoyenne"]
["Büro, Arbeitszimmer=le bureau","Büro, Arbeitszimmer","le bureau","","le bureau","le bureau"]
["Bus=le bus","Bus","le bus","","le bus","le bus"]
["Butter=le beurre","Butter","le beurre","","le beurre","le beurre"]
["Dach=le toit","Dach","le toit","","le toit","le toit"]
["die Nachrichten=les informations","die Nachrichten","les informations","","les informations","les informations"]
["Dienst, Service, Bedienung=le service","Dienst, Service, Bedienung","le service","","le service","le service"]
["Dienstag=le mardi","Dienstag","le mardi","","le mardi","le mardi"]
["Diskussion, Streitgespräch, Durchsprache=la discussion","Diskussion, Streitgespräch, Durchsprache","la discussion","","la discussion","la discussion"]
["Arzt=le docteur","Arzt","le docteur","","le docteur","le docteur"]
["Ärztin=la docteure",{"$f":"LEFT(A81,FIND(\"=\",A81)-1)","v":"Ärztin"},"la docteure",{"$f":"IF(ISERROR(FIND(\"(f)\",C81)),(IF(ISERROR(FIND(\"(m)\",C81)),\"\",\"m\")),\"f\")","v":""},{"$f":"IF(D81=\"\",C81,LEFT(C81,SEARCH(\"(\",C81)-1))","v":"la docteure"},"la docteure"]
["Donnerstag=le jeudi","Donnerstag","le jeudi","","le jeudi","le jeudi"]
["Dorf=le village","Dorf","le village","","le village","le village"]
["Droge=la drogue","Droge","la drogue","","la drogue","la drogue"]
["Druck=la pression","Druck","la pression","","la pression","la pression"]
["Dusche=la douche","Dusche","la douche","","la douche","la douche"]
["Ehe=le mariage","Ehe","le mariage","","le mariage","le mariage"]
["Ehemann=le marie","Ehemann","le marie","","le marie","le marie"]
["Ei=l'œuf(m)","Ei","l'œuf(m)","m","l'œuf","l'œuf (m)"]
["Eigentümerin=la propriétaire","Eigentümerin","la propriétaire","","la propriétaire","la propriétaire"]
["Eigentümer=le propriétaire","Eigentümer","le propriétaire","","le propriétaire","le propriétaire"]
["Eltern=les parents","Eltern","les parents","","les parents","les parents"]
["Energie, Tatkraft=l'énergie(f)","Energie, Tatkraft","l'énergie(f)","f","l'énergie","l'énergie (f)"]
["Enkel(sohn)=le petit-fils","Enkel(sohn)","le petit-fils","","le petit-fils","le petit-fils"]
["Enkelin=la petite-fille","Enkelin","la petite-fille","","la petite-fille","la petite-fille"]
["Entscheidung=la décision","Entscheidung","la décision","","la décision","la décision"]
["Entwicklung=le développement","Entwicklung","le développement","","le développement","le développement"]
["Ereignis, Geschehen=l'évènement(m)","Ereignis, Geschehen","l'évènement(m)","m","l'évènement","l'évènement (m)"]
["Erfahrung=l'expérience(f)","Erfahrung","l'expérience(f)","f","l'expérience","l'expérience (f)"]
["Erfolg=le succès","Erfolg","le succès","","le succès","le succès"]
["Ergebnis=le résultat","Ergebnis","le résultat","","le résultat","le résultat"]
["Erinnerung (Sache und Mental)=le souvenir","Erinnerung (Sache und Mental)","le souvenir","","le souvenir","le souvenir"]
["Erklärung, Aussage=la déclaration","Erklärung, Aussage","la déclaration","","la déclaration","la déclaration"]
["Erwachsener=l'adulte(m)","Erwachsener","l'adulte(m)","m","l'adulte","l'adulte (m)"]
["Erzählung, Bericht=le récit","Erzählung, Bericht","le récit","","le récit","le récit"]
["Essen, Speise=le repas","Essen, Speise","le repas","","le repas","le repas"]
["Fähigkeit, Können=la capacité","Fähigkeit, Können","la capacité","","la capacité","la capacité"]
["Fahrkarte=le ticket","Fahrkarte","le ticket","","le ticket","le ticket"]
["Fahrrad=le vélo","Fahrrad","le vélo","","le vélo","le vélo"]
["Familie=la famille","Familie","la famille","","la famille","la famille"]
["Farbe=la couleur","Farbe","la couleur","","la couleur","la couleur"]
["Feind=l'ennemi(m)","Feind","l'ennemi(m)","m","l'ennemi","l'ennemi (m)"]
["Feind=l'ennemie(f)","Feind","l'ennemie(f)","f","l'ennemie","l'ennemie (f)"]
["Fels, Felsbrocken=la roche","Fels, Felsbrocken","la roche","","la roche","la roche"]
["Fenster=la fenêtre","Fenster","la fenêtre","","la fenêtre","la fenêtre"]
["Feuer=le feu","Feuer","le feu","","le feu","le feu"]
["Film=le film","Film","le film","","le film","le film"]
["Finger=le doigt","Finger","le doigt","","le doigt","le doigt"]
["Fisch=le poisson","Fisch","le poisson","","le poisson","le poisson"]
["Fleisch=la viande","Fleisch","la viande","","la viande","la viande"]
["Flöte=la flûte","Flöte","la flûte","","la flûte","la flûte"]
["Flughafen=l'aéroport(m)","Flughafen","l'aéroport(m)","m","l'aéroport","l'aéroport (m)"]
["Flugzeug=l'avion(m)","Flugzeug","l'avion(m)","m","l'avion","l'avion (m)"]
["Fluss=la rivière","Fluss","la rivière","","la rivière","la rivière"]
["Foto, Bild=la photo","Foto, Bild","la photo","","la photo","la photo"]
["Frage=la question","Frage","la question","","la question","la question"]
["Frau, Ehefrau=la femme","Frau, Ehefrau","la femme","","la femme","la femme"]
["Freitag=le vendredi","Freitag","le vendredi","","le vendredi","le vendredi"]
["Freund (m)=l'ami","Freund (m)","l'ami","","l'ami","l'ami"]
["Freundin (f)=l'amie",{"$f":"LEFT(A130,FIND(\"=\",A130)-1)","v":"Freundin (f)"},"l'amie",{"$f":"IF(ISERROR(FIND(\"(f)\",C130)),(IF(ISERROR(FIND(\"(m)\",C130)),\"\",\"m\")),\"f\")","v":""},{"$f":"IF(D130=\"\",C130,LEFT(C130,SEARCH(\"(\",C130)-1))","v":"l'amie"},"l'amie"]
["Friede=la paix","Friede","la paix","","la paix","la paix"]
["Frühling=le printemps","Frühling",{"$f":"MID(A132,FIND(\"=\",A132)+1,LEN(A132))","v":"le printemps"},"","le printemps","le printemps"]
["Frühstück=le petit-déjeuner","Frühstück","le petit-déjeuner","","le petit-déjeuner","le petit-déjeuner"]
["Fuß=le pied","Fuß","le pied","","le pied","le pied"]
["Gabel=la fourchette","Gabel","la fourchette","","la fourchette","la fourchette"]
["Garten=le jardin","Garten","le jardin","","le jardin","le jardin"]
["Gebäude=le bâtiment","Gebäude","le bâtiment","","le bâtiment","le bâtiment"]
["Gebirge=la montagne",{"$f":"LEFT(A138,FIND(\"=\",A138)-1)","v":"Gebirge"},"la montagne",{"$f":"IF(ISERROR(FIND(\"(f)\",C138)),(IF(ISERROR(FIND(\"(m)\",C138)),\"\",\"m\")),\"f\")","v":""},{"$f":"IF(D138=\"\",C138,LEFT(C138,SEARCH(\"(\",C138)-1))","v":"la montagne"},"la montagne"]
["Gedanke, Denken=la pensée","Gedanke, Denken","la pensée","","la pensée","la pensée"]
["Geduld=la patience","Geduld","la patience","","la patience","la patience"]
["Gefühl, Empfinden=le sentiment","Gefühl, Empfinden","le sentiment","","le sentiment","le sentiment"]
["Gegend, Gebiet=la région","Gegend, Gebiet","la région","","la région","la région"]
["Gegenstand, Objekt=l'objet(m)","Gegenstand, Objekt","l'objet(m)","m","l'objet","l'objet (m)"]
["Geige=le violon","Geige","le violon","","le violon","le violon"]
["Gelände, Grundstück=le terrain","Gelände, Grundstück","le terrain","","le terrain","le terrain"]
["Geld=l'argent(m)","Geld","l'argent(m)","m","l'argent","l'argent (m)"]
["Gelegenheit=l'opportunité(f)","Gelegenheit","l'opportunité(f)","f","l'opportunité","l'opportunité (f)"]
["Gemälde, Bild; Tafel=le tableau","Gemälde, Bild; Tafel","le tableau","","le tableau","le tableau"]
["Gemeinschaft, Gemeinwesen=la communauté","Gemeinschaft, Gemeinwesen","la communauté","","la communauté","la communauté"]
["Gemüse=les légumes(m)","Gemüse","les légumes(m)","m","les légumes","les légumes (m)"]
["Geräusch, Lärm, Krach=le bruit","Geräusch, Lärm, Krach","le bruit","","le bruit","le bruit"]
["Geschäft, Laden=le magasin","Geschäft, Laden","le magasin","","le magasin","le magasin"]
["Geschichte, Erzählung=l'histoire(f)","Geschichte, Erzählung","l'histoire(f)","f","l'histoire","l'histoire (f)"]
["Geschmack, Geschmackssinn, Vorliebe=le goût","Geschmack, Geschmackssinn, Vorliebe","le goût","","le goût","le goût"]
["Gesetz=la loi","Gesetz","la loi","","la loi","la loi"]
["Gesicht=le visage","Gesicht","le visage","","le visage","le visage"]
["Gestalt, Person, Mensch=la personne","Gestalt, Person, Mensch","la personne","","la personne","la personne"]
["Gewalt=la violence","Gewalt","la violence","","la violence","la violence"]
["Gewicht, Köpergewicht, Last=le poids","Gewicht, Köpergewicht, Last","le poids","","le poids","le poids"]
["Gewinn=le profit","Gewinn","le profit","","le profit","le profit"]
["Gitarre=la guitare","Gitarre","la guitare","","la guitare","la guitare"]
["Glas=le verre","Glas","le verre","","le verre","le verre"]
["Größe, Schuhgröße=la pointure","Größe, Schuhgröße","la pointure","","la pointure","la pointure"]
["Großeltern=les grands-parents","Großeltern","les grands-parents","","les grands-parents","les grands-parents"]
["Grund, Ursache=la cause","Grund, Ursache","la cause","","la cause","la cause"]
["Gruppe=le groupe","Gruppe","le groupe","","le groupe","le groupe"]
["Gürtel=la ceinture","Gürtel","la ceinture","","la ceinture","la ceinture"]
["Haare=les cheveux(m)","Haare","les cheveux(m)","m","les cheveux","lex cheveux"]
["Hafen=le port","Hafen","le port","","le port","le port"]
["Halbbruder=le demi-frère","Halbbruder","le demi-frère","","le demi-frère","le demi-frère"]
["Halbschwester=la demi-sœur","Halbschwester","la demi-sœur","","la demi-sœur","la demi-sœur"]
["Hand=la main","Hand","la main","","la main","la main"]
["Handlung, Tat, Aktion=l'action(f)","Handlung, Tat, Aktion","l'action(f)","f","l'action","l'action (f)"]
["Handy=le portable","Handy","le portable","","le portable","le portable"]
["Hauptstadt=la capitale","Hauptstadt","la capitale","","la capitale","la capitale"]
["Haus, Heim, Zuhause=la maison","Haus, Heim, Zuhause","la maison","","la maison","la maison"]
["Haut=la peau","Haut","la peau","","la peau","la peau"]
["Heimat, Heimatland, Herkunftsland=le pays d'origine","Heimat, Heimatland, Herkunftsland","le pays d'origine","","le pays d'origine","le pays d'origine"]
["Heizung=le chauffage","Heizung","le chauffage","","le chauffage","le chauffage"]
["Hemd=la chemise","Hemd","la chemise","","la chemise","la chemise"]
["Herausforderung=le défi","Herausforderung","le défi","","le défi","le défi"]
["Herbst=l'automne(m)","Herbst","l'automne(m)","m","l'automne","l'automne (m)"]
["Herz=le cœur","Herz","le cœur","","le cœur","le cœur"]
["Hitze, Wärme=la chaleur","Hitze, Wärme","la chaleur","","la chaleur","la chaleur"]
["Holz=le bois","Holz","le bois","","le bois","le bois"]
["Honig=le miel","Honig","le miel","","le miel","le miel"]
["Hose=le pantalon","Hose","le pantalon","","le pantalon","le pantalon"]
["Hotel=l'hôtel(m)","Hotel","l'hôtel(m)","m","l'hôtel","l'hôtel (m)"]
["Hund=le chien","Hund","le chien","","le chien","le chien"]
["Idee=l'idée(f)","Idee","l'idée(f)","f","l'idée","l'idée (f)"]
["Insel=l'île(f)","Insel","l'île(f)","f","l'île","l'ile (f)"]
["Interesse; Zins=l'intérêt(m)","Interesse; Zins","l'intérêt(m)","m","l'intérêt","l'intérêt (m)"]
["Jacke=la veste","Jacke","la veste","","la veste","la veste"]
["Jahr=l'an(m)","Jahr","l'an(m)","m","l'an","l'an (m)"]
["Jahreszeit=la saison","Jahreszeit","la saison","","la saison","la saison"]
["Jahrhundert=le siècle","Jahrhundert",{"$f":"MID(A196,FIND(\"=\",A196)+1,LEN(A196))","v":"le siècle"},"","le siècle","le siècle"]
["Jahrzehnt=la décennie","Jahrzehnt","la décennie","","la décennie","la décennie"]
["Junge, Sohn=le fils","Junge, Sohn","le fils","","le fils","le fils"]
["Kaffee=le café","Kaffee","le café","","le café","le café"]
["Kante, Ufer, Rand=le bord","Kante, Ufer, Rand","le bord","","le bord","le bord"]
["Karotte=la carotte","Karotte","la carotte","","la carotte","la carotte"]
["Karriere, beruflicher Werdegang=la carrière",{"$f":"LEFT(A202,FIND(\"=\",A202)-1)","v":"Karriere, beruflicher Werdegang"},"la carrière",{"$f":"IF(ISERROR(FIND(\"(f)\",C202)),(IF(ISERROR(FIND(\"(m)\",C202)),\"\",\"m\")),\"f\")","v":""},{"$f":"IF(D202=\"\",C202,LEFT(C202,SEARCH(\"(\",C202)-1))","v":"la carrière"},"la carrière"]
["Karte, Landkarte, Speisekarte=la carte","Karte, Landkarte, Speisekarte","la carte","","la carte","la carte"]
["Käse=le fromage","Käse","le fromage","","le fromage","le fromage"]
["Katze=la chatte","Katze","la chatte","","la chatte","la chatte"]
["Kater, Kater=le chat","Kater, Kater","le chat","","le chat","le chat"]
["Kilo=le kilo","Kilo","le kilo","","le kilo","le kilo"]
["Kind=l'enfant(m)","Kind","l'enfant(m)","m","l'enfant","l'enfant (m)"]
["Kindergarten, Kindertagesstätte=la maternelle","Kindergarten, Kindertagesstätte","la maternelle","","la maternelle","la maternelle"]
["Kino=le ciné(ma)","Kino","le ciné(ma)","","le ciné(ma)","le ciné (ma)"]
["Kirche=l'église(f)","Kirche","l'église(f)","f","l'église","l'église (f)"]
["Kiste, Schachtel, Dose=la boite","Kiste, Schachtel, Dose","la boite","","la boite","la boite"]
["Klavier=le piano","Klavier","le piano","","le piano","le piano"]
["Kleid=la robe","Kleid","la robe","","la robe","la robe"]
["Kleingeld, Münze; Wechselgeld=la monnaie","Kleingeld, Münze; Wechselgeld","la monnaie","","la monnaie","la monnaie"]
["Konsequenz, Nachspiel, Folge=la conséquence","Konsequenz, Nachspiel, Folge","la conséquence","","la conséquence","la conséquence"]
["Kopf=la tête","Kopf","la tête","","la tête","la tête"]
["Körper=le corps","Körper","le corps","","le corps","le corps"]
["Körperpflege, Waschen=la toilette","Körperpflege, Waschen","la toilette","","la toilette","la toilette"]
["Kosten=le cout","Kosten","le cout","","le cout","le cout"]
["Krankenhaus=l'hôpital(m)","Krankenhaus","l'hôpital(m)","m","l'hôpital","l'hôpital (m)"]
["Krankheit=la maladie","Krankheit","la maladie","","la maladie","la maladie"]
["Krieg=la guerre","Krieg","la guerre","","la guerre","la guerre"]
["Küche=la cuisine","Küche","la cuisine","","la cuisine","la cuisine"]
["Kunst=l'art(m)","Kunst","l'art(m)","m","l'art","l'art (m)"]
["Kurs, Verlauf, Lehrgang, Ablauf=le cours","Kurs, Verlauf, Lehrgang, Ablauf","le cours","","le cours","le cours"]
["Lächeln, Schmunzeln=le sourire","Lächeln, Schmunzeln","le sourire","","le sourire","le sourire"]
["Lampe=la lampe","Lampe","la lampe","","la lampe","la lampe"]
["Land, Gebiet=le pays","Land, Gebiet","le pays","","le pays","le pays"]
["Lautstärke, Menge, Masse=le volume","Lautstärke, Menge, Masse","le volume","","le volume","le volume"]
["Leben=la vie","Leben","la vie","","la vie","la vie"]
["Lebensmittelladen=l'épicerie(f)","Lebensmittelladen","l'épicerie(f)","f","l'épicerie","l'épicerie (f)"]
["Lehre, Theorie=la théorie","Lehre, Theorie","la théorie","","la théorie","la théorie"]
["Lehrerin=l'enseignante(f)","Lehrerin","l'enseignante(f)","f","l'enseignante","l'enseignante (f)"]
["Lehrer=l'enseignant(m)","Lehrer","l'enseignant(m)","m","l'enseignant","l'enseignant (m)"]
["Leistung=la performance","Leistung","la performance","","la performance","la performance"]
["Leute, Menschen=les gens(m)","Leute, Menschen","les gens(m)","m","les gens","les gens (m)"]
["Lied=la chanson","Lied","la chanson","","la chanson","la chanson"]
["Linsen=les lentilles(f)","Linsen","les lentilles(f)","f","les lentilles","les lentilles (f)"]
["Liste=la liste","Liste","la liste","","la liste","la liste"]
["Liter=le litre","Liter","le litre","","le litre","le litre"]
["Löffel=la cuillère","Löffel","la cuillère","","la cuillère","la cuillère"]
["Luft=l'air(m)","Luft","l'air(m)","m","l'air","l'air (m)"]
["Macht, Stärke, Gewalt=la puissance","Macht, Stärke, Gewalt","la puissance","","la puissance","la puissance"]
["Mädchen=la (jeune) fille","Mädchen","la (jeune) fille","","la (jeune) fille","la (jeune) fille"]
["Mann=l'homme(m)","Mann","l'homme(m)","m","l'homme","l'homme (m)"]
["Markt=le marché","Markt","le marché","","le marché","le marché"]
["Marmelade=la confiture","Marmelade","la confiture","","la confiture","la confiture"]
["Maß, Ausmaß, Dimension=la dimension","Maß, Ausmaß, Dimension","la dimension","","la dimension","la dimension"]
["Medikament=le médicament","Medikament","le médicament","","le médicament","le médicament"]
["Meer=la mer","Meer","la mer","","la mer","la mer"]
["Mehl=la farine","Mehl","la farine","","la farine","la farine"]
["Mehrheit=la plupart","Mehrheit","la plupart","","la plupart","la plupart"]
["Menge=la quantité","Menge","la quantité","","la quantité","la quantité"]
["Messer=le couteau","Messer","le couteau","","le couteau","le couteau"]
["Methode, Verfahren=la méthode","Methode, Verfahren","la méthode","","la méthode","la méthode"]
["Milch=le lait","Milch","le lait","","le lait","le lait"]
["Minute=la minute","Minute","la minute","","la minute","la minute"]
["Mittag, Mittagszeit=le midi","Mittag, Mittagszeit","le midi","","le midi","le midi"]
["Mittagessen=le déjeuner","Mittagessen",{"$f":"MID(A260,FIND(\"=\",A260)+1,LEN(A260))","v":"le déjeuner"},"","le déjeuner","le déjeuner"]
["Mittwoch=le mercredi","Mittwoch","le mercredi","","le mercredi","le mercredi"]
["Möbel=le meuble","Möbel","le meuble","","le meuble","le meuble"]
["Möglichkeit=la possibilité","Möglichkeit","la possibilité","","la possibilité","la possibilité"]
["Moment, Augenblick=le moment","Moment, Augenblick","le moment","","le moment","le moment"]
["Monat=le mois","Monat","le mois","","le mois","le mois"]
["Montag=le lundi","Montag","le lundi","","le lundi","le lundi"]
["Motiv; Muster; Anlass=le motif","Motiv; Muster; Anlass","le motif","","le motif","le motif"]
["Mund=la bouche",{"$f":"LEFT(A268,FIND(\"=\",A268)-1)","v":"Mund"},"la bouche",{"$f":"IF(ISERROR(FIND(\"(f)\",C268)),(IF(ISERROR(FIND(\"(m)\",C268)),\"\",\"m\")),\"f\")","v":""},{"$f":"IF(D268=\"\",C268,LEFT(C268,SEARCH(\"(\",C268)-1))","v":"la bouche"},"la bouche"]
["Musik=la musique","Musik","la musique","","la musique","la musique"]
["Mutter=la mère","Mutter","la mère","","la mère","la mère"]
["Nachbarin=la voisine","Nachbarin","la voisine","","la voisine","la voisine"]
["Nachbar=le voisin","Nachbar","le voisin","","le voisin","le voisin"]
["Nachmittag=l'après-midi(m)","Nachmittag","l'après-midi(m)","m","l'après-midi","l'après-midi (m)"]
["Nachricht, Botschaft, Mitteilung=le message","Nachricht, Botschaft, Mitteilung","le message","","le message","le message"]
["Nacht=la nuit","Nacht","la nuit","","la nuit","la nuit"]
["Name=le nom","Name","le nom","","le nom","le nom"]
["Nase=le nez","Nase","le nez","","le nez","le nez"]
["Natur=la nature","Natur","la nature","","la nature","la nature"]
["Nebel=le brouillard","Nebel","le brouillard","","le brouillard","le brouillard"]
["Neffe=le neveu","Neffe","le neveu","","le neveu","le neveu"]
["Nichte=la nièce","Nichte","la nièce","","la nièce","la nièce"]
["Norden=le nord","Norden","le nord","","le nord","le nord"]
["Nudeln=les pâtes","Nudeln","les pâtes","","les pâtes","les pâtes"]
["Nutzen, Vorteil=l'avantage(m)","Nutzen, Vorteil","l'avantage(m)","m","l'avantage","l'avantage (m)"]
["Oberfläche=la surface","Oberfläche","la surface","","la surface","la surface"]
["Obst=les fruits(m)","Obst","les fruits(m)","m","les fruits","les fruits (m)"]
["Ohr=l'oreille(f)","Ohr","l'oreille(f)","f","l'oreille","l'oreille (f)"]
["Öl=l'huile(f)","Öl","l'huile(f)","f","l'huile","l'huile (f)"]
["Onkel=l'oncle(m)","Onkel","l'oncle(m)","m","l'oncle","l'oncle (m)"]
["Opfer=la victime","Opfer","la victime","","la victime","la victime"]
["Osten=l'est(m)","Osten","l'est(m)","m","l'est","l'est (m)"]
["Papier=le papier","Papier","le papier","","le papier","le papier"]
["Paprika=le poivron","Paprika","le poivron","","le poivron","le poivron"]
["Parkplatz=le parking","Parkplatz","le parking","","le parking","le parking"]
["Party, Feier=la fête","Party, Feier","la fête","","la fête","la fête"]
["Personal, Belegschaft=le personnel","Personal, Belegschaft","le personnel","","le personnel","le personnel"]
["Pfad, Weg=le sentier","Pfad, Weg","le sentier","","le sentier","le sentier"]
["Pfeffer=le poivre","Pfeffer","le poivre","","le poivre","le poivre"]
["Pflanze, Gewächs=la plante","Pflanze, Gewächs","la plante","","la plante","la plante"]
["Pflicht, Auflage=l'obligation(f)","Pflicht, Auflage","l'obligation(f)","f","l'obligation","l'obligation (f)"]
["Platz, Ort, Stelle=le lieu","Platz, Ort, Stelle","le lieu","","le lieu","le lieu"]
["Platz, Raum, Lücke=l'espace(m)","Platz, Raum, Lücke","l'espace(m)","m","l'espace","l'espace (m)"]
["Polizei=la police","Polizei","la police","","la police","la police"]
["Präsidentin=la présidente","Präsidentin","la présidente","","la présidente","la présidente"]
["Präsident=le président","Präsident","le président","","le président","le président"]
["Preis, Wert=le prix","Preis, Wert","le prix","","le prix","le prix"]
["Problem=le problème","Problem","le problème","","le problème","le problème"]
["Produkt=le produit","Produkt","le produit","","le produit","le produit"]
["Produktion, Herstellung=la production","Produktion, Herstellung","la production","","la production","la production"]
["Projekt, Vorhaben=le projet","Projekt, Vorhaben","le projet","","le projet","le projet"]
["Qualität, Beschaffenheit=la qualité","Qualität, Beschaffenheit","la qualité","","la qualité","la qualité"]
["Quelle, Ursprung=la source","Quelle, Ursprung","la source","","la source","la source"]
["Radio, Rundfunk=la radio","Radio, Rundfunk","la radio","","la radio","la radio"]
["Rechnung=l'addition(f)","Rechnung","l'addition(f)","f","l'addition","l'addition (f)"]
["Recht, Gerechtigkeit=la justice","Recht, Gerechtigkeit","la justice","","la justice","la justice"]
["Rede=le discours","Rede","le discours","","le discours","le discours"]
["Regal=l'étagère(f)","Regal","l'étagère(f)","f","l'étagère","l'étagère (f)"]
["Regen=la pluie","Regen","la pluie","","la pluie","la pluie"]
["Regierung=le gouvernement","Regierung","le gouvernement","","le gouvernement","le gouvernement"]
["Reis=le riz","Reis","le riz","","le riz","le riz"]
["Reise=le voyage","Reise","le voyage","","le voyage","le voyage"]
["Restaurant=le restaurant","Restaurant","le restaurant","","le restaurant","le restaurant"]
["Richtung=la direction","Richtung","la direction","","la direction","la direction"]
["Risiko, Wagnis=le risque","Risiko, Wagnis",{"$f":"MID(A324,FIND(\"=\",A324)+1,LEN(A324))","v":"le risque"},"","le risque","le risque"]
["Rock=la jupe","Rock","la jupe","","la jupe","la jupe"]
["Rücken, Rückseite=le dos","Rücken, Rückseite","le dos","","le dos","le dos"]
["Sache, Ding=la chose","Sache, Ding","la chose","","la chose","la chose"]
["Saft=le jus","Saft","le jus","","le jus","le jus"]
["Salz=le sel","Salz","le sel","","le sel","le sel"]
["Sammlung, Kollektion=la collection","Sammlung, Kollektion","la collection","","la collection","la collection"]
["Samstag=le samedi","Samstag","le samedi","","le samedi","le samedi"]
["Sand=le sable","Sand","le sable","","le sable","le sable"]
["Schinken=le jambon","Schinken","le jambon","","le jambon","le jambon"]
["Schlafzimmer=la chambre à coucher",{"$f":"LEFT(A334,FIND(\"=\",A334)-1)","v":"Schlafzimmer"},"la chambre à coucher",{"$f":"IF(ISERROR(FIND(\"(f)\",C334)),(IF(ISERROR(FIND(\"(m)\",C334)),\"\",\"m\")),\"f\")","v":""},{"$f":"IF(D334=\"\",C334,LEFT(C334,SEARCH(\"(\",C334)-1))","v":"la chambre à coucher"},"la chambre à coucher"]
["Schlag, Hieb=le coup","Schlag, Hieb","le coup","","le coup","le coup"]
["Schlüssel=la clé","Schlüssel","la clé","","la clé","la clé"]
["Schmerz=la douleur","Schmerz","la douleur","","la douleur","la douleur"]
["Schnee=la neige","Schnee","la neige","","la neige","la neige"]
["Schrank, Kleiderschrank=l'armoire(f)","Schrank, Kleiderschrank","l'armoire(f)","f","l'armoire","l'armoire (f)"]
["Schuh=la chaussure","Schuh","la chaussure","","la chaussure","la chaussure"]
["Schule=l'école(f)","Schule","l'école(f)","f","l'école","l'école (f)"]
["Schulter=l'épaule(f)","Schulter","l'épaule(f)","f","l'épaule","l'épaule (f)"]
["Schuss, Schießen, Schießerei=le tir","Schuss, Schießen, Schießerei","le tir","","le tir","le tir"]
["Schwager=le beau-frère","Schwager","le beau-frère","","le beau-frère","le beau-frère"]
["Schwägerin=la belle-sœur","Schwägerin","la belle-sœur","","la belle-sœur","la belle-sœur"]
["Schwester=la sœur","Schwester","la sœur","","la sœur","la sœur"]
["Schwierigkeit=la difficulté","Schwierigkeit","la difficulté","","la difficulté","la difficulté"]
["See=le lac","See","le lac","","le lac","le lac"]
["Sehenswürdigkeit=le site touristique","Sehenswürdigkeit","le site touristique","","le site touristique","le site touristique"]
["Seife=le savon","Seife","le savon","","le savon","le savon"]
["Seite, Blatt=la page","Seite, Blatt","la page","","la page","la page"]
["Seite, Seitenlänge, Richtung=le côté","Seite, Seitenlänge, Richtung","le côté","","le côté","le côté"]
["Sekunde=la seconde","Sekunde","la seconde","","la seconde","la seconde"]
["Sessel=le fauteuil","Sessel","le fauteuil","","le fauteuil","le fauteuil"]
["Sicherheit, Geborgenheit=la sécurité","Sicherheit, Geborgenheit","la sécurité","","la sécurité","la sécurité"]
["Situation, Lage, Sachlage=la situation","Situation, Lage, Sachlage","la situation","","la situation","la situation"]
["Sitz, Sitzgelegenheit, Sitzplatz=le siège","Sitz, Sitzgelegenheit, Sitzplatz","le siège","","le siège","le siége"]
["Sitzbank=le banc","Sitzbank","le banc","","le banc","le banc"]
["Soldatin=la soldate",{"$f":"LEFT(A359,FIND(\"=\",A359)-1)","v":"Soldatin"},{"$f":"MID(A359,FIND(\"=\",A359)+1,LEN(A359))","v":"la soldate"},{"$f":"IF(ISERROR(FIND(\"(f)\",C359)),(IF(ISERROR(FIND(\"(m)\",C359)),\"\",\"m\")),\"f\")","v":""},{"$f":"IF(D359=\"\",C359,LEFT(C359,SEARCH(\"(\",C359)-1))","v":"la soldate"},"la soldate"]
["Soldat=le soldat","Soldat","le soldat","","le soldat","le soldat"]
["Sommer=l'été(m)","Sommer","l'été(m)","m","l'été","l'été (m)"]
["Sonne=le soleil","Sonne","le soleil","","le soleil","le soleil"]
["Sonntag=le dimanche","Sonntag","le dimanche","","le dimanche","le dimanche"]
["Spiel=le jeu","Spiel","le jeu","","le jeu","le jeu"]
["Spielerin=la joueuse",{"$f":"LEFT(A365,FIND(\"=\",A365)-1)","v":"Spielerin"},{"$f":"MID(A365,FIND(\"=\",A365)+1,LEN(A365))","v":"la joueuse"},{"$f":"IF(ISERROR(FIND(\"(f)\",C365)),(IF(ISERROR(FIND(\"(m)\",C365)),\"\",\"m\")),\"f\")","v":""},{"$f":"IF(D365=\"\",C365,LEFT(C365,SEARCH(\"(\",C365)-1))","v":"la joueuse"},"la joueuse"]
["Spieler=le joueur","Spieler","le joueur","","le joueur","le joueur"]
["Sport=le sport","Sport","le sport","","le sport","le sport"]
["Sprache; Zunge=la langue","Sprache; Zunge","la langue","","la langue","la langue"]
["Stadium, Phase=la phase","Stadium, Phase","la phase","","la phase","la phase"]
["Stadt=la cité","Stadt","la cité","","la cité","la cité"]
["Standard=le standard","Standard","le standard","","le standard","le standard"]
["Stelle, Lage=la position","Stelle, Lage","la position","","la position","la position"]
["Stern=l'étoile(f)","Stern","l'étoile(f)","f","l'étoile","l'étoile (f)"]
["Steuer=la taxe","Steuer","la taxe","","la taxe","la taxe"]
["Stift=le stylo","Stift","le stylo","","le stylo","le stylo"]
["Stimme=la voix","Stimme","la voix","","la voix","la voix"]
["Stockwerk=l'étage(m)","Stockwerk","l'étage(m)","m","l'étage","l'étage (m)"]
["Stoß, Schock, Aufprall=le choc","Stoß, Schock, Aufprall","le choc","","le choc","le choc"]
["Strand=la plage","Strand","la plage","","la plage","la plage"]
["Straße=la rue","Straße","la rue","","la rue","la rue"]
["Straße, Weg, Fahrspur=la voie","Straße, Weg, Fahrspur","la voie","","la voie","la voie"]
["Straßenbahn=le tram","Straßenbahn","le tram","","le tram","le tram"]
["Streit, Zank=la dispute","Streit, Zank","la dispute","","la dispute","la dispute"]
["Strom=l'électricité(f)","Strom","l'électricité(f)","f","l'électricité","l'électricité (f)"]
["Stück=la pièce","Stück","la pièce","","la pièce","la pièce"]
["Student=l'étudiant(m)","Student","l'étudiant(m)","m","l'étudiant","l'étudiant (m)"]
["Studentin=l'étudiante(f)","Studentin","l'étudiante(f)","f","l'étudiante","l'étudiante (f)"]
["Stuhl=la chaise","Stuhl","la chaise","","la chaise","la chaise"]
["Stunde=l'heure(f)","Stunde","l'heure(f)","f","l'heure","l'heure (f)"]
["Sturm, Unwetter=la tempête","Sturm, Unwetter",{"$f":"MID(A390,FIND(\"=\",A390)+1,LEN(A390))","v":"la tempête"},"","la tempête","la tempête"]
["Süden=le sud","Süden","le sud","","le sud","le sud"]
["Suppe=la soupe","Suppe","la soupe","","la soupe","la soupe"]
["Tag=le jour","Tag","le jour","","le jour","le jour"]
["Tankstelle=la station-essence","Tankstelle","la station-essence","","la station-essence","la station-essence"]
["Tante=la tante","Tante","la tante","","la tante","la tante"]
["Tasche, Serviette, Handtuch=la serviette","Tasche, Serviette, Handtuch","la serviette","","la serviette","la serviette"]
["Tasse=la tasse","Tasse","la tasse","","la tasse","la tasse"]
["Tatsache, Fakt=le fait","Tatsache, Fakt","le fait","","le fait","le fait"]
["Tee=le thé","Tee","le thé","","le thé","le thé"]
["Teil, Anteil=la part","Teil, Anteil","la part","","la part","la part"]
["Teilnehmerin=la participante",{"$f":"LEFT(A401,FIND(\"=\",A401)-1)","v":"Teilnehmerin"},"la participante",{"$f":"IF(ISERROR(FIND(\"(f)\",C401)),(IF(ISERROR(FIND(\"(m)\",C401)),\"\",\"m\")),\"f\")","v":""},{"$f":"IF(D401=\"\",C401,LEFT(C401,SEARCH(\"(\",C401)-1))","v":"la participante"},"la participante"]
["Teilnehmer=le participant","Teilnehmer","le participant","","le participant","le participant"]
["Teller=l'assiette(f)","Teller","l'assiette(f)","f","l'assiette","l'assiette (f)"]
["Teppich=le tapis","Teppich","le tapis","","le tapis","le tapis"]
["Theater, Schauplatz=le théâtre","Theater, Schauplatz","le théâtre","","le théâtre","le théâtre"]
["Tier=l'animal(m)","Tier","l'animal(m)","m","l'animal","l'animal (m)"]
["Tisch=la table","Tisch","la table","","la table","la table"]
["Tochter=la fille","Tochter","la fille","","la fille","la fille"]
["Tod=la mort","Tod","la mort","","la mort","la mort"]
["Toilette=les toilettes(f)","Toilette","les toilettes(f)","f","les toilettes","les toilettes (f)"]
["Tomate=la tomate","Tomate","la tomate","","la tomate","la tomate"]
["Traum=le rêve","Traum","le rêve","","le rêve","le rêve"]
["Treppe=l'escalier(m)","Treppe","l'escalier(m)","m","l'escalier","l'escalier (m)"]
["Tür=la porte","Tür","la porte","","la porte","la porte"]
["Turm, Tour, Rundfahrt=le tour","Turm, Tour, Rundfahrt","le tour","","le tour","le tour"]
["U-Bahn=le métro","U-Bahn","le métro","","le métro","le métro"]
["Umwelt, Umfeld, Umgebung=l'environnement(m)","Umwelt, Umfeld, Umgebung","l'environnement(m)","m","l'environnement","l'environnement (m)"]
["Unannehmlichkeit, Ärger=l'ennui(m)","Unannehmlichkeit, Ärger","l'ennui(m)","m","l'ennui","l'ennui (m)"]
["Unterschied=la différence","Unterschied","la différence","","la différence","la différance"]
["Vater=le père","Vater","le père","","le père","le père"]
["Verantwortung=la responsabilité","Verantwortung","la responsabilité","","la responsabilité","la responsabilité"]
["Verbrechen=le crime","Verbrechen","le crime","","le crime","le crime"]
["Verfahren, Prozedur=la procédure","Verfahren, Prozedur","la procédure","","la procédure","la procédure"]
["Verhältnis, Beziehung=la liaison","Verhältnis, Beziehung","la liaison","","la liaison","la liaison"]
["Verlust=la perte","Verlust","la perte","","la perte","la perte"]
["Vernunft, Verstand=la raison","Vernunft, Verstand","la raison","","la raison","la raison"]
["Verteidigung, Abwehr; Verbot=la défense","Verteidigung, Abwehr; Verbot","la défense","","la défense","la défense"]
["Vogel=l'oiseau(m)","Vogel","l'oiseau(m)","m","l'oiseau","l'oiseau (m)"]
["Vorderseite, Vorderteil, Vordergrund=le devant","Vorderseite, Vorderteil, Vordergrund","le devant","","le devant","le devant"]
["Vorhang=le rideau","Vorhang","le rideau","","le rideau","le rideau"]
["Vormittag, Morgen=le matin","Vormittag, Morgen","le matin","","le matin","le matin"]
["Vorrat, Lager=la réserve","Vorrat, Lager","la réserve","","la réserve","la réserve"]
["Vorschrift, Ordnung=le règlement","Vorschrift, Ordnung","le règlement","","le règlement","le règlement"]
["Waffe=l'arme(f)","Waffe","l'arme(f)","f","l'arme","l'arme (f)"]
["Wahl (pol.)=l'élection(f)","Wahl (pol.)","l'élection(f)","f","l'élection","l'élection (f)"]
["Wahl, Auswahl, Wahlmöglichkeit=le choix","Wahl, Auswahl, Wahlmöglichkeit","le choix","","le choix","le choix"]
["Wahrheit, Wirklichkeit=la vérité","Wahrheit, Wirklichkeit","la vérité","","la vérité","la vérité"]
["Wand, Mauer=le mur","Wand, Mauer","le mur","","le mur","le mur"]
["Waschbecken=le lavabo","Waschbecken","le lavabo","","le lavabo","le lavabo"]
["Wasser=l'eau(f)","Wasser","l'eau(f)","f","l'eau","l'eau (f)"]
["Weg=le chemin","Weg","le chemin","","le chemin","le chemin"]
["Wein=le vin","Wein","le vin","","le vin","le vin"]
["Welt, Erde, Leute=le monde","Welt, Erde, Leute","le monde","","le monde","le monde"]
["Werk, Fabrik, Industrieanlage=l'usine(f)","Werk, Fabrik, Industrieanlage","l'usine(f)","f","l'usine","l'usine (f)"]
["Wert, Bedeutung=la valeur","Wert, Bedeutung","la valeur","","la valeur","la valeur"]
["Westen=l'ouest(m)","Westen","l'ouest(m)","m","l'ouest","l'ouest (m)"]
["Wind=le vent","Wind","le vent","","le vent","le vent"]
["Winter=l'hiver(m)","Winter","l'hiver(m)","m","l'hiver","l'hiver (m)"]
["Wirklichkeit=la réalité","Wirklichkeit","la réalité","","la réalité","la réalité"]
["Wissen=le savoir","Wissen","le savoir","","le savoir","le savoir"]
["Woche=la semaine","Woche","la semaine","","la semaine","la semaine"]
["Wochenende=le week-end","Wochenende","le week-end","","le week-end","le week-end"]
["Wohnzimmer=la salle de séjour","Wohnzimmer","la salle de séjour","","la salle de séjour","la salle de séjour"]
["Wolke=le nuage","Wolke",{"$f":"MID(A454,FIND(\"=\",A454)+1,LEN(A454))","v":"le nuage"},"","le nuage","le nuage"]
["Wort=le mot","Wort","le mot","","le mot","le mot"]
["Wurst=la saucisse","Wurst","la saucisse","","la saucisse","la saucisse"]
["Zahl=le chiffre","Zahl","le chiffre","","le chiffre","le chiffre"]
["Zeichen, Anzeichen, Vorbote=le signe","Zeichen, Anzeichen, Vorbote","le signe","","le signe","le signe"]
["Zeile, Linie=la ligne","Zeile, Linie","la ligne","","la ligne","la ligne"]
["Zeit, Wetter=le temps","Zeit, Wetter","le temps","","le temps","le temps"]
["Zeitung=le journal","Zeitung","le journal","","le journal","le journal"]
["Zentrum=le centre","Zentrum","le centre","","le centre","le centre"]
["Ziel, Bestimmungsort=la destination","Ziel, Bestimmungsort","la destination","","la destination","la destination"]
["Zimmer=la chambre","Zimmer","la chambre","","la chambre","la chambre"]
["Zucker=le sucre","Zucker","le sucre","","le sucre","le sucre"]
["Zufall=le hasard",{"$f":"LEFT(A466,FIND(\"=\",A466)-1)","v":"Zufall"},"le hasard",{"$f":"IF(ISERROR(FIND(\"(f)\",C466)),(IF(ISERROR(FIND(\"(m)\",C466)),\"\",\"m\")),\"f\")","v":""},{"$f":"IF(D466=\"\",C466,LEFT(C466,SEARCH(\"(\",C466)-1))","v":"le hasard"},"le hasard"]
["Zug=le train","Zug","le train","","le train","le train"]
["Zukunft=l'avenir(m)","Zukunft","l'avenir(m)","m","l'avenir","l'avenir (m)"]
["Zuschauer=le spectateur","Zuschauer","le spectateur","","le spectateur","le spectateur"]
["Zuschauerin=la spectatrice","Zuschauerin","la spectatrice","","la spectatrice","la spectatrice"]
["Zustand, Verfassung, Befindlichkeit=l'état(m)","Zustand, Verfassung, Befindlichkeit","l'état(m)","m","l'état","l'état (m)"]
["Zwiebel=l'ognon(m)","Zwiebel","l'ognon(m)","m","l'ognon","l'ognon (m)"]
[null,{"$f":"LEFT(A473,FIND(\"=\",A473)-1)","v":{"$error":"#VALUE!"}},{"$f":"MID(A473,FIND(\"=\",A473)+1,LEN(A473))","v":{"$error":"#VALUE!"}},{"$f":"IF(ISERROR(FIND(\"(f)\",C473)),(IF(ISERROR(FIND(\"(m)\",C473)),\"\",\"m\")),\"f\")","v":""},{"$f":"IF(D473=\"\",C473,LEFT(C473,SEARCH(\"(\",C473)-1))","v":{"$error":"#VALUE!"}},{"$error":"#VALUE!"}]
[null,{"$f":"LEFT(A474,FIND(\"=\",A474)-1)","v":{"$error":"#VALUE!"}},{"$f":"MID(A474,FIND(\"=\",A474)+1,LEN(A474))","v":{"$error":"#VALUE!"}},"",{"$error":"#VALUE!"},{"$error":"#VALUE!"}]
[null,{"$f":"LEFT(A475,FIND(\"=\",A475)-1)","v":{"$error":"#VALUE!"}},{"$f":"MID(A475,FIND(\"=\",A475)+1,LEN(A475))","v":{"$error":"#VALUE!"}},"",{"$error":"#VALUE!"},{"$error":"#VALUE!"}]
[null,{"$error":"#VALUE!"},{"$error":"#VALUE!"},"",{"$error":"#VALUE!"},{"$error":"#VALUE!"}]
[null,{"$error":"#VALUE!"},{"$error":"#VALUE!"},"",{"$error":"#VALUE!"},{"$error":"#VALUE!"}]
[null,{"$error":"#VALUE!"},{"$error":"#VALUE!"},"",{"$error":"#VALUE!"},{"$error":"#VALUE!"}]
[null,{"$error":"#VALUE!"},{"$error":"#VALUE!"},"",{"$error":"#VALUE!"},{"$error":"#VALUE!"}]
[null,{"$error":"#VALUE!"},{"$error":"#VALUE!"},"",{"$error":"#VALUE!"},{"$error":"#VALUE!"}]
[null,{"$error":"#VALUE!"},{"$error":"#VALUE!"},"",{"$error":"#VALUE!"},{"$error":"#VALUE!"}]
[null,{"$error":"#VALUE!"},{"$error":"#VALUE!"},"",{"$error":"#VALUE!"},{"$error":"#VALUE!"}]
[null,{"$error":"#VALUE!"},{"$error":"#VALUE!"},"",{"$error":"#VALUE!"},{"$error":"#VALUE!"}]
[null,{"$error":"#VALUE!"},{"$error":"#VALUE!"},"",{"$error":"#VALUE!"},{"$error":"#VALUE!"}]
[null,{"$error":"#VALUE!"},{"$error":"#VALUE!"},"",{"$error":"#VALUE!"},{"$error":"#VALUE!"}]
[null,{"$error":"#VALUE!"},{"$error":"#VALUE!"},"",{"$error":"#VALUE!"},{"$error":"#VALUE!"}]
[null,{"$error":"#VALUE!"},{"$error":"#VALUE!"},"",{"$error":"#VALUE!"},{"$error":"#VALUE!"}]
[null,{"$error":"#VALUE!"},{"$error":"#VALUE!"},"",{"$error":"#VALUE!"},{"$error":"#VALUE!"}]
[null,{"$error":"#VALUE!"},{"$error":"#VALUE!"},"",{"$error":"#VALUE!"},{"$error":"#VALUE!"}]
[null,{"$error":"#VALUE!"},{"$error":"#VALUE!"},"",{"$error":"#VALUE!"},{"$error":"#VALUE!"}]
[null,{"$error":"#VALUE!"},{"$error":"#VALUE!"},"",{"$error":"#VALUE!"},{"$error":"#VALUE!"}]
[null,{"$error":"#VALUE!"},{"$error":"#VALUE!"},"",{"$error":"#VALUE!"},{"$error":"#VALUE!"}]
[null,{"$error":"#VALUE!"},{"$error":"#VALUE!"},"",{"$error":"#VALUE!"},{"$error":"#VALUE!"}]
[null,{"$error":"#VALUE!"},{"$error":"#VALUE!"},"",{"$error":"#VALUE!"},{"$error":"#VALUE!"}]
[null,{"$error":"#VALUE!"},{"$error":"#VALUE!"},"",{"$error":"#VALUE!"},{"$error":"#VALUE!"}]
[null,{"$error":"#VALUE!"},{"$error":"#VALUE!"},"",{"$error":"#VALUE!"},{"$error":"#VALUE!"}]
[null,{"$error":"#VALUE!"},{"$error":"#VALUE!"},"",{"$error":"#VALUE!"},{"$error":"#VALUE!"}]
[null,{"$error":"#VALUE!"},{"$error":"#VALUE!"},"",{"$error":"#VALUE!"},{"$error":"#VALUE!"}]
[null,{"$error":"#VALUE!"},{"$error":"#VALUE!"},"",{"$error":"#VALUE!"},{"$error":"#VALUE!"}]
[null,{"$error":"#VALUE!"},{"$error":"#VALUE!"},"",{"$error":"#VALUE!"},{"$error":"#VALUE!"}]
[null,{"$error":"#VALUE!"},{"$error":"#VALUE!"},"",{"$error":"#VALUE!"},{"$error":"#VALUE!"}]
[null,{"$error":"#VALUE!"},{"$error":"#VALUE!"},"",{"$error":"#VALUE!"},{"$error":"#VALUE!"}]
[null,{"$error":"#VALUE!"},{"$error":"#VALUE!"},"",{"$error":"#VALUE!"},{"$error":"#VALUE!"}]
[null,{"$error":"#VALUE!"},{"$error":"#VALUE!"},"",{"$error":"#VALUE!"},{"$error":"#VALUE!"}]
[null,{"$error":"#VALUE!"},{"$error":"#VALUE!"},"",{"$error":"#VALUE!"},{"$error":"#VALUE!"}]
[null,{"$error":"#VALUE!"},{"$error":"#VALUE!"},"",{"$error":"#VALUE!"},{"$error":"#VALUE!"}]
[null,{"$error":"#VALUE!"},{"$error":"#VALUE!"},"",{"$error":"#VALUE!"},{"$error":"#VALUE!"}]
[null,{"$error":"#VALUE!"},{"$error":"#VALUE!"},"",{"$error":"#VALUE!"},{"$error":"#VALUE!"}]
[null,{"$error":"#VALUE!"},{"$error":"#VALUE!"},"",{"$error":"#VALUE!"},{"$error":"#VALUE!"}]
[null,{"$error":"#VALUE!"},{"$error":"#VALUE!"},"",{"$error":"#VALUE!"},{"$error":"#VALUE!"}]
[null,{"$error":"#VALUE!"},{"$error":"#VALUE!"},"",{"$error":"#VALUE!"},{"$error":"#VALUE!"}]
[null,{"$error":"#VALUE!"},{"$error":"#VALUE!"},"",{"$error":"#VALUE!"},{"$error":"#VALUE!"}]
[null,{"$error":"#VALUE!"},{"$error":"#VALUE!"},"",{"$error":"#VALUE!"},{"$error":"#VALUE!"}]
[null,{"$error":"#VALUE!"},{"$error":"#VALUE!"},"",{"$error":"#VALUE!"},{"$error":"#VALUE!"}]
[null,{"$error":"#VALUE!"},{"$error":"#VALUE!"},"",{"$error":"#VALUE!"},{"$error":"#VALUE!"}]
[null,{"$error":"#VALUE!"},{"$error":"#VALUE!"},"",{"$error":"#VALUE!"},{"$error":"#VALUE!"}]
[null,{"$error":"#VALUE!"},{"$error":"#VALUE!"},"",{"$error":"#VALUE!"},{"$error":"#VALUE!"}]
[null,{"$error":"#VALUE!"},{"$error":"#VALUE!"},"",{"$error":"#VALUE!"},{"$error":"#VALUE!"}]
[null,{"$error":"#VALUE!"},{"$error":"#VALUE!"},"",{"$error":"#VALUE!"},{"$error":"#VALUE!"}]
[null,{"$error":"#VALUE!"},{"$error":"#VALUE!"},"",{"$error":"#VALUE!"},{"$error":"#VALUE!"}]
[null,{"$error":"#VALUE!"},{"$error":"#VALUE!"},"",{"$error":"#VALUE!"},{"$error":"#VALUE!"}]
[null,{"$error":"#VALUE!"},{"$error":"#VALUE!"},"",{"$error":"#VALUE!"},{"$error":"#VALUE!"}]
[null,{"$error":"#VALUE!"},{"$error":"#VALUE!"},"",{"$error":"#VALUE!"},{"$error":"#VALUE!"}]
[null,{"$error":"#VALUE!"},{"$error":"#VALUE!"},"",{"$error":"#VALUE!"},{"$error":"#VALUE!"}]
[null,{"$error":"#VALUE!"},{"$error":"#VALUE!"},"",{"$error":"#VALUE!"},{"$error":"#VALUE!"}]
[null,{"$error":"#VALUE!"},{"$error":"#VALUE!"},"",{"$error":"#VALUE!"},{"$error":"#VALUE!"}]
[null,{"$error":"#VALUE!"},{"$error":"#VALUE!"},"",{"$error":"#VALUE!"},{"$error":"#VALUE!"}]
[null,{"$error":"#VALUE!"},{"$error":"#VALUE!"},"",{"$error":"#VALUE!"},{"$error":"#VALUE!"}]
[null,{"$error":"#VALUE!"},{"$error":"#VALUE!"},"",{"$error":"#VALUE!"},{"$error":"#VALUE!"}]
[null,{"$error":"#VALUE!"},{"$error":"#VALUE!"},"",{"$error":"#VALUE!"},{"$error":"#VALUE!"}]
[null,{"$error":"#VALUE!"},{"$error":"#VALUE!"},"",{"$error":"#VALUE!"},{"$error":"#VALUE!"}]
[null,{"$error":"#VALUE!"},{"$error":"#VALUE!"},"",{"$error":"#VALUE!"},{"$error":"#VALUE!"}]
[null,{"$error":"#VALUE!"},{"$error":"#VALUE!"},"",{"$error":"#VALUE!"},{"$error":"#VALUE!"}]
[null,{"$error":"#VALUE!"},{"$error":"#VALUE!"},"",{"$error":"#VALUE!"},{"$error":"#VALUE!"}]
[null,{"$error":"#VALUE!"},{"$error":"#VALUE!"},"",{"$error":"#VALUE!"},{"$error":"#VALUE!"}]
[null,{"$error":"#VALUE!"},{"$error":"#VALUE!"},"",{"$error":"#VALUE!"},{"$error":"#VALUE!"}]
[null,{"$f":"LEFT(A537,FIND(\"=\",A537)-1)","v":{"$error":"#VALUE!"}},{"$f":"MID(A537,FIND(\"=\",A537)+1,LEN(A537))","v":{"$error":"#VALUE!"}},{"$f":"IF(ISERROR(FIND(\"(f)\",C537)),(IF(ISERROR(FIND(\"(m)\",C537)),\"\",\"m\")),\"f\")","v":""},{"$f":"IF(D537=\"\",C537,LEFT(C537,SEARCH(\"(\",C537)-1))","v":{"$error":"#VALUE!"}},{"$error":"#VALUE!"}]
[null,{"$error":"#VALUE!"},{"$error":"#VALUE!"},"",{"$error":"#VALUE!"},{"$error":"#VALUE!"}]
[null,{"$error":"#VALUE!"},{"$error":"#VALUE!"},"",{"$error":"#VALUE!"},{"$error":"#VALUE!"}]
[null,{"$error":"#VALUE!"},{"$error":"#VALUE!"},"",{"$error":"#VALUE!"},{"$error":"#VALUE!"}]
[null,{"$error":"#VALUE!"},{"$error":"#VALUE!"},"",{"$error":"#VALUE!"},{"$error":"#VALUE!"}]
[null,{"$error":"#VALUE!"},{"$error":"#VALUE!"},"",{"$error":"#VALUE!"},{"$error":"#VALUE!"}]
[null,{"$error":"#VALUE!"},{"$error":"#VALUE!"},"",{"$error":"#VALUE!"},{"$error":"#VALUE!"}]
[null,{"$error":"#VALUE!"},{"$error":"#VALUE!"},"",{"$error":"#VALUE!"},{"$error":"#VALUE!"}]
[null,{"$error":"#VALUE!"},{"$error":"#VALUE!"},"",{"$error":"#VALUE!"},{"$error":"#VALUE!"}]
[null,{"$error":"#VALUE!"},{"$error":"#VALUE!"},"",{"$error":"#VALUE!"},{"$error":"#VALUE!"}]
[null,{"$error":"#VALUE!"},{"$error":"#VALUE!"},"",{"$error":"#VALUE!"},{"$error":"#VALUE!"}]
[null,{"$error":"#VALUE!"},{"$error":"#VALUE!"},"",{"$error":"#VALUE!"},{"$error":"#VALUE!"}]
[null,{"$error":"#VALUE!"},{"$error":"#VALUE!"},"",{"$error":"#VALUE!"},{"$error":"#VALUE!"}]
[null,{"$error":"#VALUE!"},{"$error":"#VALUE!"},"",{"$error":"#VALUE!"},{"$error":"#VALUE!"}]
[null,{"$error":"#VALUE!"},{"$error":"#VALUE!"},"",{"$error":"#VALUE!"},{"$error":"#VALUE!"}]
[null,{"$error":"#VALUE!"},{"$error":"#VALUE!"},"",{"$error":"#VALUE!"},{"$error":"#VALUE!"}]
[null,{"$error":"#VALUE!"},{"$error":"#VALUE!"},"",{"$error":"#VALUE!"},{"$error":"#VALUE!"}]
[null,{"$error":"#VALUE!"},{"$error":"#VALUE!"},"",{"$error":"#VALUE!"},{"$error":"#VALUE!"}]
[null,{"$error":"#VALUE!"},{"$error":"#VALUE!"},"",{"$error":"#VALUE!"},{"$error":"#VALUE!"}]
[null,{"$error":"#VALUE!"},{"$error":"#VALUE!"},"",{"$error":"#VALUE!"},{"$error":"#VALUE!"}]
[null,{"$error":"#VALUE!"},{"$error":"#VALUE!"},"",{"$error":"#VALUE!"},{"$error":"#VALUE!"}]
[null,{"$error":"#VALUE!"},{"$error":"#VALUE!"},"",{"$error":"#VALUE!"},{"$error":"#VALUE!"}]
[null,{"$error":"#VALUE!"},{"$error":"#VALUE!"},"",{"$error":"#VALUE!"},{"$error":"#VALUE!"}]
[null,{"$error":"#VALUE!"},{"$error":"#VALUE!"},"",{"$error":"#VALUE!"},{"$error":"#VALUE!"}]
[null,{"$error":"#VALUE!"},{"$error":"#VALUE!"},"",{"$error":"#VALUE!"},{"$error":"#VALUE!"}]
[null,{"$error":"#VALUE!"},{"$error":"#VALUE!"},"",{"$error":"#VALUE!"},{"$error":"#VALUE!"}]
[null,{"$error":"#VALUE!"},{"$error":"#VALUE!"},"",{"$error":"#VALUE!"},{"$error":"#VALUE!"}]
[null,{"$error":"#VALUE!"},{"$error":"#VALUE!"},"",{"$error":"#VALUE!"},{"$error":"#VALUE!"}]
[null,{"$error":"#VALUE!"},{"$error":"#VALUE!"},"",{"$error":"#VALUE!"},{"$error":"#VALUE!"}]
[null,{"$error":"#VALUE!"},{"$error":"#VALUE!"},"",{"$error":"#VALUE!"},{"$error":"#VALUE!"}]
[null,{"$error":"#VALUE!"},{"$error":"#VALUE!"},"",{"$error":"#VALUE!"},{"$error":"#VALUE!"}]
[null,{"$error":"#VALUE!"},{"$error":"#VALUE!"},"",{"$error":"#VALUE!"},{"$error":"#VALUE!"}]
[null,{"$error":"#VALUE!"},{"$error":"#VALUE!"},"",{"$error":"#VALUE!"},{"$error":"#VALUE!"}]
[null,{"$error":"#VALUE!"},{"$error":"#VALUE!"},"",{"$error":"#VALUE!"},{"$error":"#VALUE!"}]
[null,{"$error":"#VALUE!"},{"$error":"#VALUE!"},"",{"$error":"#VALUE!"},{"$error":"#VALUE!"}]
[null,{"$error":"#VALUE!"},{"$error":"#VALUE!"},"",{"$error":"#VALUE!"},{"$error":"#VALUE!"}]
[null,{"$error":"#VALUE!"},{"$error":"#VALUE!"},"",{"$error":"#VALUE!"},{"$error":"#VALUE!"}]
[null,{"$error":"#VALUE!"},{"$error":"#VALUE!"},"",{"$error":"#VALUE!"},{"$error":"#VALUE!"}]
[null,{"$error":"#VALUE!"},{"$error":"#VALUE!"},"",{"$error":"#VALUE!"},{"$error":"#VALUE!"}]
[null,{"$error":"#VALUE!"},{"$error":"#VALUE!"},"",{"$error":"#VALUE!"},{"$error":"#VALUE!"}]
[null,{"$error":"#VALUE!"},{"$error":"#VALUE!"},"",{"$error":"#VALUE!"},{"$error":"#VALUE!"}]
[null,{"$error":"#VALUE!"},{"$error":"#VALUE!"},"",{"$error":"#VALUE!"},{"$error":"#VALUE!"}]
[null,{"$error":"#VALUE!"},{"$error":"#VALUE!"},"",{"$error":"#VALUE!"},{"$error":"#VALUE!"}]
[null,{"$error":"#VALUE!"},{"$error":"#VALUE!"},"",{"$error":"#VALUE!"},{"$error":"#VALUE!"}]
[null,{"$error":"#VALUE!"},{"$error":"#VALUE!"},"",{"$error":"#VALUE!"},{"$error":"#VALUE!"}]
[null,{"$error":"#VALUE!"},{"$error":"#VALUE!"},"",{"$error":"#VALUE!"},{"$error":"#VALUE!"}]
[null,{"$error":"#VALUE!"},{"$error":"#VALUE!"},"",{"$error":"#VALUE!"},{"$error":"#VALUE!"}]
[null,{"$error":"#VALUE!"},{"$error":"#VALUE!"},"",{"$error":"#VALUE!"},{"$error":"#VALUE!"}]
[null,{"$error":"#VALUE!"},{"$error":"#VALUE!"},"",{"$error":"#VALUE!"},{"$error":"#VALUE!"}]
[null,{"$error":"#VALUE!"},{"$error":"#VALUE!"},"",{"$error":"#VALUE!"},{"$error":"#VALUE!"}]
[null,{"$error":"#VALUE!"},{"$error":"#VALUE!"},"",{"$error":"#VALUE!"},{"$error":"#VALUE!"}]

{"sheet":"Verben BASIS","index":3,"n_rows":513,"n_cols":5,"rows_kept":513,"cut":false,"hidden":false,"merged":[]}
["STRING","Deutsch","Franz","Artikel","Franz"]
["(aus-)rufen, herausschreien=crier",{"$f":"LEFT(A2,FIND(\"=\",A2)-1)","v":"(aus-)rufen, herausschreien"},{"$f":"MID(A2,FIND(\"=\",A2)+1,LEN(A2))","v":"crier"},{"$f":"IF(ISERROR(FIND(\"(f)\",C2)),(IF(ISERROR(FIND(\"(m)\",C2)),\"\",\"m\")),\"f\")","v":""},{"$f":"IF(D2=\"\",C2,LEFT(C2,SEARCH(\"(\",C2)-1))","v":"crier"}]
["(jemandem etwas) geben=donner (qc à qn)","(jemandem etwas) geben","donner (qc à qn)","","donner (qc à qn)"]
["(jemandem) antworten=répondre (à qn)","(jemandem) antworten","répondre (à qn)","","répondre (à qn)"]
["(jemanden) anlügen, belügen=mentir (à qn)","(jemanden) anlügen, belügen","mentir (à qn)","","mentir (à qn)"]
["abschicken, versenden=envoyer","abschicken, versenden","envoyer","","envoyer"]
["abwägen, erwägen=considérer","abwägen, erwägen","considérer","","considérer"]
["ändern=changer","ändern","changer","","changer"]
["anfassen, berühren=toucher","anfassen, berühren","toucher","","toucher"]
["ankommen=arriver","ankommen","arriver","","arriver"]
["ankommen (an), eintreffen=arriver (à)","ankommen (an), eintreffen","arriver (à)","","arriver (à)"]
["ansteigen, wachsen=augmenter","ansteigen, wachsen","augmenter","","augmenter"]
["arbeiten=travailler","arbeiten","travailler","","travailler"]
["atmen=respirer","atmen","respirer","","respirer"]
["aufladen, beladen=charger","aufladen, beladen","charger","","charger"]
["aufmachen, öffnen=ouvrir","aufmachen, öffnen","ouvrir","","ouvrir"]
["aufstehen=se lever (de)","aufstehen","se lever (de)","","se lever (de)"]
["aufsteigen, ansteigen=monter","aufsteigen, ansteigen","monter","","monter"]
["aufwachen=se réveiller","aufwachen","se réveiller","","se réveiller"]
["aufzeigen, darstellen, beweisen=montrer","aufzeigen, darstellen, beweisen","montrer","","montrer"]
["ausgeben, austragen, verteilen=distribuer","ausgeben, austragen, verteilen","distribuer","","distribuer"]
["bedauern (dass)=regretter (que)","bedauern (dass)","regretter (que)","","regretter (que)"]
["bedecken, zudecken=couvrir","bedecken, zudecken","couvrir","","couvrir"]
["bedeuten, besagen=signifier","bedeuten, besagen","signifier","","signifier"]
["beenden, abschließen=finir","beenden, abschließen","finir","","finir"]
["begreifen, verstehen=comprendre","begreifen, verstehen","comprendre","","comprendre"]
["behalten, aufbewahren, aufpassen=garder","behalten, aufbewahren, aufpassen","garder","","garder"]
["behandeln=traiter","behandeln","traiter","","traiter"]
["belegen, beweisen=prouver","belegen, beweisen","prouver","","prouver"]
["bemerken, wahrnehmen=remarquer","bemerken, wahrnehmen","remarquer","","remarquer"]
["berichten (über)=faire un rapport (sur)","berichten (über)","faire un rapport (sur)","","faire un rapport (sur)"]
["beschließen, entscheiden=décider","beschließen, entscheiden","décider","","décider"]
["beschreiben, schildern=décrire","beschreiben, schildern","décrire","","décrire"]
["beschützen, schützen=protéger","beschützen, schützen","protéger","","protéger"]
["bestimmen, ermitteln=déterminer","bestimmen, ermitteln","déterminer","","déterminer"]
["besuchen, besichtigen=visiter","besuchen, besichtigen","visiter","","visiter"]
["bezahlen=payer","bezahlen","payer","","payer"]
["bilden, formen=former","bilden, formen","former","","former"]
["bleiben, übrigbleiben=rester","bleiben, übrigbleiben","rester","","rester"]
["denken, meinen=penser","denken, meinen","penser","","penser"]
["eintreten, hereinkommen=entrer","eintreten, hereinkommen","entrer","","entrer"]
["entdecken, herausfinden=découvrir","entdecken, herausfinden","découvrir","","découvrir"]
["enthalten, beinhalten=contenir","enthalten, beinhalten","contenir","","contenir"]
["entkommen, entfliehen=s'evader","entkommen, entfliehen","s'evader","","s'evader"]
["entwickeln=développer","entwickeln","développer","","développer"]
["erbeuten, fangen, fassen=capturer","erbeuten, fangen, fassen","capturer","","capturer"]
["erhalten, bekommen=recevoir","erhalten, bekommen","recevoir","","recevoir"]
["erhalten, bewahren=préserver","erhalten, bewahren","préserver","","préserver"]
["erkennen, wiedererkennen=reconnaitre","erkennen, wiedererkennen","reconnaitre","","reconnaitre"]
["erklären=expliquer","erklären","expliquer","","expliquer"]
["erschaffen=créer","erschaffen","créer","","créer"]
["erscheinen, auftauchen=apparaitre","erscheinen, auftauchen","apparaitre","","apparaitre"]
["erwarten, warten=attendre","erwarten, warten","attendre","","attendre"]
["erzählen=raconter","erzählen","raconter","","raconter"]
["essen=manger","essen","manger","","manger"]
["etwas aufdecken, preisgeben=révéler qc","etwas aufdecken, preisgeben","révéler qc","","révéler qc"]
["etwas aushalten, ertragen=endurer qc","etwas aushalten, ertragen","endurer qc","","endurer qc"]
["etwas bauen, erbauen=bâtir qc","etwas bauen, erbauen","bâtir qc","","bâtir qc"]
["etwas beginnen=commencer qc","etwas beginnen","commencer qc","","commencer qc"]
["etwas besitzen, über etwas verfügen=détenir qc","etwas besitzen, über etwas verfügen","détenir qc","","détenir qc"]
["etwas bestellen=commander qc","etwas bestellen","commander qc","","commander qc"]
["etwas bewegen, befördern=transporter qc","etwas bewegen, befördern","transporter qc","","transporter qc"]
["etwas bezeichnen, hinweisen auf=indiquer qc","etwas bezeichnen, hinweisen auf","indiquer qc","","indiquer qc"]
["etwas brauchen=avoir besoin de qc","etwas brauchen","avoir besoin de qc","","avoir besoin de qc"]
["etwas bringen=apporter qc","etwas bringen","apporter qc","","apporter qc"]
["etwas dazugeben, dazufügen=ajouter qc","etwas dazugeben, dazufügen","ajouter qc","","ajouter qc"]
["etwas dürfen=avoir le droit de",{"$f":"LEFT(A67,FIND(\"=\",A67)-1)","v":"etwas dürfen"},{"$f":"MID(A67,FIND(\"=\",A67)+1,LEN(A67))","v":"avoir le droit de"},{"$f":"IF(ISERROR(FIND(\"(f)\",C67)),(IF(ISERROR(FIND(\"(m)\",C67)),\"\",\"m\")),\"f\")","v":""},{"$f":"IF(D67=\"\",C67,LEFT(C67,SEARCH(\"(\",C67)-1))","v":"avoir le droit de"}]
["etwas erhalten, bekommen=obtenir qc","etwas erhalten, bekommen","obtenir qc","","obtenir qc"]
["etwas erreichen, schaffen=parvenir à qc","etwas erreichen, schaffen","parvenir à qc","","parvenir à qc"]
["etwas fallen lassen=laisser tomber qc","etwas fallen lassen","laisser tomber qc","","laisser tomber qc"]
["etwas holen=aller chercher qc","etwas holen","aller chercher qc","","aller chercher qc"]
["etwas meiden, vermeiden=éviter qc","etwas meiden, vermeiden","éviter qc","","éviter qc"]
["etwas stellen, aufstellen=mettre qc","etwas stellen, aufstellen","mettre qc","","mettre qc"]
["etwas verarbeiten=travailler qc","etwas verarbeiten","travailler qc","","travailler qc"]
["etwas vermuten, annehmen=présumer qc","etwas vermuten, annehmen","présumer qc","","présumer qc"]
["etwas versäumen, verpassen=manquer qc","etwas versäumen, verpassen","manquer qc","","manquer qc"]
["etwas verwenden, gebrauchen=employer qc","etwas verwenden, gebrauchen","employer qc","","employer qc"]
["etwas zulassen=permettre qc","etwas zulassen","permettre qc","","permettre qc"]
["fahren (am Steuer)=conduire","fahren (am Steuer)","conduire","","conduire"]
["fallen, stürzen=tomber","fallen, stürzen","tomber","","tomber"]
["finden, herausbekommen=trouver","finden, herausbekommen","trouver","","trouver"]
["fliegen=voler","fliegen","voler","","voler"]
["folgen=suivre","folgen","suivre","","suivre"]
["fortsetzen, weitermachen=continuer","fortsetzen, weitermachen","continuer","","continuer"]
["frieren=avoir froid","frieren","avoir froid","","avoir froid"]
["fühlen=sentir","fühlen","sentir","","sentir"]
["gehen, fahren=aller","gehen, fahren","aller","","aller"]
["geschehen, passieren=se passer","geschehen, passieren","se passer","","se passer"]
["glauben=croire","glauben","croire","","croire"]
["haben=avoir","haben","avoir","","avoir"]
["halten, festhalten=tenir","halten, festhalten","tenir","","tenir"]
["handeln, verfahren=agir","handeln, verfahren","agir","","agir"]
["heiraten=se marier","heiraten","se marier","","se marier"]
["heißen=s'appeler","heißen","s'appeler","","s'appeler"]
["helfen=aider","helfen","aider","","aider"]
["herausbringen, veröffentlichen=publier","herausbringen, veröffentlichen","publier","","publier"]
["herstellen, erstellen, ansiedeln=établir","herstellen, erstellen, ansiedeln","établir","","établir"]
["hoffen=espérer","hoffen","espérer","","espérer"]
["hören=écouter","hören","écouter","","écouter"]
["in etwas einwilligen, einverstanden sein=consentir à","in etwas einwilligen, einverstanden sein","consentir à","","consentir à"]
["jemandem etwas anbieten=offrir qc à qn","jemandem etwas anbieten","offrir qc à qn","","offrir qc à qn"]
["jemanden / etwas kennen=connaitre","jemanden / etwas kennen","connaitre","","connaitre"]
["jemanden besuchen=aller voir qn","jemanden besuchen","aller voir qn","","aller voir qn"]
["jemanden etwas fragen=demander qc à qn","jemanden etwas fragen","demander qc à qn","","demander qc à qn"]
["jemanden etwas lehren=apprendre qc à qn","jemanden etwas lehren","apprendre qc à qn","","apprendre qc à qn"]
["jemanden kennenlernen=faire la connaissance de qn","jemanden kennenlernen","faire la connaissance de qn","","faire la connaissance de qn"]
["kaufen=acheter","kaufen","acheter","","acheter"]
["kommen=venir","kommen","venir","","venir"]
["können=pouvoir","können","pouvoir","","pouvoir"]
["lächeln, schmunzeln=sourire","lächeln, schmunzeln","sourire","","sourire"]
["lassen, hinterlassen, belassen=laisser","lassen, hinterlassen, belassen","laisser","","laisser"]
["laufen, funktionieren=fonctionner","laufen, funktionieren","fonctionner","","fonctionner"]
["läuten, klingeln=sonner","läuten, klingeln","sonner","","sonner"]
["leben=vivre","leben","vivre","","vivre"]
["legen, setzen, stellen=poser","legen, setzen, stellen","poser","","poser"]
["leiten, führen=mener","leiten, führen","mener","","mener"]
["lernen=apprendre","lernen","apprendre","","apprendre"]
["lesen=lire","lesen","lire","","lire"]
["lieben, verehren=adorer","lieben, verehren","adorer","","adorer"]
["losgehen, weggehen=partir","losgehen, weggehen","partir","","partir"]
["meinen, glauben, erachten=juger","meinen, glauben, erachten","juger","","juger"]
["messen, ausmessen=mesurer","messen, ausmessen","mesurer","","mesurer"]
["mögen, lieben=aimer","mögen, lieben","aimer","","aimer"]
["müssen, sollen=devoir","müssen, sollen","devoir","","devoir"]
["nachdenken (über)=réfléchir (à)","nachdenken (über)","réfléchir (à)","","réfléchir (à)"]
["nehmen, einnehmen=prendre","nehmen, einnehmen","prendre","","prendre"]
["organisieren, einteilen=organiser","organisieren, einteilen","organiser","","organiser"]
["probieren, anprobieren, testen=essayer","probieren, anprobieren, testen","essayer","","essayer"]
["produzieren, erzeugen=produire","produzieren, erzeugen","produire","","produire"]
["raten, erraten=deviner","raten, erraten","deviner","","deviner"]
["reisen=voyager",{"$f":"LEFT(A131,FIND(\"=\",A131)-1)","v":"reisen"},{"$f":"MID(A131,FIND(\"=\",A131)+1,LEN(A131))","v":"voyager"},{"$f":"IF(ISERROR(FIND(\"(f)\",C131)),(IF(ISERROR(FIND(\"(m)\",C131)),\"\",\"m\")),\"f\")","v":""},{"$f":"IF(D131=\"\",C131,LEFT(C131,SEARCH(\"(\",C131)-1))","v":"voyager"}]
["rennen, laufen=courir","rennen, laufen","courir","","courir"]
["retten, in Sicherheit bringen=sauver","retten, in Sicherheit bringen","sauver","","sauver"]
["rufen, ausrufen=s'exclamer","rufen, ausrufen","s'exclamer","","s'exclamer"]
["rufen, ausrufen, anrufen=appeler","rufen, ausrufen, anrufen","appeler","","appeler"]
["sagen=dire","sagen","dire","","dire"]
["schieben, drängen=pousser","schieben, drängen","pousser","","pousser"]
["schießen, abschießen, töten=abattre","schießen, abschießen, töten","abattre","","abattre"]
["schlafen=dormir","schlafen","dormir","","dormir"]
["schlagen, kämpfen=battre ","schlagen, kämpfen","battre ","","battre "]
["schlagen, schütteln=frapper","schlagen, schütteln","frapper","","frapper"]
["schließen=fermer","schließen","fermer","","fermer"]
["schneiden=couper","schneiden","couper","","couper"]
["schreiben=écrire","schreiben","écrire","","écrire"]
["schreien, weinen=pleurer","schreien, weinen","pleurer","","pleurer"]
["schütteln, hin und her bewegen=agiter","schütteln, hin und her bewegen","agiter","","agiter"]
["schwimmen=nager","schwimmen","nager","","nager"]
["sehen, blicken, anschauen=regarder","sehen, blicken, anschauen","regarder","","regarder"]
["sehen, ein-, durchsehen=voir","sehen, ein-, durchsehen","voir","","voir"]
["sein=être","sein","être","","être"]
["sich ausruhen=se reposer","sich ausruhen","se reposer","","se reposer"]
["sich befinden=se trouver","sich befinden","se trouver","","se trouver"]
["sich bei jemandem für etwas bedanken=remercier qn de qc","sich bei jemandem für etwas bedanken","remercier qn de qc","","remercier qn de qc"]
["sich erinnern=se rappeler","sich erinnern","se rappeler","","se rappeler"]
["sich etwas / jemandem nähern=s'approcher de qc / qn","sich etwas / jemandem nähern","s'approcher de qc / qn","","s'approcher de qc / qn"]
["sich etwas gestatten, gönnen=se permettre qc","sich etwas gestatten, gönnen","se permettre qc","","se permettre qc"]
["sich mit jemandem streiten=se disputer avec qn","sich mit jemandem streiten","se disputer avec qn","","se disputer avec qn"]
["sich niederlassen, sich setzen=s'installer","sich niederlassen, sich setzen","s'installer","","s'installer"]
["sich sorgen=s'inquiéter","sich sorgen","s'inquiéter","","s'inquiéter"]
["sich treffen=se rencontrer","sich treffen","se rencontrer","","se rencontrer"]
["sich um jemanden / etwas kümmern=prendre soin de qc / qn","sich um jemanden / etwas kümmern","prendre soin de qc / qn","","prendre soin de qc / qn"]
["sich verstehen=s'entendre","sich verstehen","s'entendre","","s'entendre"]
["singen=chanter","singen","chanter","","chanter"]
["sinken, abnehmen=diminuer","sinken, abnehmen","diminuer","","diminuer"]
["sitzen (m)=être assis",{"$f":"LEFT(A165,FIND(\"=\",A165)-1)","v":"sitzen (m)"},{"$f":"MID(A165,FIND(\"=\",A165)+1,LEN(A165))","v":"être assis"},{"$f":"IF(ISERROR(FIND(\"(f)\",C165)),(IF(ISERROR(FIND(\"(m)\",C165)),\"\",\"m\")),\"f\")","v":""},{"$f":"IF(D165=\"\",C165,LEFT(C165,SEARCH(\"(\",C165)-1))","v":"être assis"}]
["sitzen (w)=être assise","sitzen (w)","être assise","","être assise"]
["spazieren gehen=se promener","spazieren gehen","se promener","","se promener"]
["spielen=jouer","spielen","jouer","","jouer"]
["sprechen=parler","sprechen","parler","","parler"]
["stoppen, aufhören, anhalten=arrêter","stoppen, aufhören, anhalten","arrêter","","arrêter"]
["studieren, lernen=étudier","studieren, lernen","étudier","","étudier"]
["suchen=chercher","suchen","chercher","","chercher"]
["teilen, gemeinsam nutzen=partager","teilen, gemeinsam nutzen","partager","","partager"]
["tragen=porter","tragen","porter","","porter"]
["träumen=rêver","träumen","rêver","","rêver"]
["trinken=boire","trinken","boire","","boire"]
["tun, machen=faire","tun, machen","faire","","faire"]
["überprüfen, prüfen=contrôler","überprüfen, prüfen","contrôler","","contrôler"]
["umdrehen, zurückkehren=retourner","umdrehen, zurückkehren","retourner","","retourner"]
["umkommen, absterben, eingehen=mourir","umkommen, absterben, eingehen","mourir","","mourir"]
["verbessern, nachbessern=améliorer","verbessern, nachbessern","améliorer","","améliorer"]
["verdienen, gewinnen=gagner","verdienen, gewinnen","gagner","","gagner"]
["vergessen, versäumen=oublier","vergessen, versäumen","oublier","","oublier"]
["vergleichen=comparer","vergleichen","comparer","","comparer"]
["verkaufen=vendre","verkaufen","vendre","","vendre"]
["verlieren (jdn / etwas)=perdre (qn / qc)","verlieren (jdn / etwas)","perdre (qn / qc)","","perdre (qn / qc)"]
["versuchen, schmecken, probieren=goûter","versuchen, schmecken, probieren","goûter","","goûter"]
["verursachen=causer","verursachen","causer","","causer"]
["vorbeigehen, vorübergehen; ablegen (Prüfung)=passer","vorbeigehen, vorübergehen; ablegen (Prüfung)","passer","","passer"]
["vorbereiten, zubereiten=préparer","vorbereiten, zubereiten","préparer","","préparer"]
["vorhanden sein, existieren=exister","vorhanden sein, existieren","exister","","exister"]
["vorschlagen=proposer","vorschlagen","proposer","","proposer"]
["vorstellen, ausdenken=imaginer","vorstellen, ausdenken","imaginer","","imaginer"]
["wagen, riskieren=risquer","wagen, riskieren","risquer","","risquer"]
["wählen, abstimmen=voter","wählen, abstimmen","voter","","voter"]
["wählen, aussuchen=choisir",{"$f":"LEFT(A196,FIND(\"=\",A196)-1)","v":"wählen, aussuchen"},{"$f":"MID(A196,FIND(\"=\",A196)+1,LEN(A196))","v":"choisir"},{"$f":"IF(ISERROR(FIND(\"(f)\",C196)),(IF(ISERROR(FIND(\"(m)\",C196)),\"\",\"m\")),\"f\")","v":""},{"$f":"IF(D196=\"\",C196,LEFT(C196,SEARCH(\"(\",C196)-1))","v":"choisir"}]
["warnen, verhindern=prévenir","warnen, verhindern","prévenir","","prévenir"]
["wenden, abbiegen=tourner","wenden, abbiegen","tourner","","tourner"]
["werden=devenir","werden","devenir","","devenir"]
["werfen=jeter","werfen","jeter","","jeter"]
["wissen=savoir","wissen","savoir","","savoir"]
["wohnen, bewohnen=habiter","wohnen, bewohnen","habiter","","habiter"]
["wollen=vouloir","wollen","vouloir","","vouloir"]
["wünschen, begehren=désirer","wünschen, begehren","désirer","","désirer"]
["zeichnen, gestalten=dessiner","zeichnen, gestalten","dessiner","","dessiner"]
["ziehen=tirer","ziehen","tirer","","tirer"]
["zu Fuß gehen=aller à pied","zu Fuß gehen","aller à pied","","aller à pied"]
[null,{"$f":"LEFT(A208,FIND(\"=\",A208)-1)","v":{"$error":"#VALUE!"}},{"$f":"MID(A208,FIND(\"=\",A208)+1,LEN(A208))","v":{"$error":"#VALUE!"}},{"$f":"IF(ISERROR(FIND(\"(f)\",C208)),(IF(ISERROR(FIND(\"(m)\",C208)),\"\",\"m\")),\"f\")","v":""},{"$f":"IF(D208=\"\",C208,LEFT(C208,SEARCH(\"(\",C208)-1))","v":{"$error":"#VALUE!"}}]
[null,{"$error":"#VALUE!"},{"$error":"#VALUE!"},{"$f":"IF(ISERROR(FIND(\"(f)\",C209)),(IF(ISERROR(FIND(\"(m)\",C209)),\"\",\"m\")),\"f\")","v":""},{"$error":"#VALUE!"}]
[null,{"$error":"#VALUE!"},{"$error":"#VALUE!"},"",{"$error":"#VALUE!"}]
[null,{"$error":"#VALUE!"},{"$error":"#VALUE!"},"",{"$error":"#VALUE!"}]
[null,{"$error":"#VALUE!"},{"$error":"#VALUE!"},"",{"$error":"#VALUE!"}]
[null,{"$error":"#VALUE!"},{"$error":"#VALUE!"},"",{"$error":"#VALUE!"}]
[null,{"$error":"#VALUE!"},{"$error":"#VALUE!"},"",{"$error":"#VALUE!"}]
[null,{"$error":"#VALUE!"},{"$error":"#VALUE!"},"",{"$error":"#VALUE!"}]
[null,{"$error":"#VALUE!"},{"$error":"#VALUE!"},"",{"$error":"#VALUE!"}]
[null,{"$error":"#VALUE!"},{"$error":"#VALUE!"},"",{"$error":"#VALUE!"}]
[null,{"$error":"#VALUE!"},{"$error":"#VALUE!"},"",{"$error":"#VALUE!"}]
[null,{"$error":"#VALUE!"},{"$error":"#VALUE!"},"",{"$error":"#VALUE!"}]
[null,{"$error":"#VALUE!"},{"$error":"#VALUE!"},"",{"$error":"#VALUE!"}]
[null,{"$error":"#VALUE!"},{"$error":"#VALUE!"},"",{"$error":"#VALUE!"}]
[null,{"$error":"#VALUE!"},{"$error":"#VALUE!"},"",{"$error":"#VALUE!"}]
[null,{"$error":"#VALUE!"},{"$error":"#VALUE!"},"",{"$error":"#VALUE!"}]
[null,{"$error":"#VALUE!"},{"$error":"#VALUE!"},"",{"$error":"#VALUE!"}]
[null,{"$error":"#VALUE!"},{"$error":"#VALUE!"},"",{"$error":"#VALUE!"}]
[null,{"$error":"#VALUE!"},{"$error":"#VALUE!"},"",{"$error":"#VALUE!"}]
[null,{"$error":"#VALUE!"},{"$error":"#VALUE!"},"",{"$error":"#VALUE!"}]
[null,{"$error":"#VALUE!"},{"$error":"#VALUE!"},"",{"$error":"#VALUE!"}]
[null,{"$error":"#VALUE!"},{"$error":"#VALUE!"},"",{"$error":"#VALUE!"}]
[null,{"$error":"#VALUE!"},{"$error":"#VALUE!"},"",{"$error":"#VALUE!"}]
[null,{"$error":"#VALUE!"},{"$error":"#VALUE!"},"",{"$error":"#VALUE!"}]
[null,{"$error":"#VALUE!"},{"$error":"#VALUE!"},"",{"$error":"#VALUE!"}]
[null,{"$error":"#VALUE!"},{"$error":"#VALUE!"},"",{"$error":"#VALUE!"}]
[null,{"$error":"#VALUE!"},{"$error":"#VALUE!"},"",{"$error":"#VALUE!"}]
[null,{"$error":"#VALUE!"},{"$error":"#VALUE!"},"",{"$error":"#VALUE!"}]
[null,{"$error":"#VALUE!"},{"$error":"#VALUE!"},"",{"$error":"#VALUE!"}]
[null,{"$error":"#VALUE!"},{"$error":"#VALUE!"},"",{"$error":"#VALUE!"}]
[null,{"$error":"#VALUE!"},{"$error":"#VALUE!"},"",{"$error":"#VALUE!"}]
[null,{"$error":"#VALUE!"},{"$error":"#VALUE!"},"",{"$error":"#VALUE!"}]
[null,{"$error":"#VALUE!"},{"$error":"#VALUE!"},"",{"$error":"#VALUE!"}]
[null,{"$error":"#VALUE!"},{"$error":"#VALUE!"},"",{"$error":"#VALUE!"}]
[null,{"$error":"#VALUE!"},{"$error":"#VALUE!"},"",{"$error":"#VALUE!"}]
[null,{"$error":"#VALUE!"},{"$error":"#VALUE!"},"",{"$error":"#VALUE!"}]
[null,{"$error":"#VALUE!"},{"$error":"#VALUE!"},"",{"$error":"#VALUE!"}]
[null,{"$error":"#VALUE!"},{"$error":"#VALUE!"},"",{"$error":"#VALUE!"}]
[null,{"$error":"#VALUE!"},{"$error":"#VALUE!"},"",{"$error":"#VALUE!"}]
[null,{"$error":"#VALUE!"},{"$error":"#VALUE!"},"",{"$error":"#VALUE!"}]
[null,{"$error":"#VALUE!"},{"$error":"#VALUE!"},"",{"$error":"#VALUE!"}]
[null,{"$error":"#VALUE!"},{"$error":"#VALUE!"},"",{"$error":"#VALUE!"}]
[null,{"$error":"#VALUE!"},{"$error":"#VALUE!"},"",{"$error":"#VALUE!"}]
[null,{"$error":"#VALUE!"},{"$error":"#VALUE!"},"",{"$error":"#VALUE!"}]
[null,{"$error":"#VALUE!"},{"$error":"#VALUE!"},"",{"$error":"#VALUE!"}]
[null,{"$error":"#VALUE!"},{"$error":"#VALUE!"},"",{"$error":"#VALUE!"}]
[null,{"$error":"#VALUE!"},{"$error":"#VALUE!"},"",{"$error":"#VALUE!"}]
[null,{"$error":"#VALUE!"},{"$error":"#VALUE!"},"",{"$error":"#VALUE!"}]
[null,{"$error":"#VALUE!"},{"$error":"#VALUE!"},"",{"$error":"#VALUE!"}]
[null,{"$error":"#VALUE!"},{"$error":"#VALUE!"},"",{"$error":"#VALUE!"}]
[null,{"$error":"#VALUE!"},{"$error":"#VALUE!"},"",{"$error":"#VALUE!"}]
[null,{"$error":"#VALUE!"},{"$error":"#VALUE!"},"",{"$error":"#VALUE!"}]
[null,{"$error":"#VALUE!"},{"$error":"#VALUE!"},"",{"$error":"#VALUE!"}]
[null,{"$error":"#VALUE!"},{"$error":"#VALUE!"},"",{"$error":"#VALUE!"}]
[null,{"$error":"#VALUE!"},{"$error":"#VALUE!"},"",{"$error":"#VALUE!"}]
[null,{"$error":"#VALUE!"},{"$error":"#VALUE!"},"",{"$error":"#VALUE!"}]
[null,{"$error":"#VALUE!"},{"$error":"#VALUE!"},"",{"$error":"#VALUE!"}]
[null,{"$error":"#VALUE!"},{"$error":"#VALUE!"},"",{"$error":"#VALUE!"}]
[null,{"$error":"#VALUE!"},{"$error":"#VALUE!"},"",{"$error":"#VALUE!"}]
[null,{"$error":"#VALUE!"},{"$error":"#VALUE!"},"",{"$error":"#VALUE!"}]
[null,{"$error":"#VALUE!"},{"$error":"#VALUE!"},"",{"$error":"#VALUE!"}]
[null,{"$error":"#VALUE!"},{"$error":"#VALUE!"},"",{"$error":"#VALUE!"}]
[null,{"$error":"#VALUE!"},{"$error":"#VALUE!"},"",{"$error":"#VALUE!"}]
[null,{"$error":"#VALUE!"},{"$error":"#VALUE!"},"",{"$error":"#VALUE!"}]
[null,{"$f":"LEFT(A272,FIND(\"=\",A272)-1)","v":{"$error":"#VALUE!"}},{"$f":"MID(A272,FIND(\"=\",A272)+1,LEN(A272))","v":{"$error":"#VALUE!"}},{"$f":"IF(ISERROR(FIND(\"(f)\",C272)),(IF(ISERROR(FIND(\"(m)\",C272)),\"\",\"m\")),\"f\")","v":""},{"$f":"IF(D272=\"\",C272,LEFT(C272,SEARCH(\"(\",C272)-1))","v":{"$error":"#VALUE!"}}]
[null,{"$error":"#VALUE!"},{"$error":"#VALUE!"},"",{"$error":"#VALUE!"}]
[null,{"$error":"#VALUE!"},{"$error":"#VALUE!"},"",{"$error":"#VALUE!"}]
[null,{"$error":"#VALUE!"},{"$error":"#VALUE!"},"",{"$error":"#VALUE!"}]
[null,{"$error":"#VALUE!"},{"$error":"#VALUE!"},"",{"$error":"#VALUE!"}]
[null,{"$error":"#VALUE!"},{"$error":"#VALUE!"},"",{"$error":"#VALUE!"}]
[null,{"$error":"#VALUE!"},{"$error":"#VALUE!"},"",{"$error":"#VALUE!"}]
[null,{"$error":"#VALUE!"},{"$error":"#VALUE!"},"",{"$error":"#VALUE!"}]
[null,{"$error":"#VALUE!"},{"$error":"#VALUE!"},"",{"$error":"#VALUE!"}]
[null,{"$error":"#VALUE!"},{"$error":"#VALUE!"},"",{"$error":"#VALUE!"}]
[null,{"$error":"#VALUE!"},{"$error":"#VALUE!"},"",{"$error":"#VALUE!"}]
[null,{"$error":"#VALUE!"},{"$error":"#VALUE!"},"",{"$error":"#VALUE!"}]
[null,{"$error":"#VALUE!"},{"$error":"#VALUE!"},"",{"$error":"#VALUE!"}]
[null,{"$error":"#VALUE!"},{"$error":"#VALUE!"},"",{"$error":"#VALUE!"}]
[null,{"$error":"#VALUE!"},{"$error":"#VALUE!"},"",{"$error":"#VALUE!"}]
[null,{"$error":"#VALUE!"},{"$error":"#VALUE!"},"",{"$error":"#VALUE!"}]
[null,{"$error":"#VALUE!"},{"$error":"#VALUE!"},"",{"$error":"#VALUE!"}]
[null,{"$error":"#VALUE!"},{"$error":"#VALUE!"},"",{"$error":"#VALUE!"}]
[null,{"$error":"#VALUE!"},{"$error":"#VALUE!"},"",{"$error":"#VALUE!"}]
[null,{"$error":"#VALUE!"},{"$error":"#VALUE!"},"",{"$error":"#VALUE!"}]
[null,{"$error":"#VALUE!"},{"$error":"#VALUE!"},"",{"$error":"#VALUE!"}]
[null,{"$error":"#VALUE!"},{"$error":"#VALUE!"},"",{"$error":"#VALUE!"}]
[null,{"$error":"#VALUE!"},{"$error":"#VALUE!"},"",{"$error":"#VALUE!"}]
[null,{"$error":"#VALUE!"},{"$error":"#VALUE!"},"",{"$error":"#VALUE!"}]
[null,{"$error":"#VALUE!"},{"$error":"#VALUE!"},"",{"$error":"#VALUE!"}]
[null,{"$error":"#VALUE!"},{"$error":"#VALUE!"},"",{"$error":"#VALUE!"}]
[null,{"$error":"#VALUE!"},{"$error":"#VALUE!"},"",{"$error":"#VALUE!"}]
[null,{"$error":"#VALUE!"},{"$error":"#VALUE!"},"",{"$error":"#VALUE!"}]
[null,{"$error":"#VALUE!"},{"$error":"#VALUE!"},"",{"$error":"#VALUE!"}]
[null,{"$error":"#VALUE!"},{"$error":"#VALUE!"},"",{"$error":"#VALUE!"}]
[null,{"$error":"#VALUE!"},{"$error":"#VALUE!"},"",{"$error":"#VALUE!"}]
[null,{"$error":"#VALUE!"},{"$error":"#VALUE!"},"",{"$error":"#VALUE!"}]
[null,{"$error":"#VALUE!"},{"$error":"#VALUE!"},"",{"$error":"#VALUE!"}]
[null,{"$error":"#VALUE!"},{"$error":"#VALUE!"},"",{"$error":"#VALUE!"}]
[null,{"$error":"#VALUE!"},{"$error":"#VALUE!"},"",{"$error":"#VALUE!"}]
[null,{"$error":"#VALUE!"},{"$error":"#VALUE!"},"",{"$error":"#VALUE!"}]
[null,{"$error":"#VALUE!"},{"$error":"#VALUE!"},"",{"$error":"#VALUE!"}]
[null,{"$error":"#VALUE!"},{"$error":"#VALUE!"},"",{"$error":"#VALUE!"}]
[null,{"$error":"#VALUE!"},{"$error":"#VALUE!"},"",{"$error":"#VALUE!"}]
[null,{"$error":"#VALUE!"},{"$error":"#VALUE!"},"",{"$error":"#VALUE!"}]
[null,{"$error":"#VALUE!"},{"$error":"#VALUE!"},"",{"$error":"#VALUE!"}]
[null,{"$error":"#VALUE!"},{"$error":"#VALUE!"},"",{"$error":"#VALUE!"}]
[null,{"$error":"#VALUE!"},{"$error":"#VALUE!"},"",{"$error":"#VALUE!"}]
[null,{"$error":"#VALUE!"},{"$error":"#VALUE!"},"",{"$error":"#VALUE!"}]
[null,{"$error":"#VALUE!"},{"$error":"#VALUE!"},"",{"$error":"#VALUE!"}]
[null,{"$error":"#VALUE!"},{"$error":"#VALUE!"},"",{"$error":"#VALUE!"}]
[null,{"$error":"#VALUE!"},{"$error":"#VALUE!"},"",{"$error":"#VALUE!"}]
[null,{"$error":"#VALUE!"},{"$error":"#VALUE!"},"",{"$error":"#VALUE!"}]
[null,{"$error":"#VALUE!"},{"$error":"#VALUE!"},"",{"$error":"#VALUE!"}]
[null,{"$error":"#VALUE!"},{"$error":"#VALUE!"},"",{"$error":"#VALUE!"}]
[null,{"$error":"#VALUE!"},{"$error":"#VALUE!"},"",{"$error":"#VALUE!"}]
[null,{"$error":"#VALUE!"},{"$error":"#VALUE!"},"",{"$error":"#VALUE!"}]
[null,{"$error":"#VALUE!"},{"$error":"#VALUE!"},"",{"$error":"#VALUE!"}]
[null,{"$error":"#VALUE!"},{"$error":"#VALUE!"},"",{"$error":"#VALUE!"}]
[null,{"$error":"#VALUE!"},{"$error":"#VALUE!"},"",{"$error":"#VALUE!"}]
[null,{"$error":"#VALUE!"},{"$error":"#VALUE!"},"",{"$error":"#VALUE!"}]
[null,{"$error":"#VALUE!"},{"$error":"#VALUE!"},"",{"$error":"#VALUE!"}]
[null,{"$error":"#VALUE!"},{"$error":"#VALUE!"},"",{"$error":"#VALUE!"}]
[null,{"$error":"#VALUE!"},{"$error":"#VALUE!"},"",{"$error":"#VALUE!"}]
[null,{"$error":"#VALUE!"},{"$error":"#VALUE!"},"",{"$error":"#VALUE!"}]
[null,{"$error":"#VALUE!"},{"$error":"#VALUE!"},"",{"$error":"#VALUE!"}]
[null,{"$error":"#VALUE!"},{"$error":"#VALUE!"},"",{"$error":"#VALUE!"}]
[null,{"$error":"#VALUE!"},{"$error":"#VALUE!"},"",{"$error":"#VALUE!"}]
[null,{"$error":"#VALUE!"},{"$error":"#VALUE!"},"",{"$error":"#VALUE!"}]
[null,{"$f":"LEFT(A336,FIND(\"=\",A336)-1)","v":{"$error":"#VALUE!"}},{"$f":"MID(A336,FIND(\"=\",A336)+1,LEN(A336))","v":{"$error":"#VALUE!"}},{"$f":"IF(ISERROR(FIND(\"(f)\",C336)),(IF(ISERROR(FIND(\"(m)\",C336)),\"\",\"m\")),\"f\")","v":""},{"$f":"IF(D336=\"\",C336,LEFT(C336,SEARCH(\"(\",C336)-1))","v":{"$error":"#VALUE!"}}]
[null,{"$error":"#VALUE!"},{"$error":"#VALUE!"},"",{"$error":"#VALUE!"}]
[null,{"$error":"#VALUE!"},{"$error":"#VALUE!"},"",{"$error":"#VALUE!"}]
[null,{"$error":"#VALUE!"},{"$error":"#VALUE!"},"",{"$error":"#VALUE!"}]
[null,{"$error":"#VALUE!"},{"$error":"#VALUE!"},"",{"$error":"#VALUE!"}]
[null,{"$error":"#VALUE!"},{"$error":"#VALUE!"},"",{"$error":"#VALUE!"}]
[null,{"$error":"#VALUE!"},{"$error":"#VALUE!"},"",{"$error":"#VALUE!"}]
[null,{"$error":"#VALUE!"},{"$error":"#VALUE!"},"",{"$error":"#VALUE!"}]
[null,{"$error":"#VALUE!"},{"$error":"#VALUE!"},"",{"$error":"#VALUE!"}]
[null,{"$error":"#VALUE!"},{"$error":"#VALUE!"},"",{"$error":"#VALUE!"}]
[null,{"$error":"#VALUE!"},{"$error":"#VALUE!"},"",{"$error":"#VALUE!"}]
[null,{"$error":"#VALUE!"},{"$error":"#VALUE!"},"",{"$error":"#VALUE!"}]
[null,{"$error":"#VALUE!"},{"$error":"#VALUE!"},"",{"$error":"#VALUE!"}]
[null,{"$error":"#VALUE!"},{"$error":"#VALUE!"},"",{"$error":"#VALUE!"}]
[null,{"$error":"#VALUE!"},{"$error":"#VALUE!"},"",{"$error":"#VALUE!"}]
[null,{"$error":"#VALUE!"},{"$error":"#VALUE!"},"",{"$error":"#VALUE!"}]
[null,{"$error":"#VALUE!"},{"$error":"#VALUE!"},"",{"$error":"#VALUE!"}]
[null,{"$error":"#VALUE!"},{"$error":"#VALUE!"},"",{"$error":"#VALUE!"}]
[null,{"$error":"#VALUE!"},{"$error":"#VALUE!"},"",{"$error":"#VALUE!"}]
[null,{"$error":"#VALUE!"},{"$error":"#VALUE!"},"",{"$error":"#VALUE!"}]
[null,{"$error":"#VALUE!"},{"$error":"#VALUE!"},"",{"$error":"#VALUE!"}]
[null,{"$error":"#VALUE!"},{"$error":"#VALUE!"},"",{"$error":"#VALUE!"}]
[null,{"$error":"#VALUE!"},{"$error":"#VALUE!"},"",{"$error":"#VALUE!"}]
[null,{"$error":"#VALUE!"},{"$error":"#VALUE!"},"",{"$error":"#VALUE!"}]
[null,{"$error":"#VALUE!"},{"$error":"#VALUE!"},"",{"$error":"#VALUE!"}]
[null,{"$error":"#VALUE!"},{"$error":"#VALUE!"},"",{"$error":"#VALUE!"}]
[null,{"$error":"#VALUE!"},{"$error":"#VALUE!"},"",{"$error":"#VALUE!"}]
[null,{"$error":"#VALUE!"},{"$error":"#VALUE!"},"",{"$error":"#VALUE!"}]
[null,{"$error":"#VALUE!"},{"$error":"#VALUE!"},"",{"$error":"#VALUE!"}]
[null,{"$error":"#VALUE!"},{"$error":"#VALUE!"},"",{"$error":"#VALUE!"}]
[null,{"$error":"#VALUE!"},{"$error":"#VALUE!"},"",{"$error":"#VALUE!"}]
[null,{"$error":"#VALUE!"},{"$error":"#VALUE!"},"",{"$error":"#VALUE!"}]
[null,{"$error":"#VALUE!"},{"$error":"#VALUE!"},"",{"$error":"#VALUE!"}]
[null,{"$error":"#VALUE!"},{"$error":"#VALUE!"},"",{"$error":"#VALUE!"}]
[null,{"$error":"#VALUE!"},{"$error":"#VALUE!"},"",{"$error":"#VALUE!"}]
[null,{"$error":"#VALUE!"},{"$error":"#VALUE!"},"",{"$error":"#VALUE!"}]
[null,{"$error":"#VALUE!"},{"$error":"#VALUE!"},"",{"$error":"#VALUE!"}]
[null,{"$error":"#VALUE!"},{"$error":"#VALUE!"},"",{"$error":"#VALUE!"}]
[null,{"$error":"#VALUE!"},{"$error":"#VALUE!"},"",{"$error":"#VALUE!"}]
[null,{"$error":"#VALUE!"},{"$error":"#VALUE!"},"",{"$error":"#VALUE!"}]
[null,{"$error":"#VALUE!"},{"$error":"#VALUE!"},"",{"$error":"#VALUE!"}]
[null,{"$error":"#VALUE!"},{"$error":"#VALUE!"},"",{"$error":"#VALUE!"}]
[null,{"$error":"#VALUE!"},{"$error":"#VALUE!"},"",{"$error":"#VALUE!"}]
[null,{"$error":"#VALUE!"},{"$error":"#VALUE!"},"",{"$error":"#VALUE!"}]
[null,{"$error":"#VALUE!"},{"$error":"#VALUE!"},"",{"$error":"#VALUE!"}]
[null,{"$error":"#VALUE!"},{"$error":"#VALUE!"},"",{"$error":"#VALUE!"}]
[null,{"$error":"#VALUE!"},{"$error":"#VALUE!"},"",{"$error":"#VALUE!"}]
[null,{"$error":"#VALUE!"},{"$error":"#VALUE!"},"",{"$error":"#VALUE!"}]
[null,{"$error":"#VALUE!"},{"$error":"#VALUE!"},"",{"$error":"#VALUE!"}]
[null,{"$error":"#VALUE!"},{"$error":"#VALUE!"},"",{"$error":"#VALUE!"}]
[null,{"$error":"#VALUE!"},{"$error":"#VALUE!"},"",{"$error":"#VALUE!"}]
[null,{"$error":"#VALUE!"},{"$error":"#VALUE!"},"",{"$error":"#VALUE!"}]
[null,{"$error":"#VALUE!"},{"$error":"#VALUE!"},"",{"$error":"#VALUE!"}]
[null,{"$error":"#VALUE!"},{"$error":"#VALUE!"},"",{"$error":"#VALUE!"}]
[null,{"$error":"#VALUE!"},{"$error":"#VALUE!"},"",{"$error":"#VALUE!"}]
[null,{"$error":"#VALUE!"},{"$error":"#VALUE!"},"",{"$error":"#VALUE!"}]
[null,{"$error":"#VALUE!"},{"$error":"#VALUE!"},"",{"$error":"#VALUE!"}]
[null,{"$error":"#VALUE!"},{"$error":"#VALUE!"},"",{"$error":"#VALUE!"}]
[null,{"$error":"#VALUE!"},{"$error":"#VALUE!"},"",{"$error":"#VALUE!"}]
[null,{"$error":"#VALUE!"},{"$error":"#VALUE!"},"",{"$error":"#VALUE!"}]
[null,{"$error":"#VALUE!"},{"$error":"#VALUE!"},"",{"$error":"#VALUE!"}]
[null,{"$error":"#VALUE!"},{"$error":"#VALUE!"},"",{"$error":"#VALUE!"}]
[null,{"$error":"#VALUE!"},{"$error":"#VALUE!"},"",{"$error":"#VALUE!"}]
[null,{"$error":"#VALUE!"},{"$error":"#VALUE!"},"",{"$error":"#VALUE!"}]
[null,{"$f":"LEFT(A400,FIND(\"=\",A400)-1)","v":{"$error":"#VALUE!"}},{"$f":"MID(A400,FIND(\"=\",A400)+1,LEN(A400))","v":{"$error":"#VALUE!"}},{"$f":"IF(ISERROR(FIND(\"(f)\",C400)),(IF(ISERROR(FIND(\"(m)\",C400)),\"\",\"m\")),\"f\")","v":""},{"$f":"IF(D400=\"\",C400,LEFT(C400,SEARCH(\"(\",C400)-1))","v":{"$error":"#VALUE!"}}]
[null,{"$error":"#VALUE!"},{"$error":"#VALUE!"},"",{"$error":"#VALUE!"}]
[null,{"$error":"#VALUE!"},{"$error":"#VALUE!"},"",{"$error":"#VALUE!"}]
[null,{"$error":"#VALUE!"},{"$error":"#VALUE!"},"",{"$error":"#VALUE!"}]
[null,{"$error":"#VALUE!"},{"$error":"#VALUE!"},"",{"$error":"#VALUE!"}]
[null,{"$error":"#VALUE!"},{"$error":"#VALUE!"},"",{"$error":"#VALUE!"}]
[null,{"$error":"#VALUE!"},{"$error":"#VALUE!"},"",{"$error":"#VALUE!"}]
[null,{"$error":"#VALUE!"},{"$error":"#VALUE!"},"",{"$error":"#VALUE!"}]
[null,{"$error":"#VALUE!"},{"$error":"#VALUE!"},"",{"$error":"#VALUE!"}]
[null,{"$error":"#VALUE!"},{"$error":"#VALUE!"},"",{"$error":"#VALUE!"}]
[null,{"$error":"#VALUE!"},{"$error":"#VALUE!"},"",{"$error":"#VALUE!"}]
[null,{"$error":"#VALUE!"},{"$error":"#VALUE!"},"",{"$error":"#VALUE!"}]
[null,{"$error":"#VALUE!"},{"$error":"#VALUE!"},"",{"$error":"#VALUE!"}]
[null,{"$error":"#VALUE!"},{"$error":"#VALUE!"},"",{"$error":"#VALUE!"}]
[null,{"$error":"#VALUE!"},{"$error":"#VALUE!"},"",{"$error":"#VALUE!"}]
[null,{"$error":"#VALUE!"},{"$error":"#VALUE!"},"",{"$error":"#VALUE!"}]
[null,{"$error":"#VALUE!"},{"$error":"#VALUE!"},"",{"$error":"#VALUE!"}]
[null,{"$error":"#VALUE!"},{"$error":"#VALUE!"},"",{"$error":"#VALUE!"}]
[null,{"$error":"#VALUE!"},{"$error":"#VALUE!"},"",{"$error":"#VALUE!"}]
[null,{"$error":"#VALUE!"},{"$error":"#VALUE!"},"",{"$error":"#VALUE!"}]
[null,{"$error":"#VALUE!"},{"$error":"#VALUE!"},"",{"$error":"#VALUE!"}]
[null,{"$error":"#VALUE!"},{"$error":"#VALUE!"},"",{"$error":"#VALUE!"}]
[null,{"$error":"#VALUE!"},{"$error":"#VALUE!"},"",{"$error":"#VALUE!"}]
[null,{"$error":"#VALUE!"},{"$error":"#VALUE!"},"",{"$error":"#VALUE!"}]
[null,{"$error":"#VALUE!"},{"$error":"#VALUE!"},"",{"$error":"#VALUE!"}]
[null,{"$error":"#VALUE!"},{"$error":"#VALUE!"},"",{"$error":"#VALUE!"}]
[null,{"$error":"#VALUE!"},{"$error":"#VALUE!"},"",{"$error":"#VALUE!"}]
[null,{"$error":"#VALUE!"},{"$error":"#VALUE!"},"",{"$error":"#VALUE!"}]
[null,{"$error":"#VALUE!"},{"$error":"#VALUE!"},"",{"$error":"#VALUE!"}]
[null,{"$error":"#VALUE!"},{"$error":"#VALUE!"},"",{"$error":"#VALUE!"}]
[null,{"$error":"#VALUE!"},{"$error":"#VALUE!"},"",{"$error":"#VALUE!"}]
[null,{"$error":"#VALUE!"},{"$error":"#VALUE!"},"",{"$error":"#VALUE!"}]
[null,{"$error":"#VALUE!"},{"$error":"#VALUE!"},"",{"$error":"#VALUE!"}]
[null,{"$error":"#VALUE!"},{"$error":"#VALUE!"},"",{"$error":"#VALUE!"}]
[null,{"$error":"#VALUE!"},{"$error":"#VALUE!"},"",{"$error":"#VALUE!"}]
[null,{"$error":"#VALUE!"},{"$error":"#VALUE!"},"",{"$error":"#VALUE!"}]
[null,{"$error":"#VALUE!"},{"$error":"#VALUE!"},"",{"$error":"#VALUE!"}]
[null,{"$error":"#VALUE!"},{"$error":"#VALUE!"},"",{"$error":"#VALUE!"}]
[null,{"$error":"#VALUE!"},{"$error":"#VALUE!"},"",{"$error":"#VALUE!"}]
[null,{"$error":"#VALUE!"},{"$error":"#VALUE!"},"",{"$error":"#VALUE!"}]
[null,{"$error":"#VALUE!"},{"$error":"#VALUE!"},"",{"$error":"#VALUE!"}]
[null,{"$error":"#VALUE!"},{"$error":"#VALUE!"},"",{"$error":"#VALUE!"}]
[null,{"$error":"#VALUE!"},{"$error":"#VALUE!"},"",{"$error":"#VALUE!"}]
[null,{"$error":"#VALUE!"},{"$error":"#VALUE!"},"",{"$error":"#VALUE!"}]
[null,{"$error":"#VALUE!"},{"$error":"#VALUE!"},"",{"$error":"#VALUE!"}]
[null,{"$error":"#VALUE!"},{"$error":"#VALUE!"},"",{"$error":"#VALUE!"}]
[null,{"$error":"#VALUE!"},{"$error":"#VALUE!"},"",{"$error":"#VALUE!"}]
[null,{"$error":"#VALUE!"},{"$error":"#VALUE!"},"",{"$error":"#VALUE!"}]
[null,{"$error":"#VALUE!"},{"$error":"#VALUE!"},"",{"$error":"#VALUE!"}]
[null,{"$error":"#VALUE!"},{"$error":"#VALUE!"},"",{"$error":"#VALUE!"}]
[null,{"$error":"#VALUE!"},{"$error":"#VALUE!"},"",{"$error":"#VALUE!"}]
[null,{"$error":"#VALUE!"},{"$error":"#VALUE!"},"",{"$error":"#VALUE!"}]
[null,{"$error":"#VALUE!"},{"$error":"#VALUE!"},"",{"$error":"#VALUE!"}]
[null,{"$error":"#VALUE!"},{"$error":"#VALUE!"},"",{"$error":"#VALUE!"}]
[null,{"$error":"#VALUE!"},{"$error":"#VALUE!"},"",{"$error":"#VALUE!"}]
[null,{"$error":"#VALUE!"},{"$error":"#VALUE!"},"",{"$error":"#VALUE!"}]
[null,{"$error":"#VALUE!"},{"$error":"#VALUE!"},"",{"$error":"#VALUE!"}]
[null,{"$error":"#VALUE!"},{"$error":"#VALUE!"},"",{"$error":"#VALUE!"}]
[null,{"$error":"#VALUE!"},{"$error":"#VALUE!"},"",{"$error":"#VALUE!"}]
[null,{"$error":"#VALUE!"},{"$error":"#VALUE!"},"",{"$error":"#VALUE!"}]
[null,{"$error":"#VALUE!"},{"$error":"#VALUE!"},"",{"$error":"#VALUE!"}]
[null,{"$error":"#VALUE!"},{"$error":"#VALUE!"},"",{"$error":"#VALUE!"}]
[null,{"$error":"#VALUE!"},{"$error":"#VALUE!"},"",{"$error":"#VALUE!"}]
[null,{"$error":"#VALUE!"},{"$error":"#VALUE!"},"",{"$error":"#VALUE!"}]
[null,{"$f":"LEFT(A464,FIND(\"=\",A464)-1)","v":{"$error":"#VALUE!"}},{"$f":"MID(A464,FIND(\"=\",A464)+1,LEN(A464))","v":{"$error":"#VALUE!"}},{"$f":"IF(ISERROR(FIND(\"(f)\",C464)),(IF(ISERROR(FIND(\"(m)\",C464)),\"\",\"m\")),\"f\")","v":""},{"$f":"IF(D464=\"\",C464,LEFT(C464,SEARCH(\"(\",C464)-1))","v":{"$error":"#VALUE!"}}]
[null,{"$error":"#VALUE!"},{"$error":"#VALUE!"},"",{"$error":"#VALUE!"}]
[null,{"$error":"#VALUE!"},{"$error":"#VALUE!"},"",{"$error":"#VALUE!"}]
[null,{"$error":"#VALUE!"},{"$error":"#VALUE!"},"",{"$error":"#VALUE!"}]
[null,{"$error":"#VALUE!"},{"$error":"#VALUE!"},"",{"$error":"#VALUE!"}]
[null,{"$error":"#VALUE!"},{"$error":"#VALUE!"},"",{"$error":"#VALUE!"}]
[null,{"$error":"#VALUE!"},{"$error":"#VALUE!"},"",{"$error":"#VALUE!"}]
[null,{"$error":"#VALUE!"},{"$error":"#VALUE!"},"",{"$error":"#VALUE!"}]
[null,{"$error":"#VALUE!"},{"$error":"#VALUE!"},"",{"$error":"#VALUE!"}]
[null,{"$error":"#VALUE!"},{"$error":"#VALUE!"},"",{"$error":"#VALUE!"}]
[null,{"$error":"#VALUE!"},{"$error":"#VALUE!"},"",{"$error":"#VALUE!"}]
[null,{"$error":"#VALUE!"},{"$error":"#VALUE!"},"",{"$error":"#VALUE!"}]
[null,{"$error":"#VALUE!"},{"$error":"#VALUE!"},"",{"$error":"#VALUE!"}]
[null,{"$error":"#VALUE!"},{"$error":"#VALUE!"},"",{"$error":"#VALUE!"}]
[null,{"$error":"#VALUE!"},{"$error":"#VALUE!"},"",{"$error":"#VALUE!"}]
[null,{"$error":"#VALUE!"},{"$error":"#VALUE!"},"",{"$error":"#VALUE!"}]
[null,{"$error":"#VALUE!"},{"$error":"#VALUE!"},"",{"$error":"#VALUE!"}]
[null,{"$error":"#VALUE!"},{"$error":"#VALUE!"},"",{"$error":"#VALUE!"}]
[null,{"$error":"#VALUE!"},{"$error":"#VALUE!"},"",{"$error":"#VALUE!"}]
[null,{"$error":"#VALUE!"},{"$error":"#VALUE!"},"",{"$error":"#VALUE!"}]
[null,{"$error":"#VALUE!"},{"$error":"#VALUE!"},"",{"$error":"#VALUE!"}]
[null,{"$error":"#VALUE!"},{"$error":"#VALUE!"},"",{"$error":"#VALUE!"}]
[null,{"$error":"#VALUE!"},{"$error":"#VALUE!"},"",{"$error":"#VALUE!"}]
[null,{"$error":"#VALUE!"},{"$error":"#VALUE!"},"",{"$error":"#VALUE!"}]
[null,{"$error":"#VALUE!"},{"$error":"#VALUE!"},"",{"$error":"#VALUE!"}]
[null,{"$error":"#VALUE!"},{"$error":"#VALUE!"},"",{"$error":"#VALUE!"}]
[null,{"$error":"#VALUE!"},{"$error":"#VALUE!"},"",{"$error":"#VALUE!"}]
[null,{"$error":"#VALUE!"},{"$error":"#VALUE!"},"",{"$error":"#VALUE!"}]
[null,{"$error":"#VALUE!"},{"$error":"#VALUE!"},"",{"$error":"#VALUE!"}]
[null,{"$error":"#VALUE!"},{"$error":"#VALUE!"},"",{"$error":"#VALUE!"}]
[null,{"$error":"#VALUE!"},{"$error":"#VALUE!"},"",{"$error":"#VALUE!"}]
[null,{"$error":"#VALUE!"},{"$error":"#VALUE!"},"",{"$error":"#VALUE!"}]
[null,{"$error":"#VALUE!"},{"$error":"#VALUE!"},"",{"$error":"#VALUE!"}]
[null,{"$error":"#VALUE!"},{"$error":"#VALUE!"},"",{"$error":"#VALUE!"}]
[null,{"$error":"#VALUE!"},{"$error":"#VALUE!"},"",{"$error":"#VALUE!"}]
[null,{"$error":"#VALUE!"},{"$error":"#VALUE!"},"",{"$error":"#VALUE!"}]
[null,{"$error":"#VALUE!"},{"$error":"#VALUE!"},"",{"$error":"#VALUE!"}]
[null,{"$error":"#VALUE!"},{"$error":"#VALUE!"},"",{"$error":"#VALUE!"}]
[null,{"$error":"#VALUE!"},{"$error":"#VALUE!"},"",{"$error":"#VALUE!"}]
[null,{"$error":"#VALUE!"},{"$error":"#VALUE!"},"",{"$error":"#VALUE!"}]
[null,{"$error":"#VALUE!"},{"$error":"#VALUE!"},"",{"$error":"#VALUE!"}]
[null,{"$error":"#VALUE!"},{"$error":"#VALUE!"},"",{"$error":"#VALUE!"}]
[null,{"$error":"#VALUE!"},{"$error":"#VALUE!"},"",{"$error":"#VALUE!"}]
[null,{"$error":"#VALUE!"},{"$error":"#VALUE!"},"",{"$error":"#VALUE!"}]
[null,{"$error":"#VALUE!"},{"$error":"#VALUE!"},"",{"$error":"#VALUE!"}]
[null,{"$error":"#VALUE!"},{"$error":"#VALUE!"},"",{"$error":"#VALUE!"}]
[null,{"$error":"#VALUE!"},{"$error":"#VALUE!"},"",{"$error":"#VALUE!"}]
[null,{"$error":"#VALUE!"},{"$error":"#VALUE!"},"",{"$error":"#VALUE!"}]
[null,{"$error":"#VALUE!"},{"$error":"#VALUE!"},"",{"$error":"#VALUE!"}]
[null,{"$error":"#VALUE!"},{"$error":"#VALUE!"},"",{"$error":"#VALUE!"}]

{"sheet":"Adjektive BASIS","index":4,"n_rows":400,"n_cols":5,"rows_kept":400,"cut":false,"hidden":false,"merged":[]}
[null,"Deutsch",null,"Geschlecht"]
["ähnlich, gleichartig=similaire",{"$f":"LEFT(A2,FIND(\"=\",A2)-1)","v":"ähnlich, gleichartig"},{"$f":"MID(A2,FIND(\"=\",A2)+1,LEN(A2))","v":"similaire"},{"$f":"IF(ISERROR(FIND(\"(f)\",B2)),(IF(ISERROR(FIND(\"(m)\",B2)),\"\",\"m\")),\"f\")","v":""},{"$f":"C2","v":"similaire"}]
["allein (f) =seule",{"$f":"LEFT(A3,FIND(\"=\",A3)-1)","v":"allein (f) "},{"$f":"MID(A3,FIND(\"=\",A3)+1,LEN(A3))","v":"seule"},{"$f":"IF(ISERROR(FIND(\"(f)\",B3)),(IF(ISERROR(FIND(\"(m)\",B3)),\"\",\"m\")),\"f\")","v":"f"},"seule"]
["allein (m) =seul","allein (m) ","seul","m","seul"]
["alt (f) =vieille","alt (f) ","vieille","f","vieille"]
["alt (m) =vieux","alt (m) ","vieux","m","vieux"]
["angenehm, behaglich=agréable","angenehm, behaglich","agréable","","agréable"]
["arm=pauvre","arm","pauvre","","pauvre"]
["bedeckt, bewölkt (f) =couverte","bedeckt, bewölkt (f) ","couverte","f","couverte"]
["bedeckt, bewölkt (m) =couvert","bedeckt, bewölkt (m) ","couvert","m","couvert"]
["bedeutsam (f) =signifiante","bedeutsam (f) ","signifiante","f","signifiante"]
["bedeutsam (m) =signifiant","bedeutsam (m) ","signifiant","m","signifiant"]
["beliebt, bevorzugt (f) =favorite","beliebt, bevorzugt (f) ","favorite","f","favorite"]
["beliebt, bevorzugt (m) =favorit","beliebt, bevorzugt (m) ","favorit","m","favorit"]
["beruflich, Berufs... (f) =professionnelle","beruflich, Berufs... (f) ","professionnelle","f","professionnelle"]
["beruflich, Berufs... (m) =professionnel","beruflich, Berufs... (m) ","professionnel","m","professionnel"]
["billig=à bas prix","billig","à bas prix","","à bas prix"]
["blau (f) =bleue","blau (f) ","bleue","f","bleue"]
["blau (m) =bleu","blau (m) ","bleu","m","bleu"]
["böse, bösartig (f) =méchante","böse, bösartig (f) ","méchante","f","méchante"]
["böse, bösartig (m) =méchant","böse, bösartig (m) ","méchant","m","méchant"]
["braun (f) =brune","braun (f) ","brune","f","brune"]
["braun (m) =brun","braun (m) ","brun","m","brun"]
["breit, groß (f) =forte","breit, groß (f) ","forte","f","forte"]
["breit, groß (m) =fort","breit, groß (m) ","fort","m","fort"]
["dankbar (f) =reconnaissante","dankbar (f) ","reconnaissante","f","reconnaissante"]
["dankbar (m) =reconnaissant","dankbar (m) ","reconnaissant","m","reconnaissant"]
["dick, fett, groß (f) =grosse","dick, fett, groß (f) ","grosse","f","grosse"]
["dick, fett, groß (m) =gros","dick, fett, groß (m) ","gros","m","gros"]
["dreckig, verschmutzt (f) =crasseuse","dreckig, verschmutzt (f) ","crasseuse","f","crasseuse"]
["dreckig, verschmutzt (m) =crasseux","dreckig, verschmutzt (m) ","crasseux","m","crasseux"]
["dumm, töricht (f) =idiote","dumm, töricht (f) ","idiote","f","idiote"]
["dumm, töricht (m) =idiot","dumm, töricht (m) ","idiot","m","idiot"]
["dunkel, düster=sombre","dunkel, düster","sombre","","sombre"]
["dünn, zart, zierlich (f) =fine","dünn, zart, zierlich (f) ","fine","f","fine"]
["dünn, zart, zierlich (m) =fin","dünn, zart, zierlich (m) ","fin","m","fin"]
["eben, flach (f) =plate","eben, flach (f) ","plate","f","plate"]
["eben, flach (m) =plat","eben, flach (m) ","plat","m","plat"]
["ehrbar, ehrenvoll=honorable","ehrbar, ehrenvoll","honorable","","honorable"]
["ehrgeizig, strebsam (f) =ambitieuse","ehrgeizig, strebsam (f) ","ambitieuse","f","ambitieuse"]
["ehrgeizig, strebsam (m) =ambitieux","ehrgeizig, strebsam (m) ","ambitieux","m","ambitieux"]
["ehrlich, aufrichtig=sincère","ehrlich, aufrichtig","sincère","","sincère"]
["eifrig, emsig, engagiert (f) =diligente","eifrig, emsig, engagiert (f) ","diligente","f","diligente"]
["eifrig, emsig, engagiert (m) =diligent","eifrig, emsig, engagiert (m) ","diligent","m","diligent"]
["einfach, schlicht=simple","einfach, schlicht","simple","","simple"]
["empfindlich, zerbrechlich=fragile","empfindlich, zerbrechlich","fragile","","fragile"]
["endgültig, definitiv (f) =définitive","endgültig, definitiv (f) ","définitive","f","définitive"]
["endgültig, definitiv (m) =définitif","endgültig, definitiv (m) ","définitif","m","définitif"]
["energisch, tatkräftig=énergique","energisch, tatkräftig","énergique","","énergique"]
["entschlossen, bestimmt (f) =déterminée","entschlossen, bestimmt (f) ","déterminée","f","déterminée"]
["entschlossen, bestimmt (m) =déterminé","entschlossen, bestimmt (m) ","déterminé","m","déterminé"]
["ernst, ernsthaft (f) =sérieuse","ernst, ernsthaft (f) ","sérieuse","f","sérieuse"]
["ernst, ernsthaft (m) =sérieux","ernst, ernsthaft (m) ","sérieux","m","sérieux"]
["erregt, aufgeregt (f) =excitée","erregt, aufgeregt (f) ","excitée","f","excitée"]
["erregt, aufgeregt (m) =excité","erregt, aufgeregt (m) ","excité","m","excité"]
["falsch (f) =fausse","falsch (f) ","fausse","f","fausse"]
["falsch (m) =faux","falsch (m) ","faux","m","faux"]
["fertig, bereit (f) =prête","fertig, bereit (f) ","prête","f","prête"]
["fertig, bereit (m) =prêt","fertig, bereit (m) ","prêt","m","prêt"]
["fest, hart (f) =dure","fest, hart (f) ","dure","f","dure"]
["fest, hart (m) =dur","fest, hart (m) ","dur","m","dur"]
["feucht=humide","feucht","humide","","humide"]
["frei, unbehindert=libre","frei, unbehindert","libre","","libre"]
["fremd, ausländisch (f) =étrangère","fremd, ausländisch (f) ","étrangère","f","étrangère"]
["fremd, ausländisch (m) =étranger","fremd, ausländisch (m) ","étranger","m","étranger"]
["freundlich, nett, lieb (f) =gentille",{"$f":"LEFT(A66,FIND(\"=\",A66)-1)","v":"freundlich, nett, lieb (f) "},{"$f":"MID(A66,FIND(\"=\",A66)+1,LEN(A66))","v":"gentille"},"f",{"$f":"C66","v":"gentille"}]
["freundlich, nett, lieb (m) =gentil","freundlich, nett, lieb (m) ","gentil",{"$f":"IF(ISERROR(FIND(\"(f)\",B67)),(IF(ISERROR(FIND(\"(m)\",B67)),\"\",\"m\")),\"f\")","v":"m"},"gentil"]
["frisch (f) =fraiche","frisch (f) ","fraiche","f","fraiche"]
["frisch (m) =frais","frisch (m) ","frais","m","frais"]
["froh, glücklich (f) =heureuse","froh, glücklich (f) ","heureuse","f","heureuse"]
["froh, glücklich (m) =heureux","froh, glücklich (m) ","heureux","m","heureux"]
["früher, ehemalig, antik (f) =ancienne","früher, ehemalig, antik (f) ","ancienne","f","ancienne"]
["früher, ehemalig, antik (m) =ancien","früher, ehemalig, antik (m) ","ancien","m","ancien"]
["furchtbar=terrible","furchtbar","terrible","","terrible"]
["gebildet (f) =cultivée","gebildet (f) ","cultivée","f","cultivée"]
["gebildet (m) =cultivé","gebildet (m) ","cultivé","m","cultivé"]
["geduldig (f) =patiente","geduldig (f) ","patiente","f","patiente"]
["geduldig (m) =patient","geduldig (m) ","patient","m","patient"]
["gefährlich (f) =dangereuse","gefährlich (f) ","dangereuse","f","dangereuse"]
["gefährlich (m) =dangereux","gefährlich (m) ","dangereux","m","dangereux"]
["gefällig, amüsant, angenehm (f) =plaisante","gefällig, amüsant, angenehm (f) ","plaisante","f","plaisante"]
["gefällig, amüsant, angenehm (m) =plaisant","gefällig, amüsant, angenehm (m) ","plaisant","m","plaisant"]
["gegenwärtig, aktuell (f) =actuelle","gegenwärtig, aktuell (f) ","actuelle","f","actuelle"]
["gegenwärtig, aktuell (m) =actuel","gegenwärtig, aktuell (m) ","actuel","m","actuel"]
["gelb=jaune","gelb","jaune","","jaune"]
["genug, genügend (f) =suffisante","genug, genügend (f) ","suffisante","f","suffisante"]
["genug, genügend (m) =suffisant","genug, genügend (m) ","suffisant","m","suffisant"]
["gerade, rechte/r/s (f) =droite","gerade, rechte/r/s (f) ","droite","f","droite"]
["gerade, rechte/r/s (m) =droit","gerade, rechte/r/s (m) ","droit","m","droit"]
["gerecht=juste","gerecht","juste","","juste"]
["geringwertig, unterlegen, gering (f) =inférieure","geringwertig, unterlegen, gering (f) ","inférieure","f","inférieure"]
["geringwertig, unterlegen, gering (m) =inférieur","geringwertig, unterlegen, gering (m) ","inférieur","m","inférieur"]
["gesamt, völlig (f) =totale","gesamt, völlig (f) ","totale","f","totale"]
["gesamt, völlig (m) =total","gesamt, völlig (m) ","total","m","total"]
["gesund (f) =saine","gesund (f) ","saine","f","saine"]
["gesund (m) =sain","gesund (m) ","sain","m","sain"]
["gewaltig, riesig, mächtig=énorme","gewaltig, riesig, mächtig","énorme","","énorme"]
["giftig=toxique","giftig","toxique","","toxique"]
["gleichgültig, teilnahmslos (f) =indifférente","gleichgültig, teilnahmslos (f) ","indifférente","f","indifférente"]
["gleichgültig, teilnahmslos (m) =indifférent","gleichgültig, teilnahmslos (m) ","indifférent","m","indifférent"]
["glücklich (f) =heureuse","glücklich (f) ","heureuse","f","heureuse"]
["glücklich (m) =heureux","glücklich (m) ","heureux","m","heureux"]
["groß (f) =grande","groß (f) ","grande","f","grande"]
["groß (m) =grand","groß (m) ","grand","m","grand"]
["großartig, grandios=grandiose","großartig, grandios","grandiose","","grandiose"]
["grün (f) =verte","grün (f) ","verte","f","verte"]
["grün (m) =vert","grün (m) ","vert","m","vert"]
["gut (f) =bonne","gut (f) ","bonne","f","bonne"]
["gut (m) =bon","gut (m) ","bon","m","bon"]
["gutaussehend (f) =belle","gutaussehend (f) ","belle","f","belle"]
["gutaussehend (m) =beau","gutaussehend (m) ","beau","m","beau"]
["halb (f) =demie","halb (f) ","demie","f","demie"]
["halb (m) =demi","halb (m) ","demi","m","demi"]
["hässlich (f) =laide","hässlich (f) ","laide","f","laide"]
["hässlich (m) =laid","hässlich (m) ","laid","m","laid"]
["haupt... (f) =principale","haupt... (f) ","principale","f","principale"]
["haupt... (m) =principal","haupt... (m) ","principal","m","principal"]
["herzlich, liebevoll (f) =affectueuse","herzlich, liebevoll (f) ","affectueuse","f","affectueuse"]
["herzlich, liebevoll (m) =affectueux","herzlich, liebevoll (m) ","affectueux","m","affectueux"]
["hoch (f) =haute","hoch (f) ","haute","f","haute"]
["hoch (m) =haut","hoch (m) ","haut","m","haut"]
["hübsch (f) =jolie","hübsch (f) ","jolie","f","jolie"]
["hübsch (m) =joli","hübsch (m) ","joli","m","joli"]
["intelligent, klug (f) =intelligente","intelligent, klug (f) ","intelligente","f","intelligente"]
["intelligent, klug (m) =intelligent","intelligent, klug (m) ","intelligent","m","intelligent"]
["interessant (f) =intéressante","interessant (f) ","intéressante","f","intéressante"]
["interessant (m) =intéressant","interessant (m) ","intéressant","m","intéressant"]
["international (f) =internationale","international (f) ","internationale","f","internationale"]
["international (m) =international","international (m) ","international","m","international"]
["jung=jeune",{"$f":"LEFT(A130,FIND(\"=\",A130)-1)","v":"jung"},{"$f":"MID(A130,FIND(\"=\",A130)+1,LEN(A130))","v":"jeune"},"",{"$f":"C130","v":"jeune"}]
["kalt (f) =froide","kalt (f) ","froide",{"$f":"IF(ISERROR(FIND(\"(f)\",B131)),(IF(ISERROR(FIND(\"(m)\",B131)),\"\",\"m\")),\"f\")","v":"f"},"froide"]
["kalt (m) =froid","kalt (m) ","froid","m","froid"]
["kaputt, zerbrochen (f) =cassée","kaputt, zerbrochen (f) ","cassée","f","cassée"]
["kaputt, zerbrochen (m) =cassé","kaputt, zerbrochen (m) ","cassé","m","cassé"]
["klar, deutlich, hell (f) =claire","klar, deutlich, hell (f) ","claire","f","claire"]
["klar, deutlich, hell (m) =clair","klar, deutlich, hell (m) ","clair","m","clair"]
["klar, rein, pur (f) =pure","klar, rein, pur (f) ","pure","f","pure"]
["klar, rein, pur (m) =pur","klar, rein, pur (m) ","pur","m","pur"]
["klein (f) =petite","klein (f) ","petite","f","petite"]
["klein (m) =petit","klein (m) ","petit","m","petit"]
["klug, umsichtig, bedächtig (f) =prudente","klug, umsichtig, bedächtig (f) ","prudente","f","prudente"]
["klug, umsichtig, bedächtig (m) =prudent","klug, umsichtig, bedächtig (m) ","prudent","m","prudent"]
["köstlich, lecker (f) =délicieuse","köstlich, lecker (f) ","délicieuse","f","délicieuse"]
["köstlich, lecker (m) =délicieux","köstlich, lecker (m) ","délicieux","m","délicieux"]
["kurz, knapp (f) =courte","kurz, knapp (f) ","courte","f","courte"]
["kurz, knapp (m) =court","kurz, knapp (m) ","court","m","court"]
["lächerlich=ridicule","lächerlich","ridicule","","ridicule"]
["lang, ausgedehnt (f) =longue","lang, ausgedehnt (f) ","longue","f","longue"]
["lang, ausgedehnt (m) =long","lang, ausgedehnt (m) ","long","m","long"]
["langsam, allmählich (f) =lente","langsam, allmählich (f) ","lente","f","lente"]
["langsam, allmählich (m) =lent","langsam, allmählich (m) ","lent","m","lent"]
["langweilig, ärgerlich (f) =ennuyeuse","langweilig, ärgerlich (f) ","ennuyeuse","f","ennuyeuse"]
["langweilig, ärgerlich (m) =ennuyeux","langweilig, ärgerlich (m) ","ennuyeux","m","ennuyeux"]
["laut=à grand bruit","laut","à grand bruit","","à grand bruit"]
["leer=vide","leer","vide","","vide"]
["leicht, dünn, mild (f) =légère","leicht, dünn, mild (f) ","légère","f","légère"]
["leicht, dünn, mild (m) =léger","leicht, dünn, mild (m) ","léger","m","léger"]
["leicht, einfach=facile","leicht, einfach","facile","","facile"]
["lustig, witzig=drôle","lustig, witzig","drôle","","drôle"]
["medizinisch (f) =médicale","medizinisch (f) ","médicale","f","médicale"]
["medizinisch (m) =médical","medizinisch (m) ","médical","m","médical"]
["menschlich, menschenwürdig (f) =humaine","menschlich, menschenwürdig (f) ","humaine","f","humaine"]
["menschlich, menschenwürdig (m) =humain","menschlich, menschenwürdig (m) ","humain","m","humain"]
["modern=moderne","modern","moderne","","moderne"]
["möglich=possible","möglich","possible","","possible"]
["müde (f) =fatiguée","müde (f) ","fatiguée","f","fatiguée"]
["müde (m) =fatigué","müde (m) ","fatigué","m","fatigué"]
["nächste/r/s (f) =prochaine","nächste/r/s (f) ","prochaine","f","prochaine"]
["nächste/r/s (m) =prochain","nächste/r/s (m) ","prochain","m","prochain"]
["nah=proche","nah","proche","","proche"]
["nass (f) =mouillée","nass (f) ","mouillée","f","mouillée"]
["nass (m) =mouillé","nass (m) ","mouillé","m","mouillé"]
["natürlich (f) =naturelle","natürlich (f) ","naturelle","f","naturelle"]
["natürlich (m) =naturel","natürlich (m) ","naturel","m","naturel"]
["neu (f) =nouvelle","neu (f) ","nouvelle","f","nouvelle"]
["neu (m) =nouveau","neu (m) ","nouveau","m","nouveau"]
["neugierig (f) =curieuse","neugierig (f) ","curieuse","f","curieuse"]
["neugierig (m) =curieux","neugierig (m) ","curieux","m","curieux"]
["nötig, notwendig=nécessaire","nötig, notwendig","nécessaire","","nécessaire"]
["oberflächlich (f) =superficielle","oberflächlich (f) ","superficielle","f","superficielle"]
["oberflächlich (m) =superficiel","oberflächlich (m) ","superficiel","m","superficiel"]
["offen (f) =ouverte","offen (f) ","ouverte","f","ouverte"]
["offen (m) =ouvert","offen (m) ","ouvert","m","ouvert"]
["öffentlich, staatlich (f) =publique","öffentlich, staatlich (f) ","publique","f","publique"]
["öffentlich, staatlich (m) =public","öffentlich, staatlich (m) ","public","m","public"]
["offiziell, amtlich (f) =officielle","offiziell, amtlich (f) ","officielle","f","officielle"]
["offiziell, amtlich (m) =officiel","offiziell, amtlich (m) ","officiel","m","officiel"]
["örtlich, orts... (f) =locale","örtlich, orts... (f) ","locale","f","locale"]
["örtlich, orts... (m) =local","örtlich, orts... (m) ","local","m","local"]
["packend, spannend (f) =captivante","packend, spannend (f) ","captivante","f","captivante"]
["packend, spannend (m) =captivant","packend, spannend (m) ","captivant","m","captivant"]
["persönlich (f) =personnelle","persönlich (f) ","personnelle","f","personnelle"]
["persönlich (m) =personnel","persönlich (m) ","personnel","m","personnel"]
["politisch=politique",{"$f":"LEFT(A194,FIND(\"=\",A194)-1)","v":"politisch"},{"$f":"MID(A194,FIND(\"=\",A194)+1,LEN(A194))","v":"politique"},"",{"$f":"C194","v":"politique"}]
["positiv (f) =positive","positiv (f) ","positive",{"$f":"IF(ISERROR(FIND(\"(f)\",B195)),(IF(ISERROR(FIND(\"(m)\",B195)),\"\",\"m\")),\"f\")","v":"f"},"positive"]
["positiv (m) =positif","positiv (m) ","positif","m","positif"]
["privat (f) =privée","privat (f) ","privée","f","privée"]
["privat (m) =privé","privat (m) ","privé","m","privé"]
["pünktlich (f) =ponctuelle","pünktlich (f) ","ponctuelle","f","ponctuelle"]
["pünktlich (m) =ponctuel","pünktlich (m) ","ponctuel","m","ponctuel"]
["rauh, barsch, unsanft=rude","rauh, barsch, unsanft","rude","","rude"]
["regnerisch (f) =pluvieuse","regnerisch (f) ","pluvieuse","f","pluvieuse"]
["regnerisch (m) =pluvieux","regnerisch (m) ","pluvieux","m","pluvieux"]
["reich=riche","reich","riche","","riche"]
["religiös (f) =religieuse","religiös (f) ","religieuse","f","religieuse"]
["religiös (m) =religieux","religiös (m) ","religieux","m","religieux"]
["richtig, echt, wahr (f) =vraie","richtig, echt, wahr (f) ","vraie","f","vraie"]
["richtig, echt, wahr (m) =vrai","richtig, echt, wahr (m) ","vrai","m","vrai"]
["roh, unbearbeitet, brutal (f) =brute","roh, unbearbeitet, brutal (f) ","brute","f","brute"]
["roh, unbearbeitet, brutal (m) =brut","roh, unbearbeitet, brutal (m) ","brut","m","brut"]
["rot=rouge","rot","rouge","","rouge"]
["ruhig, still=tranquille","ruhig, still","tranquille","","tranquille"]
["rund, kreisrund (f) =ronde","rund, kreisrund (f) ","ronde","f","ronde"]
["rund, kreisrund (m) =rond","rund, kreisrund (m) ","rond","m","rond"]
["rund=circulaire","rund","circulaire","","circulaire"]
["sauber=propre","sauber","propre","","propre"]
["sauer, säuerlich=aigre","sauer, säuerlich","aigre","","aigre"]
["schief, schräg=oblique","schief, schräg","oblique","","oblique"]
["schlau, geistreich (f) =ingénieuse","schlau, geistreich (f) ","ingénieuse","f","ingénieuse"]
["schlau, geistreich (m) =ingénieux","schlau, geistreich (m) ","ingénieux","m","ingénieux"]
["schlecht, ungut (f) =mauvaise","schlecht, ungut (f) ","mauvaise","f","mauvaise"]
["schlecht, ungut (m) =mauvais","schlecht, ungut (m) ","mauvais","m","mauvais"]
["schnell=rapide","schnell","rapide","","rapide"]
["schreckhaft, ängstlich (f) =peureuse","schreckhaft, ängstlich (f) ","peureuse","f","peureuse"]
["schreckhaft, ängstlich (m) =peureux","schreckhaft, ängstlich (m) ","peureux","m","peureux"]
["schwach, gering=faible","schwach, gering","faible","","faible"]
["schwarz (f) =noire","schwarz (f) ","noire","f","noire"]
["schwarz (m) =noir","schwarz (m) ","noir","m","noir"]
["schwer, beschwerlich=pénible","schwer, beschwerlich","pénible","","pénible"]
["schwierig=difficile","schwierig","difficile","","difficile"]
["sicher, gewiss, bestimmt (f) =certaine","sicher, gewiss, bestimmt (f) ","certaine","f","certaine"]
["sicher, gewiss, bestimmt (m) =certain","sicher, gewiss, bestimmt (m) ","certain","m","certain"]
["sicher, zuverlässig (f) =sûre","sicher, zuverlässig (f) ","sûre","f","sûre"]
["sicher, zuverlässig (m) =sûr","sicher, zuverlässig (m) ","sûr","m","sûr"]
["Sozial..., gesellschaftlich (f) =sociale","Sozial..., gesellschaftlich (f) ","sociale","f","sociale"]
["Sozial..., gesellschaftlich (m) =social","Sozial..., gesellschaftlich (m) ","social","m","social"]
["speziell (f) =spéciale","speziell (f) ","spéciale","f","spéciale"]
["speziell (m) =spécial","speziell (m) ","spécial","m","spécial"]
["spitz, spitzig (f) =pointue","spitz, spitzig (f) ","pointue","f","pointue"]
["spitz, spitzig (m) =pointu","spitz, spitzig (m) ","pointu","m","pointu"]
["still, schweigsam, geräuscharm (f) =silencieuse","still, schweigsam, geräuscharm (f) ","silencieuse","f","silencieuse"]
["still, schweigsam, geräuscharm (m) =silencieux","still, schweigsam, geräuscharm (m) ","silencieux","m","silencieux"]
["süß, zuckerhaltig (f) =sucrée","süß, zuckerhaltig (f) ","sucrée","f","sucrée"]
["süß, zuckerhaltig (m) =sucré","süß, zuckerhaltig (m) ","sucré","m","sucré"]
["tief, niedrig (f) =basse","tief, niedrig (f) ","basse","f","basse"]
["tief, niedrig (m) =bas","tief, niedrig (m) ","bas","m","bas"]
["toll, großartig=formidable","toll, großartig","formidable","","formidable"]
["tot (f) =morte","tot (f) ","morte","f","morte"]
["tot (m) =mort","tot (m) ","mort","m","mort"]
["treu, zuverlässig=fidèle","treu, zuverlässig","fidèle","","fidèle"]
["trocken (f) =sèche","trocken (f) ","sèche","f","sèche"]
["trocken (m) =sec","trocken (m) ","sec","m","sec"]
["unaufrichtig, unehrlich=insincère","unaufrichtig, unehrlich","insincère","","insincère"]
["unbeholfen, ungeschickt (f) =maladroite","unbeholfen, ungeschickt (f) ","maladroite","f","maladroite"]
["unbeholfen, ungeschickt (m) =maladroit","unbeholfen, ungeschickt (m) ","maladroit","m","maladroit"]
["ungerecht=injuste","ungerecht","injuste","","injuste"]
["ungesund (f) =malsaine","ungesund (f) ","malsaine","f","malsaine"]
["ungesund (m) =malsain",{"$f":"LEFT(A258,FIND(\"=\",A258)-1)","v":"ungesund (m) "},{"$f":"MID(A258,FIND(\"=\",A258)+1,LEN(A258))","v":"malsain"},"m",{"$f":"C258","v":"malsain"}]
["ungleich=inégalitaire","ungleich","inégalitaire",{"$f":"IF(ISERROR(FIND(\"(f)\",B259)),(IF(ISERROR(FIND(\"(m)\",B259)),\"\",\"m\")),\"f\")","v":""},"inégalitaire"]
["unhöflich, grob (f) =impolie","unhöflich, grob (f) ","impolie","f","impolie"]
["unhöflich, grob (m) =impoli","unhöflich, grob (m) ","impoli","m","impoli"]
["unsicher, ungewiss (f) =incertaine","unsicher, ungewiss (f) ","incertaine","f","incertaine"]
["unsicher, ungewiss (m) =incertain","unsicher, ungewiss (m) ","incertain","m","incertain"]
["verfügbar, vorhanden=disponible","verfügbar, vorhanden","disponible","","disponible"]
["verschieden(-artig), unterschiedlich (f) =différente","verschieden(-artig), unterschiedlich (f) ","différente","f","différente"]
["verschieden(-artig), unterschiedlich (m) =différent","verschieden(-artig), unterschiedlich (m) ","différent","m","différent"]
["vertrauensvoll, zuversichtlich (f) =confiante","vertrauensvoll, zuversichtlich (f) ","confiante","f","confiante"]
["vertrauensvoll, zuversichtlich (m) =confiant","vertrauensvoll, zuversichtlich (m) ","confiant","m","confiant"]
["voll, gefüllt (f) =pleine","voll, gefüllt (f) ","pleine","f","pleine"]
["voll, gefüllt (m) =plein","voll, gefüllt (m) ","plein","m","plein"]
["völlig, gesamt (f) =entière","völlig, gesamt (f) ","entière","f","entière"]
["völlig, gesamt (m) =entier","völlig, gesamt (m) ","entier","m","entier"]
["völlig, umfassend, komplett (f) =complète","völlig, umfassend, komplett (f) ","complète","f","complète"]
["völlig, umfassend, komplett (m) =complet","völlig, umfassend, komplett (m) ","complet","m","complet"]
["vorsichtig, achtsam (f) =attentive","vorsichtig, achtsam (f) ","attentive","f","attentive"]
["vorsichtig, achtsam (m) =attentif","vorsichtig, achtsam (m) ","attentif","m","attentif"]
["wahrscheinlich=probable","wahrscheinlich","probable","","probable"]
["warm (f) =chaude","warm (f) ","chaude","f","chaude"]
["warm (m) =chaud","warm (m) ","chaud","m","chaud"]
["weich, leise, sanft (f) =douce","weich, leise, sanft (f) ","douce","f","douce"]
["weich, leise, sanft (m) =doux","weich, leise, sanft (m) ","doux","m","doux"]
["weiß (f) =blanche","weiß (f) ","blanche","f","blanche"]
["weiß (m) =blanc","weiß (m) ","blanc","m","blanc"]
["wertvoll (f) =précieuse","wertvoll (f) ","précieuse","f","précieuse"]
["wertvoll (m) =précieux","wertvoll (m) ","précieux","m","précieux"]
["wichtig (f) =importante","wichtig (f) ","importante","f","importante"]
["wichtig (m) =important","wichtig (m) ","important","m","important"]
["winzig=minuscule","winzig","minuscule","","minuscule"]
["wirklich, tatsächlich (f) =réelle","wirklich, tatsächlich (f) ","réelle","f","réelle"]
["wirklich, tatsächlich (m) =réel","wirklich, tatsächlich (m) ","réel","m","réel"]
["wunderbar, herrlich=magnifique","wunderbar, herrlich","magnifique","","magnifique"]
["wunderbar, wundervoll (f) =merveilleuse","wunderbar, wundervoll (f) ","merveilleuse","f","merveilleuse"]
["wunderbar, wundervoll (m) =merveilleux","wunderbar, wundervoll (m) ","merveilleux","m","merveilleux"]
["zentral (f) =centrale","zentral (f) ","centrale","f","centrale"]
["zentral (m) =central","zentral (m) ","central","m","central"]
["zufrieden, froh, wunschlos (f) =contente","zufrieden, froh, wunschlos (f) ","contente","f","contente"]
["zufrieden, froh, wunschlos (m) =content","zufrieden, froh, wunschlos (m) ","content","m","content"]
[null,{"$f":"LEFT(A298,FIND(\"=\",A298)-1)","v":{"$error":"#VALUE!"}},{"$f":"MID(A298,FIND(\"=\",A298)+1,LEN(A298))","v":{"$error":"#VALUE!"}},"",{"$f":"C298","v":{"$error":"#VALUE!"}}]
[null,{"$error":"#VALUE!"},{"$error":"#VALUE!"},"",{"$error":"#VALUE!"}]
[null,{"$error":"#VALUE!"},{"$error":"#VALUE!"},"",{"$error":"#VALUE!"}]
[null,{"$error":"#VALUE!"},{"$error":"#VALUE!"},"",{"$error":"#VALUE!"}]
[null,{"$error":"#VALUE!"},{"$error":"#VALUE!"},"",{"$error":"#VALUE!"}]
[null,{"$error":"#VALUE!"},{"$error":"#VALUE!"},"",{"$error":"#VALUE!"}]
[null,{"$error":"#VALUE!"},{"$error":"#VALUE!"},"",{"$error":"#VALUE!"}]
[null,{"$error":"#VALUE!"},{"$error":"#VALUE!"},"",{"$error":"#VALUE!"}]
[null,{"$error":"#VALUE!"},{"$error":"#VALUE!"},"",{"$error":"#VALUE!"}]
[null,{"$error":"#VALUE!"},{"$error":"#VALUE!"},"",{"$error":"#VALUE!"}]
[null,{"$error":"#VALUE!"},{"$error":"#VALUE!"},"",{"$error":"#VALUE!"}]
[null,{"$error":"#VALUE!"},{"$error":"#VALUE!"},"",{"$error":"#VALUE!"}]
[null,{"$error":"#VALUE!"},{"$error":"#VALUE!"},"",{"$error":"#VALUE!"}]
[null,{"$error":"#VALUE!"},{"$error":"#VALUE!"},"",{"$error":"#VALUE!"}]
[null,{"$error":"#VALUE!"},{"$error":"#VALUE!"},"",{"$error":"#VALUE!"}]
[null,{"$error":"#VALUE!"},{"$error":"#VALUE!"},"",{"$error":"#VALUE!"}]
[null,{"$error":"#VALUE!"},{"$error":"#VALUE!"},"",{"$error":"#VALUE!"}]
[null,{"$error":"#VALUE!"},{"$error":"#VALUE!"},"",{"$error":"#VALUE!"}]
[null,{"$error":"#VALUE!"},{"$error":"#VALUE!"},"",{"$error":"#VALUE!"}]
[null,{"$error":"#VALUE!"},{"$error":"#VALUE!"},"",{"$error":"#VALUE!"}]
[null,{"$error":"#VALUE!"},{"$error":"#VALUE!"},"",{"$error":"#VALUE!"}]
[null,{"$error":"#VALUE!"},{"$error":"#VALUE!"},"",{"$error":"#VALUE!"}]
[null,{"$error":"#VALUE!"},{"$error":"#VALUE!"},"",{"$error":"#VALUE!"}]
[null,{"$error":"#VALUE!"},{"$error":"#VALUE!"},"",{"$error":"#VALUE!"}]
[null,{"$error":"#VALUE!"},{"$error":"#VALUE!"},"",{"$error":"#VALUE!"}]
[null,{"$error":"#VALUE!"},{"$error":"#VALUE!"},{"$f":"IF(ISERROR(FIND(\"(f)\",B323)),(IF(ISERROR(FIND(\"(m)\",B323)),\"\",\"m\")),\"f\")","v":""},{"$error":"#VALUE!"}]
[null,{"$error":"#VALUE!"},{"$error":"#VALUE!"},"",{"$error":"#VALUE!"}]
[null,{"$error":"#VALUE!"},{"$error":"#VALUE!"},"",{"$error":"#VALUE!"}]
[null,{"$error":"#VALUE!"},{"$error":"#VALUE!"},"",{"$error":"#VALUE!"}]
[null,{"$error":"#VALUE!"},{"$error":"#VALUE!"},"",{"$error":"#VALUE!"}]
[null,{"$error":"#VALUE!"},{"$error":"#VALUE!"},"",{"$error":"#VALUE!"}]
[null,{"$error":"#VALUE!"},{"$error":"#VALUE!"},"",{"$error":"#VALUE!"}]
[null,{"$error":"#VALUE!"},{"$error":"#VALUE!"},"",{"$error":"#VALUE!"}]
[null,{"$error":"#VALUE!"},{"$error":"#VALUE!"},"",{"$error":"#VALUE!"}]
[null,{"$error":"#VALUE!"},{"$error":"#VALUE!"},"",{"$error":"#VALUE!"}]
[null,{"$error":"#VALUE!"},{"$error":"#VALUE!"},"",{"$error":"#VALUE!"}]
[null,{"$error":"#VALUE!"},{"$error":"#VALUE!"},"",{"$error":"#VALUE!"}]
[null,{"$error":"#VALUE!"},{"$error":"#VALUE!"},"",{"$error":"#VALUE!"}]
[null,{"$error":"#VALUE!"},{"$error":"#VALUE!"},"",{"$error":"#VALUE!"}]
[null,{"$error":"#VALUE!"},{"$error":"#VALUE!"},"",{"$error":"#VALUE!"}]
[null,{"$error":"#VALUE!"},{"$error":"#VALUE!"},"",{"$error":"#VALUE!"}]
[null,{"$error":"#VALUE!"},{"$error":"#VALUE!"},"",{"$error":"#VALUE!"}]
[null,{"$error":"#VALUE!"},{"$error":"#VALUE!"},"",{"$error":"#VALUE!"}]
[null,{"$error":"#VALUE!"},{"$error":"#VALUE!"},"",{"$error":"#VALUE!"}]
[null,{"$error":"#VALUE!"},{"$error":"#VALUE!"},"",{"$error":"#VALUE!"}]
[null,{"$error":"#VALUE!"},{"$error":"#VALUE!"},"",{"$error":"#VALUE!"}]
[null,{"$error":"#VALUE!"},{"$error":"#VALUE!"},"",{"$error":"#VALUE!"}]
[null,{"$error":"#VALUE!"},{"$error":"#VALUE!"},"",{"$error":"#VALUE!"}]
[null,{"$error":"#VALUE!"},{"$error":"#VALUE!"},"",{"$error":"#VALUE!"}]
[null,{"$error":"#VALUE!"},{"$error":"#VALUE!"},"",{"$error":"#VALUE!"}]
[null,{"$error":"#VALUE!"},{"$error":"#VALUE!"},"",{"$error":"#VALUE!"}]
[null,{"$error":"#VALUE!"},{"$error":"#VALUE!"},"",{"$error":"#VALUE!"}]
[null,{"$error":"#VALUE!"},{"$error":"#VALUE!"},"",{"$error":"#VALUE!"}]
[null,{"$error":"#VALUE!"},{"$error":"#VALUE!"},"",{"$error":"#VALUE!"}]
[null,{"$error":"#VALUE!"},{"$error":"#VALUE!"},"",{"$error":"#VALUE!"}]
[null,{"$error":"#VALUE!"},{"$error":"#VALUE!"},"",{"$error":"#VALUE!"}]
[null,{"$error":"#VALUE!"},{"$error":"#VALUE!"},"",{"$error":"#VALUE!"}]
[null,{"$error":"#VALUE!"},{"$error":"#VALUE!"},"",{"$error":"#VALUE!"}]
[null,{"$error":"#VALUE!"},{"$error":"#VALUE!"},"",{"$error":"#VALUE!"}]
[null,{"$error":"#VALUE!"},{"$error":"#VALUE!"},"",{"$error":"#VALUE!"}]
[null,{"$error":"#VALUE!"},{"$error":"#VALUE!"},"",{"$error":"#VALUE!"}]
[null,{"$error":"#VALUE!"},{"$error":"#VALUE!"},"",{"$error":"#VALUE!"}]
[null,{"$error":"#VALUE!"},{"$error":"#VALUE!"},"",{"$error":"#VALUE!"}]
[null,{"$error":"#VALUE!"},{"$error":"#VALUE!"},"",{"$error":"#VALUE!"}]
[null,{"$f":"LEFT(A362,FIND(\"=\",A362)-1)","v":{"$error":"#VALUE!"}},{"$f":"MID(A362,FIND(\"=\",A362)+1,LEN(A362))","v":{"$error":"#VALUE!"}},"",{"$f":"C362","v":{"$error":"#VALUE!"}}]
[null,{"$error":"#VALUE!"},{"$error":"#VALUE!"},"",{"$error":"#VALUE!"}]
[null,{"$error":"#VALUE!"},{"$error":"#VALUE!"},"",{"$error":"#VALUE!"}]
[null,{"$error":"#VALUE!"},{"$error":"#VALUE!"},"",{"$error":"#VALUE!"}]
[null,{"$error":"#VALUE!"},{"$error":"#VALUE!"},"",{"$error":"#VALUE!"}]
[null,{"$error":"#VALUE!"},{"$error":"#VALUE!"},"",{"$error":"#VALUE!"}]
[null,{"$error":"#VALUE!"},{"$error":"#VALUE!"},"",{"$error":"#VALUE!"}]
[null,{"$error":"#VALUE!"},{"$error":"#VALUE!"},"",{"$error":"#VALUE!"}]
[null,{"$error":"#VALUE!"},{"$error":"#VALUE!"},"",{"$error":"#VALUE!"}]
[null,{"$error":"#VALUE!"},{"$error":"#VALUE!"},"",{"$error":"#VALUE!"}]
[null,{"$error":"#VALUE!"},{"$error":"#VALUE!"},"",{"$error":"#VALUE!"}]
[null,{"$error":"#VALUE!"},{"$error":"#VALUE!"},"",{"$error":"#VALUE!"}]
[null,{"$error":"#VALUE!"},{"$error":"#VALUE!"},"",{"$error":"#VALUE!"}]
[null,{"$error":"#VALUE!"},{"$error":"#VALUE!"},"",{"$error":"#VALUE!"}]
[null,{"$error":"#VALUE!"},{"$error":"#VALUE!"},"",{"$error":"#VALUE!"}]
[null,{"$error":"#VALUE!"},{"$error":"#VALUE!"},"",{"$error":"#VALUE!"}]
[null,{"$error":"#VALUE!"},{"$error":"#VALUE!"},"",{"$error":"#VALUE!"}]
[null,{"$error":"#VALUE!"},{"$error":"#VALUE!"},"",{"$error":"#VALUE!"}]
[null,{"$error":"#VALUE!"},{"$error":"#VALUE!"},"",{"$error":"#VALUE!"}]
[null,{"$error":"#VALUE!"},{"$error":"#VALUE!"},"",{"$error":"#VALUE!"}]
[null,{"$error":"#VALUE!"},{"$error":"#VALUE!"},"",{"$error":"#VALUE!"}]
[null,{"$error":"#VALUE!"},{"$error":"#VALUE!"},"",{"$error":"#VALUE!"}]
[null,{"$error":"#VALUE!"},{"$error":"#VALUE!"},"",{"$error":"#VALUE!"}]
[null,{"$error":"#VALUE!"},{"$error":"#VALUE!"},"",{"$error":"#VALUE!"}]
[null,{"$error":"#VALUE!"},{"$error":"#VALUE!"},"",{"$error":"#VALUE!"}]
[null,{"$error":"#VALUE!"},{"$error":"#VALUE!"},{"$f":"IF(ISERROR(FIND(\"(f)\",B387)),(IF(ISERROR(FIND(\"(m)\",B387)),\"\",\"m\")),\"f\")","v":""},{"$error":"#VALUE!"}]
[null,{"$error":"#VALUE!"},{"$error":"#VALUE!"},"",{"$error":"#VALUE!"}]
[null,{"$error":"#VALUE!"},{"$error":"#VALUE!"},"",{"$error":"#VALUE!"}]
[null,{"$error":"#VALUE!"},{"$error":"#VALUE!"},"",{"$error":"#VALUE!"}]
[null,{"$error":"#VALUE!"},{"$error":"#VALUE!"},"",{"$error":"#VALUE!"}]
[null,{"$error":"#VALUE!"},{"$error":"#VALUE!"},"",{"$error":"#VALUE!"}]
[null,{"$error":"#VALUE!"},{"$error":"#VALUE!"},"",{"$error":"#VALUE!"}]
[null,{"$error":"#VALUE!"},{"$error":"#VALUE!"},"",{"$error":"#VALUE!"}]
[null,{"$error":"#VALUE!"},{"$error":"#VALUE!"},"",{"$error":"#VALUE!"}]
[null,{"$error":"#VALUE!"},{"$error":"#VALUE!"},"",{"$error":"#VALUE!"}]
[null,{"$error":"#VALUE!"},{"$error":"#VALUE!"},"",{"$error":"#VALUE!"}]
[null,{"$error":"#VALUE!"},{"$error":"#VALUE!"},"",{"$error":"#VALUE!"}]
[null,{"$error":"#VALUE!"},{"$error":"#VALUE!"},"",{"$error":"#VALUE!"}]
[null,{"$error":"#VALUE!"},{"$error":"#VALUE!"},{"$f":"IF(ISERROR(FIND(\"f\",B400)),(IF(ISERROR(FIND(\"m\",B400)),\"\",\"m\")),\"f\")","v":""},{"$error":"#VALUE!"}]

{"sheet":"Sonstige BASIS","index":5,"n_rows":653,"n_cols":5,"rows_kept":653,"cut":false,"hidden":false,"merged":[]}
["STRING"]
["aber=mais",{"$f":"LEFT(A2,FIND(\"=\",A2)-1)","v":"aber"},{"$f":"MID(A2,FIND(\"=\",A2)+1,LEN(A2))","v":"mais"},{"$f":"IF(ISERROR(FIND(\"(f)\",C2)),(IF(ISERROR(FIND(\"(m)\",C2)),\"\",\"m\")),\"f\")","v":""},{"$f":"IF(D2=\"\",C2,LEFT(C2,SEARCH(\"(\",C2)-1))","v":"mais"}]
["alle (m)=tous",{"$f":"LEFT(A3,FIND(\"=\",A3)-1)","v":"alle (m)"},{"$f":"MID(A3,FIND(\"=\",A3)+1,LEN(A3))","v":"tous"},{"$f":"IF(ISERROR(FIND(\"(f)\",C3)),(IF(ISERROR(FIND(\"(m)\",C3)),\"\",\"m\")),\"f\")","v":""},{"$f":"IF(D3=\"\",C3,LEFT(C3,SEARCH(\"(\",C3)-1))","v":"tous"}]
["alle (f)=toutes","alle (f)","toutes","","toutes"]
["allerdings, dennoch=toutefois","allerdings, dennoch","toutefois","","toutefois"]
["allgemein=généralement","allgemein","généralement","","généralement"]
["an, in, zu, nach=à","an, in, zu, nach","à","","à"]
["andere/r/s=autre","andere/r/s","autre","","autre"]
["anstatt=en lieu de","anstatt","en lieu de","","en lieu de"]
["auch=aussi","auch","aussi","","aussi"]
["auf, über=sur","auf, über","sur","","sur"]
["bald=bientôt","bald","bientôt","","bientôt"]
["beide=les deux","beide","les deux","","les deux"]
["besonders=particulièrement","besonders","particulièrement","","particulièrement"]
["besonders, vor allem=surtout","besonders, vor allem","surtout","","surtout"]
["Beste (f) =meilleure","Beste (f) ","meilleure","","meilleure"]
["Beste (m) =meilleur","Beste (m) ",{"$f":"MID(A17,FIND(\"=\",A17)+1,LEN(A17))","v":"meilleur"},{"$f":"IF(ISERROR(FIND(\"(f)\",C17)),(IF(ISERROR(FIND(\"(m)\",C17)),\"\",\"m\")),\"f\")","v":""},{"$f":"IF(D17=\"\",C17,LEFT(C17,SEARCH(\"(\",C17)-1))","v":"meilleur"}]
["bis=jusque","bis","jusque","","jusque"]
["bitte=s'il vous plaît","bitte","s'il vous plaît","","s'il vous plaît"]
["dahinter=derrière","dahinter","derrière","","derrière"]
["danach, dann=après","danach, dann","après","","après"]
["danke=merci","danke","merci","","merci"]
["dann, danach=ensuite","dann, danach","ensuite","","ensuite"]
["darunter=en dessous","darunter","en dessous","","en dessous"]
["dass=que","dass","que","","que"]
["demnach=d'après cela","demnach","d'après cela","","d'après cela"]
["dennoch, trotzdem=pour autant","dennoch, trotzdem","pour autant","","pour autant"]
["der, die, das gleiche (f)=la même","der, die, das gleiche (f)","la même","","la même"]
["der, die, das gleiche (m)=le même",{"$f":"LEFT(A29,FIND(\"=\",A29)-1)","v":"der, die, das gleiche (m)"},{"$f":"MID(A29,FIND(\"=\",A29)+1,LEN(A29))","v":"le même"},{"$f":"IF(ISERROR(FIND(\"(f)\",C29)),(IF(ISERROR(FIND(\"(m)\",C29)),\"\",\"m\")),\"f\")","v":""},{"$f":"IF(D29=\"\",C29,LEFT(C29,SEARCH(\"(\",C29)-1))","v":"le même"}]
["die ganze Nacht=toute la nuit","die ganze Nacht","toute la nuit","","toute la nuit"]
["die ganze Zeit=tout le temps","die ganze Zeit","tout le temps","","tout le temps"]
["dieser hier (m) =celui-ci","dieser hier (m) ","celui-ci","","celui-ci"]
["dieses hier (f) =celle-ci","dieses hier (f) ","celle-ci","","celle-ci"]
["das hier (f) =celle-là","das hier (f) ","celle-là","","celle-là"]
["der hier (m) =celui-là","der hier (m) ","celui-là","","celui-là"]
["diese (f) =cette","diese (f) ","cette","","cette"]
["dieser (m) =ce","dieser (m) ","ce","","ce"]
["dort=là-bas","dort","là-bas","","là-bas"]
["draußen, nach draußen=au dehors","draußen, nach draußen","au dehors","","au dehors"]
["drinnen, hinein=dedans","drinnen, hinein","dedans","","dedans"]
["durch, je=par","durch, je","par","","par"]
["eigentlich, tatsächlich=en fait","eigentlich, tatsächlich","en fait","","en fait"]
["ein wenig=un peu","ein wenig","un peu","","un peu"]
["einige, gewisse (Leute)=certains","einige, gewisse (Leute)","certains","","certains"]
["einmal=une fois","einmal","une fois","","une fois"]
["endlich, letztlich=finalement","endlich, letztlich","finalement","","finalement"]
["Entschuldigung!=Pardon!","Entschuldigung!","Pardon!","","Pardon!"]
["es gibt=il y a","es gibt","il y a","","il y a"]
["etwa, circa=quelque","etwa, circa","quelque","","quelque"]
["etwas=quelque chose","etwas","quelque chose","","quelque chose"]
["fast, beinahe=presque","fast, beinahe","presque","","presque"]
["für immer=à jamais","für immer","à jamais","","à jamais"]
["gegen=contre","gegen","contre","","contre"]
["gemäß, laut=d'après","gemäß, laut","d'après","","d'après"]
["genau, pünktlich=exactement","genau, pünktlich","exactement","","exactement"]
["genauso ... wie=aussi ... que","genauso ... wie","aussi ... que","","aussi ... que"]
["gestern=hier","gestern","hier","","hier"]
["gleich, sogar=même","gleich, sogar","même","","même"]
["heute=aujourd'hui","heute","aujourd'hui","","aujourd'hui"]
["heute Abend=ce soir","heute Abend","ce soir","","ce soir"]
["hier=ici","hier","ici","","ici"]
["immer=toujours","immer","toujours","","toujours"]
["in der Nähe=près","in der Nähe","près","","près"]
["in der Tat, faktisch=de fait","in der Tat, faktisch","de fait","","de fait"]
["in, im=dans","in, im","dans","","dans"]
["in, im, ins=en","in, im, ins","en","","en"]
["insgesamt=en tout","insgesamt","en tout","","en tout"]
["irgendjemand, eine/r/s=quelqu'un",{"$f":"LEFT(A68,FIND(\"=\",A68)-1)","v":"irgendjemand, eine/r/s"},"quelqu'un","","quelqu'un"]
["ja=oui","ja","oui","","oui"]
["jede/r/s=chaque","jede/r/s","chaque","","chaque"]
["jetzt=maintenant","jetzt","maintenant","","maintenant"]
["keine/r/s=ne ... aucun/e","keine/r/s",{"$f":"MID(A72,FIND(\"=\",A72)+1,LEN(A72))","v":"ne ... aucun/e"},{"$f":"IF(ISERROR(FIND(\"(f)\",C72)),(IF(ISERROR(FIND(\"(m)\",C72)),\"\",\"m\")),\"f\")","v":""},{"$f":"IF(D72=\"\",C72,LEFT(C72,SEARCH(\"(\",C72)-1))","v":"ne ... aucun/e"}]
["kürzlich=récemment","kürzlich","récemment","","récemment"]
["lieber, eher=plutôt","lieber, eher","plutôt","","plutôt"]
["links=à gauche","links","à gauche","","à gauche"]
["manche, ein paar, einige=quelques","manche, ein paar, einige","quelques","","quelques"]
["manchmal=quelquefois","manchmal","quelquefois","","quelquefois"]
["manchmal, mitunter=parfois","manchmal, mitunter","parfois","","parfois"]
["mehr=plus","mehr","plus","","plus"]
["mit=avec","mit","avec","","avec"]
["morgen=demain","morgen","demain","","demain"]
["nach oben, hinauf=vers le haut","nach oben, hinauf","vers le haut","","vers le haut"]
["neben=à côté de","neben","à côté de","","à côté de"]
["nein=non","nein","non","","non"]
["nicht=ne ... pas","nicht","ne ... pas","","ne ... pas"]
["nichts=rien","nichts","rien","","rien"]
["nie=jamais","nie","jamais","","jamais"]
["noch einmal=encore","noch einmal","encore","","encore"]
["normalerweise=normalement","normalerweise","normalement","","normalement"]
["nur=seulement","nur","seulement","","seulement"]
["ob, wenn, falls=si","ob, wenn, falls","si","","si"]
["oberhalb, über=au-dessus de","oberhalb, über","au-dessus de","","au-dessus de"]
["obwohl, wohingegen=alors que","obwohl, wohingegen","alors que","","alors que"]
["oder=ou","oder","ou","","ou"]
["offensichtlich, anscheinend=apparemment","offensichtlich, anscheinend","apparemment","","apparemment"]
["oft=souvent","oft","souvent","","souvent"]
["ohne=sans","ohne","sans","","sans"]
["plötzlich=tout à coup","plötzlich","tout à coup","","tout à coup"]
["recht, genug=assez","recht, genug","assez","","assez"]
["rechts=à droite","rechts","à droite","","à droite"]
["schließlich, kurzum=enfin","schließlich, kurzum","enfin","","enfin"]
["schnell, zügig=rapidement","schnell, zügig","rapidement","","rapidement"]
["schon=déjà","schon","déjà","","déjà"]
["sehr=très","sehr","très","","très"]
["seit=depuis","seit","depuis","","depuis"]
["seitens=de la part de","seitens","de la part de","","de la part de"]
["sicherlich, gewiss=certainement","sicherlich, gewiss","certainement","","certainement"]
["so, also=ainsi","so, also","ainsi","","ainsi"]
["sowohl ... als auch=autant ... que","sowohl ... als auch","autant ... que","","autant ... que"]
["später=plus tard","später","plus tard","","plus tard"]
["und=et","und","et","","et"]
["ungefähr=environ","ungefähr","environ","","environ"]
["unten, hinunter=en bas","unten, hinunter","en bas","","en bas"]
["unter=sous","unter","sous","","sous"]
["unter anderem=entre autres","unter anderem","entre autres","","entre autres"]
["viel=beaucoup","viel","beaucoup","","beaucoup"]
["vielleicht=peut-être","vielleicht","peut-être","","peut-être"]
["von, aus=de","von, aus","de","","de"]
["vor (+ Zeitangabe)=il y a","vor (+ Zeitangabe)","il y a","","il y a"]
["vorher=avant","vorher","avant","","avant"]
["vorwärts, voran=en avant","vorwärts, voran","en avant","","en avant"]
["während, derweil=pendant","während, derweil","pendant","","pendant"]
["wahrscheinlich=probablement","wahrscheinlich","probablement","","probablement"]
["wann=quand","wann","quand","","quand"]
["warum=pourquoi","warum","pourquoi","","pourquoi"]
["was=que","was","que","","que"]
["weil=parce que","weil","parce que","","parce que"]
["weit, entfernt=loin","weit, entfernt","loin","","loin"]
["weiter=plus avant","weiter","plus avant","","plus avant"]
["welche/r/s=quel, -le","welche/r/s","quel, -le","","quel, -le"]
["wer=qui","wer","qui","","qui"]
["wie=comment",{"$f":"LEFT(A132,FIND(\"=\",A132)-1)","v":"wie"},"comment","","comment"]
["wie, als=comme","wie, als","comme","","comme"]
["wirklich=vraiment","wirklich","vraiment","","vraiment"]
["wo=où","wo","où","","où"]
["woher=d'où","woher",{"$f":"MID(A136,FIND(\"=\",A136)+1,LEN(A136))","v":"d'où"},{"$f":"IF(ISERROR(FIND(\"(f)\",C136)),(IF(ISERROR(FIND(\"(m)\",C136)),\"\",\"m\")),\"f\")","v":""},{"$f":"IF(D136=\"\",C136,LEFT(C136,SEARCH(\"(\",C136)-1))","v":"d'où"}]
["zu (teuer)=trop","zu (teuer)","trop","","trop"]
["zuerst, zunächst=d'abord","zuerst, zunächst","d'abord","","d'abord"]
["zwischen=entre","zwischen","entre","","entre"]
["Ich weiß nicht.=Je ne sais pas.","Ich weiß nicht.","Je ne sais pas.","","Je ne sais pas."]
["Ich verstehe nicht.=Je ne comprends pas.","Ich verstehe nicht.","Je ne comprends pas.","","Je ne comprends pas."]
["Wo ist ...?=Où est ...?","Wo ist ...?","Où est ...?","","Où est ...?"]
["Wo sind Sie?=Vous êtes où?","Wo sind Sie?","Vous êtes où?","","Vous êtes où?"]
["Ich suche ...=Je cherche ...","Ich suche ...","Je cherche ...","","Je cherche ..."]
["Ich brauche ...=Il me faut ...","Ich brauche ...","Il me faut ...","","Il me faut ..."]
["Ich auch.=Moi aussi.","Ich auch.","Moi aussi.","","Moi aussi."]
[null,{"$error":"#VALUE!"},{"$f":"MID(A147,FIND(\"=\",A147)+1,LEN(A147))","v":{"$error":"#VALUE!"}},{"$f":"IF(ISERROR(FIND(\"(f)\",C147)),(IF(ISERROR(FIND(\"(m)\",C147)),\"\",\"m\")),\"f\")","v":""},{"$f":"IF(D147=\"\",C147,LEFT(C147,SEARCH(\"(\",C147)-1))","v":{"$error":"#VALUE!"}}]
[null,{"$error":"#VALUE!"},{"$error":"#VALUE!"},"",{"$error":"#VALUE!"}]
[null,{"$error":"#VALUE!"},{"$error":"#VALUE!"},"",{"$error":"#VALUE!"}]
[null,{"$error":"#VALUE!"},{"$error":"#VALUE!"},"",{"$error":"#VALUE!"}]
[null,{"$error":"#VALUE!"},{"$error":"#VALUE!"},"",{"$error":"#VALUE!"}]
[null,{"$error":"#VALUE!"},{"$error":"#VALUE!"},"",{"$error":"#VALUE!"}]
[null,{"$error":"#VALUE!"},{"$error":"#VALUE!"},"",{"$error":"#VALUE!"}]
[null,{"$error":"#VALUE!"},{"$error":"#VALUE!"},"",{"$error":"#VALUE!"}]
[null,{"$error":"#VALUE!"},{"$error":"#VALUE!"},"",{"$error":"#VALUE!"}]
[null,{"$error":"#VALUE!"},{"$error":"#VALUE!"},"",{"$error":"#VALUE!"}]
[null,{"$error":"#VALUE!"},{"$error":"#VALUE!"},"",{"$error":"#VALUE!"}]
[null,{"$error":"#VALUE!"},{"$error":"#VALUE!"},"",{"$error":"#VALUE!"}]
[null,{"$error":"#VALUE!"},{"$error":"#VALUE!"},"",{"$error":"#VALUE!"}]
[null,{"$error":"#VALUE!"},{"$error":"#VALUE!"},"",{"$error":"#VALUE!"}]
[null,{"$error":"#VALUE!"},{"$error":"#VALUE!"},"",{"$error":"#VALUE!"}]
[null,{"$error":"#VALUE!"},{"$error":"#VALUE!"},"",{"$error":"#VALUE!"}]
[null,{"$error":"#VALUE!"},{"$error":"#VALUE!"},"",{"$error":"#VALUE!"}]
[null,{"$error":"#VALUE!"},{"$error":"#VALUE!"},"",{"$error":"#VALUE!"}]
[null,{"$error":"#VALUE!"},{"$error":"#VALUE!"},"",{"$error":"#VALUE!"}]
[null,{"$error":"#VALUE!"},{"$error":"#VALUE!"},"",{"$error":"#VALUE!"}]
[null,{"$error":"#VALUE!"},{"$error":"#VALUE!"},"",{"$error":"#VALUE!"}]
[null,{"$error":"#VALUE!"},{"$error":"#VALUE!"},"",{"$error":"#VALUE!"}]
[null,{"$error":"#VALUE!"},{"$error":"#VALUE!"},"",{"$error":"#VALUE!"}]
[null,{"$error":"#VALUE!"},{"$error":"#VALUE!"},"",{"$error":"#VALUE!"}]
[null,{"$error":"#VALUE!"},{"$error":"#VALUE!"},"",{"$error":"#VALUE!"}]
[null,{"$error":"#VALUE!"},{"$error":"#VALUE!"},"",{"$error":"#VALUE!"}]
[null,{"$error":"#VALUE!"},{"$error":"#VALUE!"},"",{"$error":"#VALUE!"}]
[null,{"$error":"#VALUE!"},{"$error":"#VALUE!"},"",{"$error":"#VALUE!"}]
[null,{"$error":"#VALUE!"},{"$error":"#VALUE!"},"",{"$error":"#VALUE!"}]
[null,{"$error":"#VALUE!"},{"$error":"#VALUE!"},"",{"$error":"#VALUE!"}]
[null,{"$error":"#VALUE!"},{"$error":"#VALUE!"},"",{"$error":"#VALUE!"}]
[null,{"$error":"#VALUE!"},{"$error":"#VALUE!"},"",{"$error":"#VALUE!"}]
[null,{"$error":"#VALUE!"},{"$error":"#VALUE!"},"",{"$error":"#VALUE!"}]
[null,{"$error":"#VALUE!"},{"$error":"#VALUE!"},"",{"$error":"#VALUE!"}]
[null,{"$error":"#VALUE!"},{"$error":"#VALUE!"},"",{"$error":"#VALUE!"}]
[null,{"$error":"#VALUE!"},{"$error":"#VALUE!"},"",{"$error":"#VALUE!"}]
[null,{"$error":"#VALUE!"},{"$error":"#VALUE!"},"",{"$error":"#VALUE!"}]
[null,{"$error":"#VALUE!"},{"$error":"#VALUE!"},"",{"$error":"#VALUE!"}]
[null,{"$error":"#VALUE!"},{"$error":"#VALUE!"},"",{"$error":"#VALUE!"}]
[null,{"$error":"#VALUE!"},{"$error":"#VALUE!"},"",{"$error":"#VALUE!"}]
[null,{"$error":"#VALUE!"},{"$error":"#VALUE!"},"",{"$error":"#VALUE!"}]
[null,{"$error":"#VALUE!"},{"$error":"#VALUE!"},"",{"$error":"#VALUE!"}]
[null,{"$error":"#VALUE!"},{"$error":"#VALUE!"},"",{"$error":"#VALUE!"}]
[null,{"$error":"#VALUE!"},{"$error":"#VALUE!"},"",{"$error":"#VALUE!"}]
[null,{"$error":"#VALUE!"},{"$error":"#VALUE!"},"",{"$error":"#VALUE!"}]
[null,{"$error":"#VALUE!"},{"$error":"#VALUE!"},"",{"$error":"#VALUE!"}]
[null,{"$error":"#VALUE!"},{"$error":"#VALUE!"},"",{"$error":"#VALUE!"}]
[null,{"$error":"#VALUE!"},{"$error":"#VALUE!"},"",{"$error":"#VALUE!"}]
[null,{"$error":"#VALUE!"},{"$error":"#VALUE!"},"",{"$error":"#VALUE!"}]
[null,{"$f":"LEFT(A196,FIND(\"=\",A196)-1)","v":{"$error":"#VALUE!"}},{"$error":"#VALUE!"},"",{"$error":"#VALUE!"}]
[null,{"$error":"#VALUE!"},{"$error":"#VALUE!"},"",{"$error":"#VALUE!"}]
[null,{"$error":"#VALUE!"},{"$error":"#VALUE!"},"",{"$error":"#VALUE!"}]
[null,{"$error":"#VALUE!"},{"$error":"#VALUE!"},"",{"$error":"#VALUE!"}]
[null,{"$error":"#VALUE!"},{"$error":"#VALUE!"},"",{"$error":"#VALUE!"}]
[null,{"$error":"#VALUE!"},{"$error":"#VALUE!"},"",{"$error":"#VALUE!"}]
[null,{"$error":"#VALUE!"},{"$error":"#VALUE!"},"",{"$error":"#VALUE!"}]
[null,{"$error":"#VALUE!"},{"$error":"#VALUE!"},"",{"$error":"#VALUE!"}]
[null,{"$error":"#VALUE!"},{"$error":"#VALUE!"},"",{"$error":"#VALUE!"}]
[null,{"$error":"#VALUE!"},{"$error":"#VALUE!"},"",{"$error":"#VALUE!"}]
[null,{"$error":"#VALUE!"},{"$error":"#VALUE!"},"",{"$error":"#VALUE!"}]
[null,{"$error":"#VALUE!"},{"$error":"#VALUE!"},"",{"$error":"#VALUE!"}]
[null,{"$error":"#VALUE!"},{"$error":"#VALUE!"},"",{"$error":"#VALUE!"}]
[null,{"$error":"#VALUE!"},{"$error":"#VALUE!"},"",{"$error":"#VALUE!"}]
[null,{"$error":"#VALUE!"},{"$error":"#VALUE!"},"",{"$error":"#VALUE!"}]
[null,{"$error":"#VALUE!"},{"$f":"MID(A211,FIND(\"=\",A211)+1,LEN(A211))","v":{"$error":"#VALUE!"}},{"$f":"IF(ISERROR(FIND(\"(f)\",C211)),(IF(ISERROR(FIND(\"(m)\",C211)),\"\",\"m\")),\"f\")","v":""},{"$f":"IF(D211=\"\",C211,LEFT(C211,SEARCH(\"(\",C211)-1))","v":{"$error":"#VALUE!"}}]
[null,{"$error":"#VALUE!"},{"$error":"#VALUE!"},"",{"$error":"#VALUE!"}]
[null,{"$error":"#VALUE!"},{"$error":"#VALUE!"},"",{"$error":"#VALUE!"}]
[null,{"$error":"#VALUE!"},{"$error":"#VALUE!"},"",{"$error":"#VALUE!"}]
[null,{"$error":"#VALUE!"},{"$error":"#VALUE!"},"",{"$error":"#VALUE!"}]
[null,{"$error":"#VALUE!"},{"$error":"#VALUE!"},"",{"$error":"#VALUE!"}]
[null,{"$error":"#VALUE!"},{"$error":"#VALUE!"},"",{"$error":"#VALUE!"}]
[null,{"$error":"#VALUE!"},{"$error":"#VALUE!"},"",{"$error":"#VALUE!"}]
[null,{"$error":"#VALUE!"},{"$error":"#VALUE!"},"",{"$error":"#VALUE!"}]
[null,{"$error":"#VALUE!"},{"$error":"#VALUE!"},"",{"$error":"#VALUE!"}]
[null,{"$error":"#VALUE!"},{"$error":"#VALUE!"},"",{"$error":"#VALUE!"}]
[null,{"$error":"#VALUE!"},{"$error":"#VALUE!"},"",{"$error":"#VALUE!"}]
[null,{"$error":"#VALUE!"},{"$error":"#VALUE!"},"",{"$error":"#VALUE!"}]
[null,{"$error":"#VALUE!"},{"$error":"#VALUE!"},"",{"$error":"#VALUE!"}]
[null,{"$error":"#VALUE!"},{"$error":"#VALUE!"},"",{"$error":"#VALUE!"}]
[null,{"$error":"#VALUE!"},{"$error":"#VALUE!"},"",{"$error":"#VALUE!"}]
[null,{"$error":"#VALUE!"},{"$error":"#VALUE!"},"",{"$error":"#VALUE!"}]
[null,{"$error":"#VALUE!"},{"$error":"#VALUE!"},"",{"$error":"#VALUE!"}]
[null,{"$error":"#VALUE!"},{"$error":"#VALUE!"},"",{"$error":"#VALUE!"}]
[null,{"$error":"#VALUE!"},{"$error":"#VALUE!"},"",{"$error":"#VALUE!"}]
[null,{"$error":"#VALUE!"},{"$error":"#VALUE!"},"",{"$error":"#VALUE!"}]
[null,{"$error":"#VALUE!"},{"$error":"#VALUE!"},"",{"$error":"#VALUE!"}]
[null,{"$error":"#VALUE!"},{"$error":"#VALUE!"},"",{"$error":"#VALUE!"}]
[null,{"$error":"#VALUE!"},{"$error":"#VALUE!"},"",{"$error":"#VALUE!"}]
[null,{"$error":"#VALUE!"},{"$error":"#VALUE!"},"",{"$error":"#VALUE!"}]
[null,{"$error":"#VALUE!"},{"$error":"#VALUE!"},"",{"$error":"#VALUE!"}]
[null,{"$error":"#VALUE!"},{"$error":"#VALUE!"},"",{"$error":"#VALUE!"}]
[null,{"$error":"#VALUE!"},{"$error":"#VALUE!"},"",{"$error":"#VALUE!"}]
[null,{"$error":"#VALUE!"},{"$error":"#VALUE!"},"",{"$error":"#VALUE!"}]
[null,{"$error":"#VALUE!"},{"$error":"#VALUE!"},"",{"$error":"#VALUE!"}]
[null,{"$error":"#VALUE!"},{"$error":"#VALUE!"},"",{"$error":"#VALUE!"}]
[null,{"$error":"#VALUE!"},{"$error":"#VALUE!"},"",{"$error":"#VALUE!"}]
[null,{"$error":"#VALUE!"},{"$error":"#VALUE!"},"",{"$error":"#VALUE!"}]
[null,{"$error":"#VALUE!"},{"$error":"#VALUE!"},"",{"$error":"#VALUE!"}]
[null,{"$error":"#VALUE!"},{"$error":"#VALUE!"},"",{"$error":"#VALUE!"}]
[null,{"$error":"#VALUE!"},{"$error":"#VALUE!"},"",{"$error":"#VALUE!"}]
[null,{"$error":"#VALUE!"},{"$error":"#VALUE!"},"",{"$error":"#VALUE!"}]
[null,{"$error":"#VALUE!"},{"$error":"#VALUE!"},"",{"$error":"#VALUE!"}]
[null,{"$error":"#VALUE!"},{"$error":"#VALUE!"},"",{"$error":"#VALUE!"}]
[null,{"$error":"#VALUE!"},{"$error":"#VALUE!"},"",{"$error":"#VALUE!"}]
[null,{"$error":"#VALUE!"},{"$error":"#VALUE!"},"",{"$error":"#VALUE!"}]
[null,{"$error":"#VALUE!"},{"$error":"#VALUE!"},"",{"$error":"#VALUE!"}]
[null,{"$error":"#VALUE!"},{"$error":"#VALUE!"},"",{"$error":"#VALUE!"}]
[null,{"$error":"#VALUE!"},{"$error":"#VALUE!"},"",{"$error":"#VALUE!"}]
[null,{"$error":"#VALUE!"},{"$error":"#VALUE!"},"",{"$error":"#VALUE!"}]
[null,{"$error":"#VALUE!"},{"$error":"#VALUE!"},"",{"$error":"#VALUE!"}]
[null,{"$error":"#VALUE!"},{"$error":"#VALUE!"},"",{"$error":"#VALUE!"}]
[null,{"$error":"#VALUE!"},{"$error":"#VALUE!"},"",{"$error":"#VALUE!"}]
[null,{"$error":"#VALUE!"},{"$error":"#VALUE!"},"",{"$error":"#VALUE!"}]
[null,{"$f":"LEFT(A260,FIND(\"=\",A260)-1)","v":{"$error":"#VALUE!"}},{"$error":"#VALUE!"},"",{"$error":"#VALUE!"}]
[null,{"$error":"#VALUE!"},{"$error":"#VALUE!"},"",{"$error":"#VALUE!"}]
[null,{"$error":"#VALUE!"},{"$error":"#VALUE!"},"",{"$error":"#VALUE!"}]
[null,{"$error":"#VALUE!"},{"$error":"#VALUE!"},"",{"$error":"#VALUE!"}]
[null,{"$error":"#VALUE!"},{"$error":"#VALUE!"},"",{"$error":"#VALUE!"}]
[null,{"$error":"#VALUE!"},{"$error":"#VALUE!"},"",{"$error":"#VALUE!"}]
[null,{"$error":"#VALUE!"},{"$error":"#VALUE!"},"",{"$error":"#VALUE!"}]
[null,{"$error":"#VALUE!"},{"$error":"#VALUE!"},"",{"$error":"#VALUE!"}]
[null,{"$error":"#VALUE!"},{"$error":"#VALUE!"},"",{"$error":"#VALUE!"}]
[null,{"$error":"#VALUE!"},{"$error":"#VALUE!"},"",{"$error":"#VALUE!"}]
[null,{"$error":"#VALUE!"},{"$error":"#VALUE!"},"",{"$error":"#VALUE!"}]
[null,{"$error":"#VALUE!"},{"$error":"#VALUE!"},"",{"$error":"#VALUE!"}]
[null,{"$error":"#VALUE!"},{"$error":"#VALUE!"},"",{"$error":"#VALUE!"}]
[null,{"$error":"#VALUE!"},{"$error":"#VALUE!"},"",{"$error":"#VALUE!"}]
[null,{"$error":"#VALUE!"},{"$error":"#VALUE!"},"",{"$error":"#VALUE!"}]
[null,{"$error":"#VALUE!"},{"$f":"MID(A275,FIND(\"=\",A275)+1,LEN(A275))","v":{"$error":"#VALUE!"}},{"$f":"IF(ISERROR(FIND(\"(f)\",C275)),(IF(ISERROR(FIND(\"(m)\",C275)),\"\",\"m\")),\"f\")","v":""},{"$f":"IF(D275=\"\",C275,LEFT(C275,SEARCH(\"(\",C275)-1))","v":{"$error":"#VALUE!"}}]
[null,{"$error":"#VALUE!"},{"$error":"#VALUE!"},"",{"$error":"#VALUE!"}]
[null,{"$error":"#VALUE!"},{"$error":"#VALUE!"},"",{"$error":"#VALUE!"}]
[null,{"$error":"#VALUE!"},{"$error":"#VALUE!"},"",{"$error":"#VALUE!"}]
[null,{"$error":"#VALUE!"},{"$error":"#VALUE!"},"",{"$error":"#VALUE!"}]
[null,{"$error":"#VALUE!"},{"$error":"#VALUE!"},"",{"$error":"#VALUE!"}]
[null,{"$error":"#VALUE!"},{"$error":"#VALUE!"},"",{"$error":"#VALUE!"}]
[null,{"$error":"#VALUE!"},{"$error":"#VALUE!"},"",{"$error":"#VALUE!"}]
[null,{"$error":"#VALUE!"},{"$error":"#VALUE!"},"",{"$error":"#VALUE!"}]
[null,{"$error":"#VALUE!"},{"$error":"#VALUE!"},"",{"$error":"#VALUE!"}]
[null,{"$error":"#VALUE!"},{"$error":"#VALUE!"},"",{"$error":"#VALUE!"}]
[null,{"$error":"#VALUE!"},{"$error":"#VALUE!"},"",{"$error":"#VALUE!"}]
[null,{"$error":"#VALUE!"},{"$error":"#VALUE!"},"",{"$error":"#VALUE!"}]
[null,{"$error":"#VALUE!"},{"$error":"#VALUE!"},"",{"$error":"#VALUE!"}]
[null,{"$error":"#VALUE!"},{"$error":"#VALUE!"},"",{"$error":"#VALUE!"}]
[null,{"$error":"#VALUE!"},{"$error":"#VALUE!"},"",{"$error":"#VALUE!"}]
[null,{"$error":"#VALUE!"},{"$error":"#VALUE!"},"",{"$error":"#VALUE!"}]
[null,{"$error":"#VALUE!"},{"$error":"#VALUE!"},"",{"$error":"#VALUE!"}]
[null,{"$error":"#VALUE!"},{"$error":"#VALUE!"},"",{"$error":"#VALUE!"}]
[null,{"$error":"#VALUE!"},{"$error":"#VALUE!"},"",{"$error":"#VALUE!"}]
[null,{"$error":"#VALUE!"},{"$error":"#VALUE!"},"",{"$error":"#VALUE!"}]
[null,{"$error":"#VALUE!"},{"$error":"#VALUE!"},"",{"$error":"#VALUE!"}]
[null,{"$error":"#VALUE!"},{"$error":"#VALUE!"},"",{"$error":"#VALUE!"}]
[null,{"$error":"#VALUE!"},{"$error":"#VALUE!"},"",{"$error":"#VALUE!"}]
[null,{"$error":"#VALUE!"},{"$error":"#VALUE!"},"",{"$error":"#VALUE!"}]
[null,{"$error":"#VALUE!"},{"$error":"#VALUE!"},"",{"$error":"#VALUE!"}]
[null,{"$error":"#VALUE!"},{"$error":"#VALUE!"},"",{"$error":"#VALUE!"}]
[null,{"$error":"#VALUE!"},{"$error":"#VALUE!"},"",{"$error":"#VALUE!"}]
[null,{"$error":"#VALUE!"},{"$error":"#VALUE!"},"",{"$error":"#VALUE!"}]
[null,{"$error":"#VALUE!"},{"$error":"#VALUE!"},"",{"$error":"#VALUE!"}]
[null,null,{"$error":"#VALUE!"},"",{"$error":"#VALUE!"}]
[null,null,{"$error":"#VALUE!"},"",{"$error":"#VALUE!"}]
[null,null,{"$error":"#VALUE!"},"",{"$error":"#VALUE!"}]
[null,null,{"$error":"#VALUE!"},"",{"$error":"#VALUE!"}]
[null,null,{"$error":"#VALUE!"},"",{"$error":"#VALUE!"}]
[null,null,{"$error":"#VALUE!"},"",{"$error":"#VALUE!"}]
[null,null,{"$error":"#VALUE!"},"",{"$error":"#VALUE!"}]
[null,null,{"$error":"#VALUE!"},"",{"$error":"#VALUE!"}]
[null,null,{"$error":"#VALUE!"},"",{"$error":"#VALUE!"}]
[null,null,{"$error":"#VALUE!"},"",{"$error":"#VALUE!"}]
[null,null,{"$error":"#VALUE!"},"",{"$error":"#VALUE!"}]
[null,null,{"$error":"#VALUE!"},"",{"$error":"#VALUE!"}]
[null,null,{"$error":"#VALUE!"},"",{"$error":"#VALUE!"}]
[null,null,{"$error":"#VALUE!"},"",{"$error":"#VALUE!"}]
[null,null,{"$error":"#VALUE!"},"",{"$error":"#VALUE!"}]
[null,null,{"$error":"#VALUE!"},"",{"$error":"#VALUE!"}]
[null,null,{"$error":"#VALUE!"},"",{"$error":"#VALUE!"}]
[null,null,{"$error":"#VALUE!"},"",{"$error":"#VALUE!"}]
[null,null,{"$error":"#VALUE!"},"",{"$error":"#VALUE!"}]
[null,null,{"$error":"#VALUE!"},"",{"$error":"#VALUE!"}]
[null,null,{"$error":"#VALUE!"},"",{"$error":"#VALUE!"}]
[null,null,{"$error":"#VALUE!"},"",{"$error":"#VALUE!"}]
[null,null,{"$error":"#VALUE!"},"",{"$error":"#VALUE!"}]
[null,null,{"$error":"#VALUE!"},"",{"$error":"#VALUE!"}]
[null,null,{"$error":"#VALUE!"},"",{"$error":"#VALUE!"}]
[null,null,{"$error":"#VALUE!"},"",{"$error":"#VALUE!"}]
[null,null,{"$error":"#VALUE!"},"",{"$error":"#VALUE!"}]
[null,null,{"$error":"#VALUE!"},"",{"$error":"#VALUE!"}]
[null,null,{"$error":"#VALUE!"},"",{"$error":"#VALUE!"}]
[null,null,{"$error":"#VALUE!"},"",{"$error":"#VALUE!"}]
[null,null,{"$error":"#VALUE!"},"",{"$error":"#VALUE!"}]
[null,null,{"$error":"#VALUE!"},"",{"$error":"#VALUE!"}]
[null,null,{"$error":"#VALUE!"},"",{"$error":"#VALUE!"}]
[null,null,{"$error":"#VALUE!"},"",{"$error":"#VALUE!"}]
[null,null,{"$f":"MID(A339,FIND(\"=\",A339)+1,LEN(A339))","v":{"$error":"#VALUE!"}},{"$f":"IF(ISERROR(FIND(\"(f)\",C339)),(IF(ISERROR(FIND(\"(m)\",C339)),\"\",\"m\")),\"f\")","v":""},{"$f":"IF(D339=\"\",C339,LEFT(C339,SEARCH(\"(\",C339)-1))","v":{"$error":"#VALUE!"}}]
[null,null,{"$error":"#VALUE!"},"",{"$error":"#VALUE!"}]
[null,null,{"$error":"#VALUE!"},"",{"$error":"#VALUE!"}]
[null,null,{"$error":"#VALUE!"},"",{"$error":"#VALUE!"}]
[null,null,{"$error":"#VALUE!"},"",{"$error":"#VALUE!"}]
[null,null,{"$error":"#VALUE!"},"",{"$error":"#VALUE!"}]
[null,null,{"$error":"#VALUE!"},"",{"$error":"#VALUE!"}]
[null,null,{"$error":"#VALUE!"},"",{"$error":"#VALUE!"}]
[null,null,{"$error":"#VALUE!"},"",{"$error":"#VALUE!"}]
[null,null,{"$error":"#VALUE!"},"",{"$error":"#VALUE!"}]
[null,null,{"$error":"#VALUE!"},"",{"$error":"#VALUE!"}]
[null,null,{"$error":"#VALUE!"},"",{"$error":"#VALUE!"}]
[null,null,{"$error":"#VALUE!"},"",{"$error":"#VALUE!"}]
[null,null,{"$error":"#VALUE!"},"",{"$error":"#VALUE!"}]
[null,null,{"$error":"#VALUE!"},"",{"$error":"#VALUE!"}]
[null,null,{"$error":"#VALUE!"},"",{"$error":"#VALUE!"}]
[null,null,{"$error":"#VALUE!"},"",{"$error":"#VALUE!"}]
[null,null,{"$error":"#VALUE!"},"",{"$error":"#VALUE!"}]
[null,null,{"$error":"#VALUE!"},"",{"$error":"#VALUE!"}]
[null,null,{"$error":"#VALUE!"},"",{"$error":"#VALUE!"}]
[null,null,{"$error":"#VALUE!"},"",{"$error":"#VALUE!"}]
[null,null,{"$error":"#VALUE!"},"",{"$error":"#VALUE!"}]
[null,null,{"$error":"#VALUE!"},"",{"$error":"#VALUE!"}]
[null,null,{"$error":"#VALUE!"},"",{"$error":"#VALUE!"}]
[null,null,{"$error":"#VALUE!"},"",{"$error":"#VALUE!"}]
[null,null,{"$error":"#VALUE!"},"",{"$error":"#VALUE!"}]
[null,null,{"$error":"#VALUE!"},"",{"$error":"#VALUE!"}]
[null,null,{"$error":"#VALUE!"},"",{"$error":"#VALUE!"}]
[null,null,{"$error":"#VALUE!"},"",{"$error":"#VALUE!"}]
[null,null,{"$error":"#VALUE!"},"",{"$error":"#VALUE!"}]
[null,null,{"$error":"#VALUE!"},"",{"$error":"#VALUE!"}]
[null,null,{"$error":"#VALUE!"},"",{"$error":"#VALUE!"}]
[null,null,{"$error":"#VALUE!"},"",{"$error":"#VALUE!"}]
[null,null,{"$error":"#VALUE!"},"",{"$error":"#VALUE!"}]
[null,null,{"$error":"#VALUE!"},"",{"$error":"#VALUE!"}]
[null,null,{"$error":"#VALUE!"},"",{"$error":"#VALUE!"}]
[null,null,{"$error":"#VALUE!"},"",{"$error":"#VALUE!"}]
[null,null,{"$error":"#VALUE!"},"",{"$error":"#VALUE!"}]
[null,null,{"$error":"#VALUE!"},"",{"$error":"#VALUE!"}]
[null,null,{"$error":"#VALUE!"},"",{"$error":"#VALUE!"}]
[null,null,{"$error":"#VALUE!"},"",{"$error":"#VALUE!"}]
[null,null,{"$error":"#VALUE!"},"",{"$error":"#VALUE!"}]
[null,null,{"$error":"#VALUE!"},"",{"$error":"#VALUE!"}]
[null,null,{"$error":"#VALUE!"},"",{"$error":"#VALUE!"}]
[null,null,{"$error":"#VALUE!"},"",{"$error":"#VALUE!"}]
[null,null,{"$error":"#VALUE!"},"",{"$error":"#VALUE!"}]
[null,null,{"$error":"#VALUE!"},"",{"$error":"#VALUE!"}]
[null,null,{"$error":"#VALUE!"},"",{"$error":"#VALUE!"}]
[null,null,{"$error":"#VALUE!"},"",{"$error":"#VALUE!"}]
[null,null,{"$error":"#VALUE!"},"",{"$error":"#VALUE!"}]
[null,null,{"$error":"#VALUE!"},"",{"$error":"#VALUE!"}]
[null,null,{"$error":"#VALUE!"},"",{"$error":"#VALUE!"}]
[null,null,{"$error":"#VALUE!"},"",{"$error":"#VALUE!"}]
[null,null,{"$error":"#VALUE!"},"",{"$error":"#VALUE!"}]
[null,null,{"$error":"#VALUE!"},"",{"$error":"#VALUE!"}]
[null,null,{"$error":"#VALUE!"},"",{"$error":"#VALUE!"}]
[null,null,{"$error":"#VALUE!"},"",{"$error":"#VALUE!"}]
[null,null,{"$error":"#VALUE!"},"",{"$error":"#VALUE!"}]
[null,null,{"$error":"#VALUE!"},"",{"$error":"#VALUE!"}]
[null,null,{"$error":"#VALUE!"},"",{"$error":"#VALUE!"}]
[null,null,{"$error":"#VALUE!"},"",{"$error":"#VALUE!"}]
[null,null,{"$error":"#VALUE!"},"",{"$error":"#VALUE!"}]
[null,null,{"$error":"#VALUE!"},"",{"$error":"#VALUE!"}]
[null,null,{"$error":"#VALUE!"},"",{"$error":"#VALUE!"}]
[null,null,{"$f":"MID(A403,FIND(\"=\",A403)+1,LEN(A403))","v":{"$error":"#VALUE!"}},{"$f":"IF(ISERROR(FIND(\"(f)\",C403)),(IF(ISERROR(FIND(\"(m)\",C403)),\"\",\"m\")),\"f\")","v":""},{"$f":"IF(D403=\"\",C403,LEFT(C403,SEARCH(\"(\",C403)-1))","v":{"$error":"#VALUE!"}}]
[null,null,{"$error":"#VALUE!"},"",{"$error":"#VALUE!"}]
[null,null,{"$error":"#VALUE!"},"",{"$error":"#VALUE!"}]
[null,null,{"$error":"#VALUE!"},"",{"$error":"#VALUE!"}]
[null,null,{"$error":"#VALUE!"},"",{"$error":"#VALUE!"}]
[null,null,{"$error":"#VALUE!"},"",{"$error":"#VALUE!"}]
[null,null,{"$error":"#VALUE!"},"",{"$error":"#VALUE!"}]
[null,null,{"$error":"#VALUE!"},"",{"$error":"#VALUE!"}]
[null,null,{"$error":"#VALUE!"},"",{"$error":"#VALUE!"}]
[null,null,{"$error":"#VALUE!"},"",{"$error":"#VALUE!"}]
[null,null,{"$error":"#VALUE!"},"",{"$error":"#VALUE!"}]
[null,null,{"$error":"#VALUE!"},"",{"$error":"#VALUE!"}]
[null,null,{"$error":"#VALUE!"},"",{"$error":"#VALUE!"}]
[null,null,{"$error":"#VALUE!"},"",{"$error":"#VALUE!"}]
[null,null,{"$error":"#VALUE!"},"",{"$error":"#VALUE!"}]
[null,null,{"$error":"#VALUE!"},"",{"$error":"#VALUE!"}]
[null,null,{"$error":"#VALUE!"},"",{"$error":"#VALUE!"}]
[null,null,{"$error":"#VALUE!"},"",{"$error":"#VALUE!"}]
[null,null,{"$error":"#VALUE!"},"",{"$error":"#VALUE!"}]
[null,null,{"$error":"#VALUE!"},"",{"$error":"#VALUE!"}]
[null,null,{"$error":"#VALUE!"},"",{"$error":"#VALUE!"}]
[null,null,{"$error":"#VALUE!"},"",{"$error":"#VALUE!"}]
[null,null,{"$error":"#VALUE!"},"",{"$error":"#VALUE!"}]
[null,null,{"$error":"#VALUE!"},"",{"$error":"#VALUE!"}]
[null,null,{"$error":"#VALUE!"},"",{"$error":"#VALUE!"}]
[null,null,{"$error":"#VALUE!"},"",{"$error":"#VALUE!"}]
[null,null,{"$error":"#VALUE!"},"",{"$error":"#VALUE!"}]
[null,null,{"$error":"#VALUE!"},"",{"$error":"#VALUE!"}]
[null,null,{"$error":"#VALUE!"},"",{"$error":"#VALUE!"}]
[null,null,{"$error":"#VALUE!"},"",{"$error":"#VALUE!"}]
[null,null,{"$error":"#VALUE!"},"",{"$error":"#VALUE!"}]
[null,null,{"$error":"#VALUE!"},"",{"$error":"#VALUE!"}]
[null,null,{"$error":"#VALUE!"},"",{"$error":"#VALUE!"}]
[null,null,{"$error":"#VALUE!"},"",{"$error":"#VALUE!"}]
[null,null,{"$error":"#VALUE!"},"",{"$error":"#VALUE!"}]
[null,null,{"$error":"#VALUE!"},"",{"$error":"#VALUE!"}]
[null,null,{"$error":"#VALUE!"},"",{"$error":"#VALUE!"}]
[null,null,{"$error":"#VALUE!"},"",{"$error":"#VALUE!"}]
[null,null,{"$error":"#VALUE!"},"",{"$error":"#VALUE!"}]
[null,null,{"$error":"#VALUE!"},"",{"$error":"#VALUE!"}]
[null,null,{"$error":"#VALUE!"},"",{"$error":"#VALUE!"}]
[null,null,{"$error":"#VALUE!"},"",{"$error":"#VALUE!"}]
[null,null,{"$error":"#VALUE!"},"",{"$error":"#VALUE!"}]
[null,null,{"$error":"#VALUE!"},"",{"$error":"#VALUE!"}]
[null,null,{"$error":"#VALUE!"},"",{"$error":"#VALUE!"}]
[null,null,{"$error":"#VALUE!"},"",{"$error":"#VALUE!"}]
[null,null,{"$error":"#VALUE!"},"",{"$error":"#VALUE!"}]
[null,null,{"$error":"#VALUE!"},"",{"$error":"#VALUE!"}]
[null,null,{"$error":"#VALUE!"},"",{"$error":"#VALUE!"}]
[null,null,{"$error":"#VALUE!"},"",{"$error":"#VALUE!"}]
[null,null,{"$error":"#VALUE!"},"",{"$error":"#VALUE!"}]
[null,null,{"$error":"#VALUE!"},"",{"$error":"#VALUE!"}]
[null,null,{"$error":"#VALUE!"},"",{"$error":"#VALUE!"}]
[null,null,{"$error":"#VALUE!"},"",{"$error":"#VALUE!"}]
[null,null,{"$error":"#VALUE!"},"",{"$error":"#VALUE!"}]
[null,null,{"$error":"#VALUE!"},"",{"$error":"#VALUE!"}]
[null,null,{"$error":"#VALUE!"},"",{"$error":"#VALUE!"}]
[null,null,{"$error":"#VALUE!"},"",{"$error":"#VALUE!"}]
[null,null,{"$error":"#VALUE!"},"",{"$error":"#VALUE!"}]
[null,null,{"$error":"#VALUE!"},"",{"$error":"#VALUE!"}]
[null,null,{"$error":"#VALUE!"},"",{"$error":"#VALUE!"}]
[null,null,{"$error":"#VALUE!"},"",{"$error":"#VALUE!"}]
[null,null,{"$error":"#VALUE!"},"",{"$error":"#VALUE!"}]
[null,null,{"$error":"#VALUE!"},"",{"$error":"#VALUE!"}]
[null,null,{"$f":"MID(A467,FIND(\"=\",A467)+1,LEN(A467))","v":{"$error":"#VALUE!"}},{"$f":"IF(ISERROR(FIND(\"(f)\",C467)),(IF(ISERROR(FIND(\"(m)\",C467)),\"\",\"m\")),\"f\")","v":""},{"$f":"IF(D467=\"\",C467,LEFT(C467,SEARCH(\"(\",C467)-1))","v":{"$error":"#VALUE!"}}]
[null,null,{"$error":"#VALUE!"},"",{"$error":"#VALUE!"}]
[null,null,{"$error":"#VALUE!"},"",{"$error":"#VALUE!"}]
[null,null,{"$error":"#VALUE!"},"",{"$error":"#VALUE!"}]
[null,null,{"$error":"#VALUE!"},"",{"$error":"#VALUE!"}]
[null,null,{"$error":"#VALUE!"},"",{"$error":"#VALUE!"}]
[null,null,{"$error":"#VALUE!"},"",{"$error":"#VALUE!"}]
[null,null,{"$error":"#VALUE!"},"",{"$error":"#VALUE!"}]
[null,null,{"$error":"#VALUE!"},"",{"$error":"#VALUE!"}]
[null,null,{"$error":"#VALUE!"},"",{"$error":"#VALUE!"}]
[null,null,{"$error":"#VALUE!"},"",{"$error":"#VALUE!"}]
[null,null,{"$error":"#VALUE!"},"",{"$error":"#VALUE!"}]
[null,null,{"$error":"#VALUE!"},"",{"$error":"#VALUE!"}]
[null,null,{"$error":"#VALUE!"},"",{"$error":"#VALUE!"}]
[null,null,{"$error":"#VALUE!"},"",{"$error":"#VALUE!"}]
[null,null,{"$error":"#VALUE!"},"",{"$error":"#VALUE!"}]
[null,null,{"$error":"#VALUE!"},"",{"$error":"#VALUE!"}]
[null,null,{"$error":"#VALUE!"},"",{"$error":"#VALUE!"}]
[null,null,{"$error":"#VALUE!"},"",{"$error":"#VALUE!"}]
[null,null,{"$error":"#VALUE!"},"",{"$error":"#VALUE!"}]
[null,null,{"$error":"#VALUE!"},"",{"$error":"#VALUE!"}]
[null,null,{"$error":"#VALUE!"},"",{"$error":"#VALUE!"}]
[null,null,{"$error":"#VALUE!"},"",{"$error":"#VALUE!"}]
[null,null,{"$error":"#VALUE!"},"",{"$error":"#VALUE!"}]
[null,null,{"$error":"#VALUE!"},"",{"$error":"#VALUE!"}]
[null,null,{"$error":"#VALUE!"},"",{"$error":"#VALUE!"}]
[null,null,{"$error":"#VALUE!"},"",{"$error":"#VALUE!"}]
[null,null,{"$error":"#VALUE!"},"",{"$error":"#VALUE!"}]
[null,null,{"$error":"#VALUE!"},"",{"$error":"#VALUE!"}]
[null,null,{"$error":"#VALUE!"},"",{"$error":"#VALUE!"}]
[null,null,{"$error":"#VALUE!"},"",{"$error":"#VALUE!"}]
[null,null,{"$error":"#VALUE!"},"",{"$error":"#VALUE!"}]
[null,null,{"$error":"#VALUE!"},"",{"$error":"#VALUE!"}]
[null,null,{"$error":"#VALUE!"},"",{"$error":"#VALUE!"}]
[null,null,{"$error":"#VALUE!"},"",{"$error":"#VALUE!"}]
[null,null,{"$error":"#VALUE!"},"",{"$error":"#VALUE!"}]
[null,null,{"$error":"#VALUE!"},"",{"$error":"#VALUE!"}]
[null,null,{"$error":"#VALUE!"},"",{"$error":"#VALUE!"}]
[null,null,{"$error":"#VALUE!"},"",{"$error":"#VALUE!"}]
[null,null,{"$error":"#VALUE!"},"",{"$error":"#VALUE!"}]
[null,null,{"$error":"#VALUE!"},"",{"$error":"#VALUE!"}]
[null,null,{"$error":"#VALUE!"},"",{"$error":"#VALUE!"}]
[null,null,{"$error":"#VALUE!"},"",{"$error":"#VALUE!"}]
[null,null,{"$error":"#VALUE!"},"",{"$error":"#VALUE!"}]
[null,null,{"$error":"#VALUE!"},"",{"$error":"#VALUE!"}]
[null,null,{"$error":"#VALUE!"},"",{"$error":"#VALUE!"}]
[null,null,{"$error":"#VALUE!"},"",{"$error":"#VALUE!"}]
[null,null,{"$error":"#VALUE!"},"",{"$error":"#VALUE!"}]
[null,null,{"$error":"#VALUE!"},"",{"$error":"#VALUE!"}]
[null,null,{"$error":"#VALUE!"},"",{"$error":"#VALUE!"}]
[null,null,{"$error":"#VALUE!"},"",{"$error":"#VALUE!"}]
[null,null,{"$error":"#VALUE!"},"",{"$error":"#VALUE!"}]
[null,null,{"$error":"#VALUE!"},"",{"$error":"#VALUE!"}]
[null,null,{"$error":"#VALUE!"},"",{"$error":"#VALUE!"}]
[null,null,{"$error":"#VALUE!"},"",{"$error":"#VALUE!"}]
[null,null,{"$error":"#VALUE!"},"",{"$error":"#VALUE!"}]
[null,null,{"$error":"#VALUE!"},"",{"$error":"#VALUE!"}]
[null,null,{"$error":"#VALUE!"},"",{"$error":"#VALUE!"}]
[null,null,{"$error":"#VALUE!"},"",{"$error":"#VALUE!"}]
[null,null,{"$error":"#VALUE!"},"",{"$error":"#VALUE!"}]
[null,null,{"$error":"#VALUE!"},"",{"$error":"#VALUE!"}]
[null,null,{"$error":"#VALUE!"},"",{"$error":"#VALUE!"}]
[null,null,{"$error":"#VALUE!"},"",{"$error":"#VALUE!"}]
[null,null,{"$error":"#VALUE!"},"",{"$error":"#VALUE!"}]
[null,null,{"$f":"MID(A531,FIND(\"=\",A531)+1,LEN(A531))","v":{"$error":"#VALUE!"}},{"$f":"IF(ISERROR(FIND(\"(f)\",C531)),(IF(ISERROR(FIND(\"(m)\",C531)),\"\",\"m\")),\"f\")","v":""},{"$f":"IF(D531=\"\",C531,LEFT(C531,SEARCH(\"(\",C531)-1))","v":{"$error":"#VALUE!"}}]
[null,null,{"$error":"#VALUE!"},"",{"$error":"#VALUE!"}]
[null,null,{"$error":"#VALUE!"},"",{"$error":"#VALUE!"}]
[null,null,{"$error":"#VALUE!"},"",{"$error":"#VALUE!"}]
[null,null,{"$error":"#VALUE!"},"",{"$error":"#VALUE!"}]
[null,null,{"$error":"#VALUE!"},"",{"$error":"#VALUE!"}]
[null,null,{"$error":"#VALUE!"},"",{"$error":"#VALUE!"}]
[null,null,{"$error":"#VALUE!"},"",{"$error":"#VALUE!"}]
[null,null,{"$error":"#VALUE!"},"",{"$error":"#VALUE!"}]
[null,null,{"$error":"#VALUE!"},"",{"$error":"#VALUE!"}]
[null,null,{"$error":"#VALUE!"},"",{"$error":"#VALUE!"}]
[null,null,{"$error":"#VALUE!"},"",{"$error":"#VALUE!"}]
[null,null,{"$error":"#VALUE!"},"",{"$error":"#VALUE!"}]
[null,null,{"$error":"#VALUE!"},"",{"$error":"#VALUE!"}]
[null,null,{"$error":"#VALUE!"},"",{"$error":"#VALUE!"}]
[null,null,{"$error":"#VALUE!"},"",{"$error":"#VALUE!"}]
[null,null,{"$error":"#VALUE!"},"",{"$error":"#VALUE!"}]
[null,null,{"$error":"#VALUE!"},"",{"$error":"#VALUE!"}]
[null,null,{"$error":"#VALUE!"},"",{"$error":"#VALUE!"}]
[null,null,{"$error":"#VALUE!"},"",{"$error":"#VALUE!"}]
[null,null,{"$error":"#VALUE!"},"",{"$error":"#VALUE!"}]
[null,null,{"$error":"#VALUE!"},"",{"$error":"#VALUE!"}]
[null,null,{"$error":"#VALUE!"},"",{"$error":"#VALUE!"}]
[null,null,{"$error":"#VALUE!"},"",{"$error":"#VALUE!"}]
[null,null,{"$error":"#VALUE!"},"",{"$error":"#VALUE!"}]
[null,null,{"$error":"#VALUE!"},"",{"$error":"#VALUE!"}]
[null,null,{"$error":"#VALUE!"},"",{"$error":"#VALUE!"}]
[null,null,{"$error":"#VALUE!"},"",{"$error":"#VALUE!"}]
[null,null,{"$error":"#VALUE!"},"",{"$error":"#VALUE!"}]
[null,null,{"$error":"#VALUE!"},"",{"$error":"#VALUE!"}]
[null,null,{"$error":"#VALUE!"},"",{"$error":"#VALUE!"}]
[null,null,{"$error":"#VALUE!"},"",{"$error":"#VALUE!"}]
[null,null,{"$error":"#VALUE!"},"",{"$error":"#VALUE!"}]
[null,null,{"$error":"#VALUE!"},"",{"$error":"#VALUE!"}]
[null,null,{"$error":"#VALUE!"},"",{"$error":"#VALUE!"}]
[null,null,{"$error":"#VALUE!"},"",{"$error":"#VALUE!"}]
[null,null,{"$error":"#VALUE!"},"",{"$error":"#VALUE!"}]
[null,null,{"$error":"#VALUE!"},"",{"$error":"#VALUE!"}]
[null,null,{"$error":"#VALUE!"},"",{"$error":"#VALUE!"}]
[null,null,{"$error":"#VALUE!"},"",{"$error":"#VALUE!"}]
[null,null,{"$error":"#VALUE!"},"",{"$error":"#VALUE!"}]
[null,null,{"$error":"#VALUE!"},"",{"$error":"#VALUE!"}]
[null,null,{"$error":"#VALUE!"},"",{"$error":"#VALUE!"}]
[null,null,{"$error":"#VALUE!"},"",{"$error":"#VALUE!"}]
[null,null,{"$error":"#VALUE!"},"",{"$error":"#VALUE!"}]
[null,null,{"$error":"#VALUE!"},"",{"$error":"#VALUE!"}]
[null,null,{"$error":"#VALUE!"},"",{"$error":"#VALUE!"}]
[null,null,{"$error":"#VALUE!"},"",{"$error":"#VALUE!"}]
[null,null,{"$error":"#VALUE!"},"",{"$error":"#VALUE!"}]
[null,null,{"$error":"#VALUE!"},"",{"$error":"#VALUE!"}]
[null,null,{"$error":"#VALUE!"},"",{"$error":"#VALUE!"}]
[null,null,{"$error":"#VALUE!"},"",{"$error":"#VALUE!"}]
[null,null,{"$error":"#VALUE!"},"",{"$error":"#VALUE!"}]
[null,null,{"$error":"#VALUE!"},"",{"$error":"#VALUE!"}]
[null,null,{"$error":"#VALUE!"},"",{"$error":"#VALUE!"}]
[null,null,{"$error":"#VALUE!"},"",{"$error":"#VALUE!"}]
[null,null,{"$error":"#VALUE!"},"",{"$error":"#VALUE!"}]
[null,null,{"$error":"#VALUE!"},"",{"$error":"#VALUE!"}]
[null,null,{"$error":"#VALUE!"},"",{"$error":"#VALUE!"}]
[null,null,{"$error":"#VALUE!"},"",{"$error":"#VALUE!"}]
[null,null,{"$error":"#VALUE!"},"",{"$error":"#VALUE!"}]
[null,null,{"$error":"#VALUE!"},"",{"$error":"#VALUE!"}]
[null,null,{"$error":"#VALUE!"},"",{"$error":"#VALUE!"}]
[null,null,{"$error":"#VALUE!"},"",{"$error":"#VALUE!"}]
[null,null,{"$f":"MID(A595,FIND(\"=\",A595)+1,LEN(A595))","v":{"$error":"#VALUE!"}},{"$f":"IF(ISERROR(FIND(\"(f)\",C595)),(IF(ISERROR(FIND(\"(m)\",C595)),\"\",\"m\")),\"f\")","v":""},{"$f":"IF(D595=\"\",C595,LEFT(C595,SEARCH(\"(\",C595)-1))","v":{"$error":"#VALUE!"}}]
[null,null,{"$error":"#VALUE!"},"",{"$error":"#VALUE!"}]
[null,null,{"$error":"#VALUE!"},"",{"$error":"#VALUE!"}]
[null,null,{"$error":"#VALUE!"},"",{"$error":"#VALUE!"}]
[null,null,{"$error":"#VALUE!"},"",{"$error":"#VALUE!"}]
[null,null,{"$error":"#VALUE!"},"",{"$error":"#VALUE!"}]
[null,null,{"$error":"#VALUE!"},"",{"$error":"#VALUE!"}]
[null,null,{"$error":"#VALUE!"},"",{"$error":"#VALUE!"}]
[null,null,{"$error":"#VALUE!"},"",{"$error":"#VALUE!"}]
[null,null,{"$error":"#VALUE!"},"",{"$error":"#VALUE!"}]
[null,null,{"$error":"#VALUE!"},"",{"$error":"#VALUE!"}]
[null,null,{"$error":"#VALUE!"},"",{"$error":"#VALUE!"}]
[null,null,{"$error":"#VALUE!"},"",{"$error":"#VALUE!"}]
[null,null,{"$error":"#VALUE!"},"",{"$error":"#VALUE!"}]
[null,null,{"$error":"#VALUE!"},"",{"$error":"#VALUE!"}]
[null,null,{"$error":"#VALUE!"},"",{"$error":"#VALUE!"}]
[null,null,{"$error":"#VALUE!"},"",{"$error":"#VALUE!"}]
[null,null,{"$error":"#VALUE!"},"",{"$error":"#VALUE!"}]
[null,null,{"$error":"#VALUE!"},"",{"$error":"#VALUE!"}]
[null,null,{"$error":"#VALUE!"},"",{"$error":"#VALUE!"}]
[null,null,{"$error":"#VALUE!"},"",{"$error":"#VALUE!"}]
[null,null,{"$error":"#VALUE!"},"",{"$error":"#VALUE!"}]
[null,null,{"$error":"#VALUE!"},"",{"$error":"#VALUE!"}]
[null,null,{"$error":"#VALUE!"},"",{"$error":"#VALUE!"}]
[null,null,{"$error":"#VALUE!"},"",{"$error":"#VALUE!"}]
[null,null,{"$error":"#VALUE!"},"",{"$error":"#VALUE!"}]
[null,null,{"$error":"#VALUE!"},"",{"$error":"#VALUE!"}]
[null,null,{"$error":"#VALUE!"},"",{"$error":"#VALUE!"}]
[null,null,{"$error":"#VALUE!"},"",{"$error":"#VALUE!"}]
[null,null,{"$error":"#VALUE!"},"",{"$error":"#VALUE!"}]
[null,null,{"$error":"#VALUE!"},"",{"$error":"#VALUE!"}]
[null,null,{"$error":"#VALUE!"},"",{"$error":"#VALUE!"}]
[null,null,{"$error":"#VALUE!"},"",{"$error":"#VALUE!"}]
[null,null,{"$error":"#VALUE!"},"",{"$error":"#VALUE!"}]
[null,null,{"$error":"#VALUE!"},"",{"$error":"#VALUE!"}]
[null,null,{"$error":"#VALUE!"},"",{"$error":"#VALUE!"}]
[null,null,{"$error":"#VALUE!"},"",{"$error":"#VALUE!"}]
[null,null,{"$error":"#VALUE!"},"",{"$error":"#VALUE!"}]
[null,null,{"$error":"#VALUE!"},"",{"$error":"#VALUE!"}]
[null,null,{"$error":"#VALUE!"},"",{"$error":"#VALUE!"}]
[null,null,{"$error":"#VALUE!"},"",{"$error":"#VALUE!"}]
[null,null,{"$error":"#VALUE!"},"",{"$error":"#VALUE!"}]
[null,null,{"$error":"#VALUE!"},"",{"$error":"#VALUE!"}]
[null,null,{"$error":"#VALUE!"},"",{"$error":"#VALUE!"}]
[null,null,{"$error":"#VALUE!"},"",{"$error":"#VALUE!"}]
[null,null,{"$error":"#VALUE!"},"",{"$error":"#VALUE!"}]
[null,null,{"$error":"#VALUE!"},"",{"$error":"#VALUE!"}]
[null,null,{"$error":"#VALUE!"},"",{"$error":"#VALUE!"}]
[null,null,{"$error":"#VALUE!"},"",{"$error":"#VALUE!"}]
[null,null,{"$error":"#VALUE!"},"",{"$error":"#VALUE!"}]
[null,null,{"$error":"#VALUE!"},"",{"$error":"#VALUE!"}]
[null,null,{"$error":"#VALUE!"},"",{"$error":"#VALUE!"}]
[null,null,{"$error":"#VALUE!"},"",{"$error":"#VALUE!"}]
[null,null,{"$error":"#VALUE!"},"",{"$error":"#VALUE!"}]
[null,null,{"$error":"#VALUE!"},"",{"$error":"#VALUE!"}]
[null,null,{"$error":"#VALUE!"},"",{"$error":"#VALUE!"}]
[null,null,{"$error":"#VALUE!"},"",{"$error":"#VALUE!"}]
[null,null,{"$error":"#VALUE!"},"",{"$error":"#VALUE!"}]
[null,null,{"$error":"#VALUE!"},"",{"$error":"#VALUE!"}]